{"text_format":"1","workbook":"xlsx","n_sheets":7,"sheets":["Benutzerhinweise","Zielvereinbarung","Bewertung durch Anwender","Konformitätsprüfung","Gültigkeitsliste","BNB-System","Hilfstabelle"],"not_rendered":{"charts":0,"images":0,"macros":1,"external_links":0,"defined_names":7,"comments":0,"pivot_tables":0},"unopened":[],"bounds":{"document_bytes":16777216,"sheet_cells":100000,"rows_first":2000,"rows_last":500,"rows_between":2000,"halvings":0,"cell_chars":16384,"cell_head_chars":4096},"cells_cut":0,"cells_raw":0,"read":"whole","date_system":"1900"}

{"sheet":"Benutzerhinweise","index":0,"n_rows":38,"n_cols":5,"rows_kept":38,"cut":false,"hidden":false,"merged":[[5,2,5,3],[7,2,7,3]]}
[]
[]
[]
[]
[null,null,"Arbeitshilfe zum BNB_UK Version 2017"]
[]
[]
[null,null,"EINFÜHRUNG"]
[]
[]
[]
[]
[]
[]
[]
[]
[]
[]
[]
[]
[]
[]
[]
[]
[]
[]
[]
[]
[]
[]
[]
[]
[]
[]
[null,null,"Änderungen:"]
[null,null,"2018-03-08"," 2.2.2","Teilkriterium 4. \"Technische Ausstattung\": Punktzahl von 18 auf 10 Punkte korrigiert."]
[null,null,null," 3.1.5","Teilkriterium 3. \"Sichtverbindungen\": Punktzahl von 25 auf 35 Punkte korrigiert "]
[null,null,null," 4.1.3","Teilkriterium 3.6 \"Zugänglichkeit\" nachgetragen."]

{"sheet":"Zielvereinbarung","index":1,"n_rows":260,"n_cols":15,"rows_kept":260,"cut":false,"hidden":false,"merged":[[0,2,0,3],[3,15,4,15],[3,13,4,13],[3,14,4,14],[6,1,6,2],[3,1,4,2],[3,3,4,3],[3,5,3,6],[3,7,4,7],[3,4,4,4],[3,12,4,12],[3,8,4,8],[3,9,4,9],[3,10,4,10],[3,11,4,11]]}
[null,{"$f":"'BNB-System'!C1","v":"Projekt:"},"Projektbezeichnung",null,"Datum:",null,"2017-11-13"]
[null,{"$f":"'BNB-System'!C2","v":"Bewertungssystem Nachhaltiges Bauen (BNB)"}]
[null,{"$f":"'BNB-System'!C3","v":"Systemvariante Unterrichtsgebäude, Modul Komplettmodernisierung (BNB_UK) - Version 2017"}]
[null,"Nachhaltigkeitskriterien",null,"maximale Punktzahl","Gewichtung\nGesamt-bewertung","Zielwert \n der Ziel-vereinbarung",null,"Kommentar","erforderliche Leistungen, Maßnahmen, Methoden","erforderliche Dokumente/ Nachweise","Termin","Zuständigkeit",null,"Zielwert","Gesamt-bewertung gemäß \nEnd-bewertung"]
[null,null,null,null,null,"Soll","Punkt-\nzahl"]
[]
[null,"Gesamterfüllungsgrad",null,null,null,null,{"$f":"IF(SUM(O13:O217)>100%,100%,SUM(O13:O217))","v":0}]
[null,null,null,null,null,null,null,null,null,null,null,null,"qwertz"]
[]
[null,{"$f":"'BNB-System'!F6","v":"Ökologische Qualität"},null,null,{"$f":"'BNB-System'!K6","v":0.22500000000000001},null,{"$f":"G13*(E13/100)+G14*(E14/100)+G15*(E15/100)+G16*(E16/100)+G17*(E17/100)+G18*(E18/100)+G24*(E24/100)+G26*(E26/100)+G30*(E30/100)+G31*(E31/100)","v":0},null,null,null,null,null,null,{"$f":"'BNB-System'!L6","v":1800}]
[null,null,null,null,null,null,null,null,null,null,null,null,null,{"$f":"'BNB-System'!L7","v":0}]
[null,null,"Wirkungen auf die globale und lokale  Umwelt",null,null,null,null,null,null,null,null,null,null,{"$f":"'BNB-System'!L8","v":0}]
[null,{"$f":"'BNB-System'!F9","v":" 1.1.1"},{"$f":"'BNB-System'!G9","v":"Treibhauspotenzial (GWP)"},{"$f":"'BNB-System'!H9","v":100},{"$f":"'BNB-System'!K9","v":3.7499999999999999E-2},"o",null,null,null,null,null,null,null,{"$f":"'BNB-System'!L9","v":300},{"$f":"IF(ISNUMBER(E13*G13/100),E13*G13/100,0)","v":0}]
[null,{"$f":"'BNB-System'!F10","v":" 1.1.2"},{"$f":"'BNB-System'!G10","v":"Ozonschichtabbaupotenzial (ODP)"},{"$f":"'BNB-System'!H10","v":100},{"$f":"'BNB-System'!K10","v":1.2499999999999999E-2},"x",null,null,null,null,null,null,null,{"$f":"'BNB-System'!L10","v":100},{"$f":"IF(ISNUMBER(E14*G14/100),E14*G14/100,0)","v":0}]
[null,{"$f":"'BNB-System'!F11","v":" 1.1.3"},{"$f":"'BNB-System'!G11","v":"Ozonbildungspotenzial (POCP)"},{"$f":"'BNB-System'!H11","v":100},{"$f":"'BNB-System'!K11","v":1.2499999999999999E-2},null,null,null,null,null,null,null,null,{"$f":"'BNB-System'!L11","v":100},0]
[null,{"$f":"'BNB-System'!F12","v":" 1.1.4"},{"$f":"'BNB-System'!G12","v":"Versauerungspotenzial (AP)"},{"$f":"'BNB-System'!H12","v":100},{"$f":"'BNB-System'!K12","v":1.2499999999999999E-2},null,null,null,null,null,null,null,null,{"$f":"'BNB-System'!L12","v":100},0]
[null,{"$f":"'BNB-System'!F13","v":" 1.1.5"},{"$f":"'BNB-System'!G13","v":"Überdüngungspotenzial (EP)"},{"$f":"'BNB-System'!H13","v":100},{"$f":"'BNB-System'!K13","v":1.2499999999999999E-2},null,null,null,null,null,null,null,null,{"$f":"'BNB-System'!L13","v":100},0]
[null,{"$f":"'BNB-System'!F14","v":" 1.1.6"},{"$f":"'BNB-System'!G14","v":"Risiken für die lokale Umwelt"},{"$f":"'BNB-System'!H14","v":100},{"$f":"'BNB-System'!K14","v":3.7499999999999999E-2},null,{"$f":"IF(SUM(G19:G23)>100,100,SUM(G19:G23))","v":0},null,null,null,null,null,null,{"$f":"'BNB-System'!L14","v":300},0]
[null,null,{"$f":"'BNB-System'!G15","v":"Altsubstanz Q4 ; Neusubstanz Q5"},{"$f":"'BNB-System'!H15","v":100}]
[null,null,{"$f":"'BNB-System'!G16","v":"Altsubstanz Q3 ; Neusubstanz Q4"},{"$f":"'BNB-System'!H16","v":75}]
[null,null,{"$f":"'BNB-System'!G17","v":"Altsubstanz Q2 ; Neusubstanz Q3"},{"$f":"'BNB-System'!H17","v":50}]
[null,null,{"$f":"'BNB-System'!G18","v":"Altsubstanz Q1 ; Neusubstanz Q2"},{"$f":"'BNB-System'!H18","v":25}]
[null,null,{"$f":"'BNB-System'!G19","v":"Altsubstanz Q1 ; Neusubstanz Q1"},{"$f":"'BNB-System'!H19","v":10}]
[null,{"$f":"'BNB-System'!F20","v":" 1.1.7"},{"$f":"'BNB-System'!G20","v":"Nachhaltige Materialgewinnung / Biodiversität"},{"$f":"'BNB-System'!H20","v":100},{"$f":"'BNB-System'!K20","v":1.2499999999999999E-2},null,null,null,null,null,null,null,null,{"$f":"'BNB-System'!L20","v":100},0]
[null,null,{"$f":"'BNB-System'!G21","v":"Ressourceninanspruchnahme"},null,null,null,null,null,null,null,null,null,null,{"$f":"'BNB-System'!L21","v":0}]
[null,{"$f":"'BNB-System'!F22","v":" 1.2.1"},{"$f":"'BNB-System'!G22","v":"Primärenergiebedarf"},{"$f":"'BNB-System'!H22","v":100},{"$f":"'BNB-System'!K22","v":3.7499999999999999E-2},null,{"$f":"IF(SUM(G27:G29)>100,100,SUM(G27:G29))","v":0},null,null,null,null,null,null,{"$f":"'BNB-System'!L22","v":300},0]
[null,null,{"$f":"'BNB-System'!G23","v":"Primärenergiebedarf nicht erneuerbar (PEne)"},{"$f":"'BNB-System'!H23","v":60},null,null,null,null,null,null,null,null,null,{"$f":"'BNB-System'!L23","v":0}]
[null,null,{"$f":"'BNB-System'!G24","v":"Gesamtprimärenergiebedarf (PEges)"},{"$f":"'BNB-System'!H24","v":40}]
[null,null,{"$f":"'BNB-System'!G25","v":"Anteil der erneuerbaren Primärenergie (Pee)"},{"$f":"'BNB-System'!H25","v":20},null,null,null,null,null,null,null,null,null,{"$f":"'BNB-System'!L25","v":0}]
[null,{"$f":"'BNB-System'!F26","v":" 1.2.3"},{"$f":"'BNB-System'!G26","v":"Trinkwasserbedarf und Abwasseraufkommen"},{"$f":"'BNB-System'!H26","v":100},{"$f":"'BNB-System'!K26","v":2.4999999999999998E-2},null,null,null,null,null,null,null,null,{"$f":"'BNB-System'!L26","v":200},{"$f":"IF(ISNUMBER(E30*G30/100),E30*G30/100,0)","v":0}]
[null,{"$f":"'BNB-System'!F27","v":" 1.2.4"},{"$f":"'BNB-System'!G27","v":"Flächeninanspruchnahme"},{"$f":"'BNB-System'!H27","v":100},{"$f":"'BNB-System'!K27","v":2.4999999999999998E-2},null,{"$f":"IF(SUM(G32:G33)>100,100,SUM(G32:G33))","v":0},null,null,null,null,null,null,{"$f":"'BNB-System'!L27","v":200},0]
[null,null,{"$f":"'BNB-System'!G28","v":"Veränderung der Flächeninanspruchnahme"},{"$f":"'BNB-System'!H28","v":100}]
[null,null,{"$f":"'BNB-System'!G29","v":"Ausgleichsmaßnahmen und Flächenrecycling"},{"$f":"'BNB-System'!H29","v":40}]
[null,null,null,null,null,null,null,null,null,null,null,null,null,{"$f":"'BNB-System'!L30","v":0}]
[null,{"$f":"'BNB-System'!F31","v":"Ökonomische Qualität"},null,null,{"$f":"'BNB-System'!K31","v":0.22500000000000001},null,{"$f":"G38*(E38/100)+G40*(E40/100)","v":0},null,null,null,null,null,null,{"$f":"'BNB-System'!L31","v":500}]
[null,null,null,null,null,null,null,null,null,null,null,null,null,{"$f":"'BNB-System'!L32","v":0}]
[null,null,{"$f":"'BNB-System'!G33","v":"Lebenszykluskosten"},null,null,null,null,null,null,null,null,null,null,{"$f":"'BNB-System'!L33","v":0}]
[null,{"$f":"'BNB-System'!F34","v":" 2.1.1"},{"$f":"'BNB-System'!G34","v":"Gebäudebezogene Kosten im Lebenszyklus"},{"$f":"'BNB-System'!H34","v":100},{"$f":"'BNB-System'!K34","v":0.13500000000000001},null,null,null,null,null,null,null,null,{"$f":"'BNB-System'!L34","v":300},{"$f":"IF(ISNUMBER(E38*G38/100),E38*G38/100,0)","v":0}]
[null,null,{"$f":"'BNB-System'!G35","v":"Wirtschaftlichkeit und Wertstabilität"},null,null,null,null,null,null,null,null,null,null,{"$f":"'BNB-System'!L35","v":0}]
[null,{"$f":"'BNB-System'!F36","v":" 2.2.2"},{"$f":"'BNB-System'!G36","v":"Anpassungsfähigkeit"},{"$f":"'BNB-System'!H36","v":100},{"$f":"'BNB-System'!K36","v":9.0000000000000011E-2},"o",{"$f":"IF(SUM(G41:G46)>100,100,SUM(G41:G46))","v":0},null,null,null,null,null,null,{"$f":"'BNB-System'!L36","v":200},{"$f":"IF(ISNUMBER(E40*G40/100),E40*G40/100,0)","v":0}]
[null,null,{"$f":"'BNB-System'!G37","v":"Lichte Raumhöhe"},{"$f":"'BNB-System'!H37","v":15},null,null,null,null,null,null,null,null,null,{"$f":"'BNB-System'!L37","v":0}]
[null,null,{"$f":"'BNB-System'!G38","v":"Gebäudetiefe"},{"$f":"'BNB-System'!H38","v":15},null,null,null,null,null,null,null,null,null,{"$f":"'BNB-System'!L38","v":0}]
[null,null,{"$f":"'BNB-System'!G39","v":"Vertikale Erschließung"},{"$f":"'BNB-System'!H39","v":15},null,null,null,null,null,null,null,null,null,{"$f":"'BNB-System'!L39","v":0}]
[null,null,{"$f":"'BNB-System'!G40","v":"Grundrisse"},{"$f":"'BNB-System'!H40","v":25},null,null,null,null,null,null,null,null,null,{"$f":"'BNB-System'!L40","v":0}]
[null,null,{"$f":"'BNB-System'!G41","v":"Konstruktion"},{"$f":"'BNB-System'!H41","v":20},null,null,null,null,null,null,null,null,null,{"$f":"'BNB-System'!L41","v":0}]
[null,null,{"$f":"'BNB-System'!G42","v":"Technische Ausstattung"},{"$f":"'BNB-System'!H42","v":10},null,null,null,null,null,null,null,null,null,{"$f":"'BNB-System'!L42","v":0}]
[null,null,null,null,null,null,null,null,null,null,null,null,null,{"$f":"'BNB-System'!L43","v":0}]
[null,{"$f":"'BNB-System'!F44","v":"Soziokulturelle und funktionale Qualität"},null,null,{"$f":"'BNB-System'!K44","v":0.22500000000000001},null,{"$f":"G51*(E51/100)+G62*(E62/100)+G65*(E65/100)+G75*(E75/100)+G83*(E83/100)+G93*(E93/100)+G98*(E98/100)+G105*(E105/100)+G106*(E106/100)+G111*(E111/100)+G116*(E116/100)+G123*(E123/100)","v":0},null,null,null,null,null,null,{"$f":"'BNB-System'!L44","v":2700}]
[null,null,null,null,null,null,null,null,null,null,null,null,null,{"$f":"'BNB-System'!L45","v":0}]
[null,null,{"$f":"'BNB-System'!G46","v":"Gesundheit, Behaglichkeit und Nutzerzufriedenheit"},null,null,null,null,null,null,null,null,null,null,{"$f":"'BNB-System'!L46","v":0}]
[null,{"$f":"'BNB-System'!F47","v":" 3.1.1"},{"$f":"'BNB-System'!G47","v":"Thermischer Komfort"},{"$f":"'BNB-System'!H47","v":100},{"$f":"'BNB-System'!K47","v":2.4999999999999998E-2},null,{"$f":"IF(SUM(G53:G61)>100,100,SUM(G53:G61))","v":0},null,null,null,null,null,null,{"$f":"'BNB-System'!L47","v":300},{"$f":"IF(ISNUMBER(E51*G51/100),E51*G51/100,0)","v":0}]
[null,null,{"$f":"'BNB-System'!G48","v":"Winter"},null,null,null,null,null,null,null,null,null,null,{"$f":"'BNB-System'!L49","v":0}]
[null,null,{"$f":"'BNB-System'!G49","v":"Operative Temperatur"},{"$f":"'BNB-System'!H49","v":10}]
[null,null,{"$f":"'BNB-System'!G50","v":" Zugluft"},{"$f":"'BNB-System'!H50","v":10}]
[null,null,{"$f":"'BNB-System'!G51","v":"Stahlungstemperaturasymmetrie und Fußbodentemperatur"},{"$f":"'BNB-System'!H51","v":10}]
[null,null,{"$f":"'BNB-System'!G52","v":"Luftfeuchte"},{"$f":"'BNB-System'!H52","v":10}]
[null,null,{"$f":"'BNB-System'!G53","v":"Sommer"}]
[null,null,{"$f":"'BNB-System'!G54","v":"Operative Temperatur"},{"$f":"'BNB-System'!H54","v":30}]
[null,null,{"$f":"'BNB-System'!G55","v":" Zugluft"},{"$f":"'BNB-System'!H55","v":10}]
[null,null,{"$f":"'BNB-System'!G56","v":"Stahlungstemperaturasymmetrie und Fußbodentemperatur"},{"$f":"'BNB-System'!H56","v":10}]
[null,null,{"$f":"'BNB-System'!G57","v":"Luftfeuchte"},{"$f":"'BNB-System'!H57","v":10},null,null,null,null,null,null,null,null,null,{"$f":"'BNB-System'!#REF!","v":{"$error":"#REF!"}}]
[null,{"$f":"'BNB-System'!F58","v":" 3.1.3"},{"$f":"'BNB-System'!G58","v":"Innenraumlufthygiene"},{"$f":"'BNB-System'!H58","v":100},{"$f":"'BNB-System'!K58","v":2.4999999999999998E-2},null,{"$f":"IF(SUM(G63:G64)>100,100,SUM(G63:G64))","v":0},null,null,null,null,null,null,{"$f":"'BNB-System'!L58","v":300},{"$f":"IF(ISNUMBER(E62*G62/100),E62*G62/100,0)","v":0}]
[null,null,{"$f":"'BNB-System'!G59","v":"Flüchtige organische Stoffe (VOC) und Formaldehyd"},{"$f":"'BNB-System'!H59","v":50},null,null,null,null,null,null,null,null,null,{"$f":"'BNB-System'!L59","v":0}]
[null,null,{"$f":"'BNB-System'!G60","v":"Personenbezogene Lüftungsrate"},{"$f":"'BNB-System'!H60","v":50},null,null,null,null,null,null,null,null,null,{"$f":"'BNB-System'!L60","v":0}]
[null,{"$f":"'BNB-System'!F61","v":" 3.1.4"},{"$f":"'BNB-System'!G61","v":"Akustischer Komfort"},{"$f":"'BNB-System'!H61","v":100},{"$f":"'BNB-System'!K61","v":1.6666666666666666E-2},null,{"$f":"IF(SUM(G66:G74)>100,100,SUM(G66:G74))","v":0},null,null,null,null,null,null,{"$f":"'BNB-System'!L61","v":200},{"$f":"IF(ISNUMBER(E65*G65/100),E65*G65/100,0)","v":0}]
[null,null,{"$f":"'BNB-System'!G62","v":"Räume Gruppe A"},{"$f":"'BNB-System'!H63","v":100},null,null,null,null,null,null,null,null,null,{"$f":"'BNB-System'!L63","v":0}]
[null,null,{"$f":"'BNB-System'!G63","v":"Musik"}]
[null,null,{"$f":"'BNB-System'!G64","v":"Sprache/ Vortrag"},{"$f":"'BNB-System'!H64","v":100},null,null,null,null,null,null,null,null,null,{"$f":"'BNB-System'!L64","v":0}]
[null,null,{"$f":"'BNB-System'!G65","v":"Unterricht Kommunikation"},{"$f":"'BNB-System'!H65","v":100},null,null,null,null,null,null,null,null,null,{"$f":"'BNB-System'!L65","v":0}]
[null,null,{"$f":"'BNB-System'!G66","v":"Sport"},{"$f":"'BNB-System'!H66","v":100},null,null,null,null,null,null,null,null,null,{"$f":"'BNB-System'!L66","v":0}]
[null,null,{"$f":"'BNB-System'!G67","v":"Räume Gruppe B"}]
[null,null,{"$f":"'BNB-System'!G68","v":"Einzel- und Mehrpersonenbüros bis 100 m3"},{"$f":"'BNB-System'!H68","v":100},null,null,null,null,null,null,null,null,null,{"$f":"'BNB-System'!L68","v":0}]
[null,null,{"$f":"'BNB-System'!G69","v":"Mehrpersonenbüros über 100 m3"},{"$f":"'BNB-System'!H69","v":100},null,null,null,null,null,null,null,null,null,{"$f":"'BNB-System'!L69","v":0}]
[null,null,{"$f":"'BNB-System'!G70","v":"Weitere Räume"},{"$f":"'BNB-System'!H70","v":100},null,null,null,null,null,null,null,null,null,{"$f":"'BNB-System'!L70","v":0}]
[null,{"$f":"'BNB-System'!F71","v":" 3.1.5"},{"$f":"'BNB-System'!G71","v":"Visueller Komfort"},{"$f":"'BNB-System'!H71","v":100},{"$f":"'BNB-System'!K71","v":1.6666666666666666E-2},null,{"$f":"IF(SUM(G76:G82)>100,100,SUM(G76:G82))","v":0},null,null,null,null,null,null,{"$f":"'BNB-System'!L71","v":200},{"$f":"IF(ISNUMBER(E75*G75/100),E75*G75/100,0)","v":0}]
[null,null,{"$f":"'BNB-System'!G72","v":"Tageslichtverfügbarkeit Gesamtgebäude"},{"$f":"'BNB-System'!H72","v":15},null,null,null,null,null,null,null,null,null,{"$f":"'BNB-System'!L72","v":0}]
[null,null,{"$f":"'BNB-System'!G73","v":"Tageslichtverfügbarkeit ständige Arbeitsplätze"},{"$f":"'BNB-System'!H73","v":15},null,null,null,null,null,null,null,null,null,{"$f":"'BNB-System'!L73","v":0}]
[null,null,{"$f":"'BNB-System'!G74","v":"Nachweis de Sichtverbindung außen"},{"$f":"'BNB-System'!H74","v":35},null,null,null,null,null,null,null,null,null,{"$f":"'BNB-System'!L74","v":0}]
[null,null,{"$f":"'BNB-System'!G75","v":"Blendfreiheit Tageslicht"},{"$f":"'BNB-System'!H75","v":10},null,null,null,null,null,null,null,null,null,{"$f":"'BNB-System'!L75","v":0}]
[null,null,{"$f":"'BNB-System'!G76","v":"Blendfreiheit  Kunstlicht"},{"$f":"'BNB-System'!H76","v":5},null,null,null,null,null,null,null,null,null,{"$f":"'BNB-System'!L76","v":0}]
[null,null,{"$f":"'BNB-System'!G77","v":"Lichtverteilung"},{"$f":"'BNB-System'!H77","v":20},null,null,null,null,null,null,null,null,null,{"$f":"'BNB-System'!L77","v":0}]
[null,null,{"$f":"'BNB-System'!G78","v":"Farbwiedergabe"},{"$f":"'BNB-System'!H78","v":10},null,null,null,null,null,null,null,null,null,{"$f":"'BNB-System'!L78","v":0}]
[null,{"$f":"'BNB-System'!F79","v":" 3.1.6"},{"$f":"'BNB-System'!G79","v":"Einflussnahmemöglichkeiten durch Nutzer"},{"$f":"'BNB-System'!H79","v":100},{"$f":"'BNB-System'!K79","v":1.6666666666666666E-2},null,{"$f":"IF(SUM(G84:G92)>100,100,SUM(G84:G92))","v":0},null,null,null,null,null,null,{"$f":"'BNB-System'!L79","v":200},{"$f":"IF(ISNUMBER(E83*G83/100),E83*G83/100,0)","v":0}]
[null,null,{"$f":"'BNB-System'!G80","v":"Lüftung"},{"$f":"'BNB-System'!H80","v":10},null,null,null,null,null,null,null,null,null,{"$f":"'BNB-System'!L80","v":0}]
[null,null,{"$f":"'BNB-System'!G81","v":"Sonnenschutz"},{"$f":"'BNB-System'!H81","v":10},null,null,null,null,null,null,null,null,null,{"$f":"'BNB-System'!L81","v":0}]
[null,null,{"$f":"'BNB-System'!G82","v":"Blendschutz"},{"$f":"'BNB-System'!H82","v":10},null,null,null,null,null,null,null,null,null,{"$f":"'BNB-System'!L82","v":0}]
[null,null,{"$f":"'BNB-System'!G83","v":"Temperaturen während der Heizperiode"},{"$f":"'BNB-System'!H83","v":10},null,null,null,null,null,null,null,null,null,{"$f":"'BNB-System'!L83","v":0}]
[null,null,{"$f":"'BNB-System'!G84","v":"Temperaturen außerhalb der Heizperiode"},{"$f":"'BNB-System'!H84","v":15},null,null,null,null,null,null,null,null,null,{"$f":"'BNB-System'!L84","v":0}]
[null,null,{"$f":"'BNB-System'!G85","v":"Steuerung von Tageslicht"},{"$f":"'BNB-System'!H85","v":10},null,null,null,null,null,null,null,null,null,{"$f":"'BNB-System'!L85","v":0}]
[null,null,{"$f":"'BNB-System'!G86","v":"Steuerung von  Kunstlicht"},{"$f":"'BNB-System'!H86","v":10},null,null,null,null,null,null,null,null,null,{"$f":"'BNB-System'!L87","v":0}]
[null,null,{"$f":"'BNB-System'!G87","v":"Bedienfreundlichkeit"},{"$f":"'BNB-System'!H87","v":10}]
[null,null,{"$f":"'BNB-System'!G88","v":"Funktionskonzept der Haustechnik"},{"$f":"'BNB-System'!H88","v":15},null,null,null,null,null,null,null,null,null,{"$f":"'BNB-System'!L88","v":0}]
[null,{"$f":"'BNB-System'!F89","v":" 3.1.7"},{"$f":"'BNB-System'!G89","v":"Aufenthaltsmerkmale im Außenraum"},{"$f":"'BNB-System'!H89","v":100},{"$f":"'BNB-System'!K89","v":1.6666666666666666E-2},null,{"$f":"IF(SUM(G94:G97)>100,100,SUM(G94:G97))","v":0},null,null,null,null,null,null,{"$f":"'BNB-System'!L89","v":200},{"$f":"IF(ISNUMBER(E93*G93/100),E93*G93/100,0)","v":0}]
[null,null,{"$f":"'BNB-System'!G90","v":"Anzahl und Vielfalt Sitzgelegenheiten"},{"$f":"'BNB-System'!H90","v":30},null,null,null,null,null,null,null,null,null,{"$f":"'BNB-System'!L90","v":0}]
[null,null,{"$f":"'BNB-System'!G91","v":"Anzahlund Vielfalt der Spiel- und Sportmöglichkeiten"},{"$f":"'BNB-System'!H91","v":15},null,null,null,null,null,null,null,null,null,{"$f":"'BNB-System'!L91","v":0}]
[null,null,{"$f":"'BNB-System'!G92","v":"Zuordnung von Freibereichen zu Innenräumen"},{"$f":"'BNB-System'!H92","v":20},null,null,null,null,null,null,null,null,null,{"$f":"'BNB-System'!L92","v":0}]
[null,null,{"$f":"'BNB-System'!G93","v":"Ausstattungsmerkmale"},{"$f":"'BNB-System'!H93","v":39},null,null,null,null,null,null,null,null,null,{"$f":"'BNB-System'!L93","v":0}]
[null,{"$f":"'BNB-System'!F94","v":" 3.1.8"},{"$f":"'BNB-System'!G94","v":"Sicherheit"},{"$f":"'BNB-System'!H94","v":100},{"$f":"'BNB-System'!K94","v":8.3333333333333332E-3},null,null,null,null,null,null,null,null,{"$f":"'BNB-System'!L94","v":100},{"$f":"IF(ISNUMBER(E98*G98/100),E98*G98/100,0)","v":0}]
[null,{"$f":"'BNB-System'!F95","v":" 3.1.9"},{"$f":"'BNB-System'!G95","v":"Innenraumqualität"},{"$f":"'BNB-System'!H95","v":100},{"$f":"'BNB-System'!K95","v":2.4999999999999998E-2},null,{"$f":"IF(SUM(G100:G103)>100,100,SUM(G100:G103))","v":0}]
[null,null,{"$f":"'BNB-System'!G96","v":"Aufenthaltsqualitäten der Erschließungsflächen"},{"$f":"'BNB-System'!H96","v":45}]
[null,null,{"$f":"'BNB-System'!G97","v":"Innere Sitzbeziehung"},{"$f":"'BNB-System'!H97","v":15}]
[null,null,{"$f":"'BNB-System'!G98","v":"Flexibilität der Raumnutzung"},{"$f":"'BNB-System'!H98","v":30}]
[null,null,{"$f":"'BNB-System'!G99","v":"Aufbewahrungsmöglichkeiten"},{"$f":"'BNB-System'!H99","v":40}]
[null,null,{"$f":"'BNB-System'!G100","v":"Funktionalität"},null,null,null,null,null,null,null,null,null,null,{"$f":"'BNB-System'!L100","v":0}]
[null,{"$f":"'BNB-System'!F101","v":" 3.2.1"},{"$f":"'BNB-System'!G101","v":"Barrierefreiheit"},{"$f":"'BNB-System'!H101","v":100},{"$f":"'BNB-System'!K101","v":1.6666666666666666E-2},null,null,null,null,null,null,null,null,{"$f":"'BNB-System'!L101","v":200},{"$f":"IF(ISNUMBER(E105*G105/100),E105*G105/100,0)","v":0}]
[null,{"$f":"'BNB-System'!F102","v":" 3.2.4"},{"$f":"'BNB-System'!G102","v":"Zugänglichkeit"},{"$f":"'BNB-System'!H102","v":100},{"$f":"'BNB-System'!K102","v":1.6666666666666666E-2},null,{"$f":"IF(SUM(G107:G110)>100,100,SUM(G107:G110))","v":0},null,null,null,null,null,null,{"$f":"'BNB-System'!L102","v":200},0]
[null,null,{"$f":"'BNB-System'!G103","v":"Grundsätzliche öffentliche Zugänglichkeit des Gebäudes"},{"$f":"'BNB-System'!H103","v":20},null,null,null,null,null,null,null,null,null,{"$f":"'BNB-System'!L103","v":0}]
[null,null,{"$f":"'BNB-System'!G104","v":"Qualitative Merkmale der öffentlichen Zugänglichkeit des Gebäudes"},{"$f":"'BNB-System'!H104","v":50},null,null,null,null,null,null,null,null,null,{"$f":"'BNB-System'!L104","v":0}]
[null,null,{"$f":"'BNB-System'!G105","v":"Nutzungsmerkmale der Zugänglichkeit"},{"$f":"'BNB-System'!H105","v":50},null,null,null,null,null,null,null,null,null,{"$f":"'BNB-System'!L105","v":0}]
[null,null,{"$f":"'BNB-System'!G106","v":"Qualitative Aspekte der öffentlichen Zugänglichkeit der Freiflächen"},{"$f":"'BNB-System'!H106","v":20},null,null,null,null,null,null,null,null,null,{"$f":"'BNB-System'!L106","v":0}]
[null,{"$f":"'BNB-System'!F107","v":" 3.2.5"},{"$f":"'BNB-System'!G107","v":"Mobilitätsinfrastruktur"},{"$f":"'BNB-System'!H107","v":100},{"$f":"'BNB-System'!K107","v":8.3333333333333332E-3},null,{"$f":"IF(SUM(G112:G114)>100,100,SUM(G112:G114))","v":0},null,null,null,null,null,null,{"$f":"'BNB-System'!L107","v":100},{"$f":"IF(ISNUMBER(E111*G111/100),E111*G111/100,0)","v":0}]
[null,null,{"$f":"'BNB-System'!G108","v":"Anzahl der Fahrradstellplätze"},{"$f":"'BNB-System'!H108","v":40},null,null,null,null,null,null,null,null,null,{"$f":"'BNB-System'!L108","v":0}]
[null,null,{"$f":"'BNB-System'!G109","v":"Anzahl der Lademöglichkeiten und Carsharing-Stellplätze"},{"$f":"'BNB-System'!H109","v":20},null,null,null,null,null,null,null,null,null,{"$f":"'BNB-System'!L109","v":0}]
[null,null,{"$f":"'BNB-System'!G110","v":"Qualitative Anforderungen an Fahrradstellplätze"},{"$f":"'BNB-System'!H110","v":60},null,null,null,null,null,null,null,null,null,{"$f":"'BNB-System'!L110","v":0}]
[null,null,{"$f":"'BNB-System'!G111","v":"Sicherung der Gestaltungsqualität"},null,null,null,null,null,null,null,null,null,null,{"$f":"'BNB-System'!L111","v":0}]
[null,{"$f":"'BNB-System'!F112","v":" 3.3.1"},{"$f":"'BNB-System'!G112","v":"Gestalterische und städtebauliche Qualität"},{"$f":"'BNB-System'!H112","v":100},{"$f":"'BNB-System'!K112","v":2.4999999999999998E-2},null,{"$f":"IF(AND(G117>0,G121<=G122),SUM(G117:G120),IF(AND(G117>0,G122<=G121),SUM(G117:G120),IF(G121>0,G121,IF(G122>0,G122,))))","v":0},null,null,null,null,null,null,{"$f":"'BNB-System'!L112","v":300},{"$f":"IF(ISNUMBER(E116*G116/100),E116*G116/100,0)","v":0}]
[null,null,{"$f":"'BNB-System'!G113","v":"Fortentwicklung der gestalterischen und städtebaulichen Qualität des Bestandsgebäudes"},{"$f":"'BNB-System'!H113","v":40},null,null,null,null,null,null,null,null,null,{"$f":"'BNB-System'!L113","v":0}]
[null,null,{"$f":"'BNB-System'!G114","v":"Wettbewerbsverfahren"},{"$f":"'BNB-System'!H114","v":35},null,null,null,null,null,null,null,null,null,{"$f":"'BNB-System'!L114","v":0}]
[null,null,{"$f":"'BNB-System'!G115","v":"Ausführung des Entwurfs eines der Preisträger"},{"$f":"'BNB-System'!H115","v":20},null,null,null,null,null,null,null,null,null,{"$f":"'BNB-System'!L115","v":0}]
[null,null,{"$f":"'BNB-System'!G116","v":"Beauftragung des Planungsteams"},{"$f":"'BNB-System'!H116","v":5},null,null,null,null,null,null,null,null,null,{"$f":"'BNB-System'!L116","v":0}]
[null,null,{"$f":"'BNB-System'!G117","v":"Auszeichnung mit einem Architekturpreis"},{"$f":"'BNB-System'!H117","v":40},null,null,null,null,null,null,null,null,null,{"$f":"'BNB-System'!L117","v":0}]
[null,null,{"$f":"'BNB-System'!G118","v":"Unabhängiges Expertengremium"},{"$f":"'BNB-System'!H118","v":30},null,null,null,null,null,null,null,null,null,{"$f":"'BNB-System'!L118","v":0}]
[null,{"$f":"'BNB-System'!F119","v":" 3.3.2"},{"$f":"'BNB-System'!G119","v":"Kunst am Bau "},{"$f":"'BNB-System'!H119","v":100},{"$f":"'BNB-System'!K119","v":8.3333333333333332E-3},null,{"$f":"IF(SUM(G124:G127)>100,100,SUM(G124:G127))","v":0},null,null,null,null,null,null,{"$f":"'BNB-System'!L119","v":100},{"$f":"IF(ISNUMBER(E123*G123/100),E123*G123/100,0)","v":0}]
[null,null,{"$f":"'BNB-System'!G120","v":"Mindestanforderung"},{"$f":"'BNB-System'!H120","v":10},null,null,null,null,null,null,null,null,null,{"$f":"'BNB-System'!L120","v":0}]
[null,null,{"$f":"'BNB-System'!G121","v":"Bereitstellung von Mitteln im Rahmen der Bauaufgabe"},{"$f":"'BNB-System'!H121","v":30},null,null,null,null,null,null,null,null,null,{"$f":"'BNB-System'!L121","v":0}]
[null,null,{"$f":"'BNB-System'!G122","v":"Umsetzung des Leitfadens Kunst am Bau"},{"$f":"'BNB-System'!H122","v":40},null,null,null,null,null,null,null,null,null,{"$f":"'BNB-System'!L122","v":0}]
[null,null,{"$f":"'BNB-System'!G123","v":"Öffentlichkeitsarbeit, Rezeption  der Kunst am Bau"},{"$f":"'BNB-System'!H123","v":20},null,null,null,null,null,null,null,null,null,{"$f":"'BNB-System'!L123","v":0}]
[null,null,null,null,null,null,null,null,null,null,null,null,null,{"$f":"'BNB-System'!L124","v":0}]
[null,{"$f":"'BNB-System'!F125","v":"Technische Qualität"},null,null,{"$f":"'BNB-System'!K125","v":0.22500000000000001},null,{"$f":"G132*(E132/100)+G137*(E137/100)+G144*(E144/100)+G155*(E155/100)+G156*(E156/100)+G157*(E157/100)","v":0},null,null,null,null,null,null,{"$f":"'BNB-System'!L125","v":1000}]
[null,null,null,null,null,null,null,null,null,null,null,null,null,{"$f":"'BNB-System'!L126","v":0}]
[null,null,{"$f":"'BNB-System'!G127","v":"technische Ausführung"},null,null,null,null,null,null,null,null,null,null,{"$f":"'BNB-System'!L127","v":0}]
[null,{"$f":"'BNB-System'!F128","v":" 4.1.1"},{"$f":"'BNB-System'!G128","v":"Schallschutz "},{"$f":"'BNB-System'!H128","v":100},{"$f":"'BNB-System'!K128","v":4.5000000000000005E-2},null,{"$f":"IF(SUM(G133:G136)>100,100,SUM(G133:G136))","v":0},null,null,null,null,null,null,{"$f":"'BNB-System'!L128","v":200},{"$f":"IF(ISNUMBER(E132*G132/100),E132*G132/100,0)","v":0}]
[null,null,{"$f":"'BNB-System'!G129","v":"Luftschallschutz gegen Außenlärm"},{"$f":"'BNB-System'!H129","v":20},null,null,null,null,null,null,null,null,null,{"$f":"'BNB-System'!L129","v":0}]
[null,null,{"$f":"'BNB-System'!G130","v":"Luftschallschutz"},{"$f":"'BNB-System'!H130","v":30},null,null,null,null,null,null,null,null,null,{"$f":"'BNB-System'!L130","v":0}]
[null,null,{"$f":"'BNB-System'!G131","v":"Trittschallschutz"},{"$f":"'BNB-System'!H131","v":30},null,null,null,null,null,null,null,null,null,{"$f":"'BNB-System'!L131","v":0}]
[null,null,{"$f":"'BNB-System'!G132","v":"Schallschutz gegenüber haustechnischen Anlagen"},{"$f":"'BNB-System'!H132","v":20},null,null,null,null,null,null,null,null,null,{"$f":"'BNB-System'!L132","v":0}]
[null,{"$f":"'BNB-System'!F133","v":" 4.1.2"},{"$f":"'BNB-System'!G133","v":"Wärme- und Tauwasserschutz "},{"$f":"'BNB-System'!H133","v":100},{"$f":"'BNB-System'!K133","v":4.5000000000000005E-2},null,{"$f":"IF(SUM(G138:G143)>100,100,SUM(G138:G143))","v":0},null,null,null,null,null,null,{"$f":"'BNB-System'!L133","v":200},{"$f":"IF(ISNUMBER(E137*G137/100),E137*G137/100,0)","v":0}]
[null,null,{"$f":"'BNB-System'!G134","v":"Mittlere Wärmeduchgangskoeffizienten"},{"$f":"'BNB-System'!H134","v":30},null,null,null,null,null,null,null,null,null,{"$f":"'BNB-System'!L134","v":0}]
[null,null,{"$f":"'BNB-System'!G135","v":"Wärmebrückenzuschlag"},{"$f":"'BNB-System'!H135","v":15},null,null,null,null,null,null,null,null,null,{"$f":"'BNB-System'!L135","v":0}]
[null,null,{"$f":"'BNB-System'!G136","v":"Klassen der Luftdurchlässigkeit (Fugendurchlässigkeit)"},{"$f":"'BNB-System'!H136","v":15},null,null,null,null,null,null,null,null,null,{"$f":"'BNB-System'!L136","v":0}]
[null,null,{"$f":"'BNB-System'!G137","v":"Tauwasserbildung"},{"$f":"'BNB-System'!H137","v":10},null,null,null,null,null,null,null,null,null,{"$f":"'BNB-System'!L137","v":0}]
[null,null,{"$f":"'BNB-System'!G138","v":"Luftwechsel"},{"$f":"'BNB-System'!H138","v":15},null,null,null,null,null,null,null,null,null,{"$f":"'BNB-System'!L138","v":0}]
[null,null,{"$f":"'BNB-System'!G139","v":"Sonneneintragswert"},{"$f":"'BNB-System'!H139","v":15},null,null,null,null,null,null,null,null,null,{"$f":"'BNB-System'!L139","v":0}]
[null,{"$f":"'BNB-System'!F140","v":" 4.1.3"},{"$f":"'BNB-System'!G140","v":"Reinigungs- und Instandhaltungsfreundlichkeit"},{"$f":"'BNB-System'!H140","v":100},{"$f":"'BNB-System'!K140","v":4.5000000000000005E-2},null,{"$f":"IF(SUM(G145:G154)>100,100,SUM(G145:G154))","v":0},null,null,null,null,null,null,{"$f":"'BNB-System'!L140","v":200},{"$f":"IF(ISNUMBER(E144*G144/100),E144*G144/100,0)","v":0}]
[null,null,{"$f":"'BNB-System'!G141","v":"Tragkonstruktion"},{"$f":"'BNB-System'!H141","v":15},null,null,null,null,null,null,null,null,null,{"$f":"'BNB-System'!L141","v":0}]
[null,null,{"$f":"'BNB-System'!G142","v":"Zugänglichkeit der Außenglasflächen"},{"$f":"'BNB-System'!H142","v":12},null,null,null,null,null,null,null,null,null,{"$f":"'BNB-System'!L142","v":0}]
[null,null,{"$f":"'BNB-System'!G143","v":"Außenbauteile"},{"$f":"'BNB-System'!H143","v":9},null,null,null,null,null,null,null,null,null,{"$f":"'BNB-System'!L143","v":0}]
[null,null,{"$f":"'BNB-System'!G144","v":"Bodenbelag"},{"$f":"'BNB-System'!H144","v":9},null,null,null,null,null,null,null,null,null,{"$f":"'BNB-System'!L144","v":0}]
[null,null,{"$f":"'BNB-System'!G145","v":"Schmutzfangzone"},{"$f":"'BNB-System'!H145","v":9},null,null,null,null,null,null,null,null,null,{"$f":"'BNB-System'!L145","v":0}]
[null,null,{"$f":"'BNB-System'!G146","v":"Fußbodenleisten"},{"$f":"'BNB-System'!H146","v":9},null,null,null,null,null,null,null,null,null,{"$f":"'BNB-System'!L146","v":0}]
[null,null,{"$f":"'BNB-System'!G147","v":"Hindernisfreie Grundrissgestaltung"},{"$f":"'BNB-System'!H147","v":9},null,null,null,null,null,null,null,null,null,{"$f":"'BNB-System'!L147","v":0}]
[null,null,{"$f":"'BNB-System'!G148","v":"Einbauten"},{"$f":"'BNB-System'!H148","v":10},null,null,null,null,null,null,null,null,null,{"$f":"'BNB-System'!L148","v":0}]
[null,null,{"$f":"'BNB-System'!G149","v":"Zugänglichkeit der Innenglasflächen "},{"$f":"'BNB-System'!H149","v":9}]
[null,null,{"$f":"'BNB-System'!G150","v":"Wände"},{"$f":"'BNB-System'!H150","v":9},null,null,null,null,null,null,null,null,null,{"$f":"'BNB-System'!L150","v":0}]
[null,{"$f":"'BNB-System'!F151","v":" 4.1.4"},{"$f":"'BNB-System'!G151","v":"Rückbau, Trennung und Verwertung"},{"$f":"'BNB-System'!H151","v":100},{"$f":"'BNB-System'!K151","v":4.5000000000000005E-2},null,null,null,null,null,null,null,null,{"$f":"'BNB-System'!L151","v":200},{"$f":"IF(ISNUMBER(E155*G155/100),E155*G155/100,0)","v":0}]
[null,{"$f":"'BNB-System'!F152","v":" 4.1.5"},{"$f":"'BNB-System'!G152","v":"Widerstandsfähigkeit gegen Naturgefahren"},{"$f":"'BNB-System'!H152","v":100},{"$f":"'BNB-System'!K152","v":2.2500000000000003E-2},null,null,null,null,null,null,null,null,{"$f":"'BNB-System'!L152","v":100},0]
[null,{"$f":"'BNB-System'!F153","v":" 4.1.6"},{"$f":"'BNB-System'!G153","v":"Bedienungs- und Instandhaltungsfreundlichkeit der TGA"},{"$f":"'BNB-System'!H153","v":100},{"$f":"'BNB-System'!K153","v":2.2500000000000003E-2},null,null,null,null,null,null,null,null,{"$f":"'BNB-System'!L153","v":100},{"$f":"IF(ISNUMBER(E157*G157/100),E157*G157/100,0)","v":0}]
[null,null,null,null,null,null,null,null,null,null,null,null,null,{"$f":"'BNB-System'!L154","v":0}]
[null,{"$f":"'BNB-System'!F155","v":"Prozessqualität"},null,null,{"$f":"'BNB-System'!K155","v":0.1},null,{"$f":"G162*(E162/100)+G166*(E166/100)+G172*(E172/100)+G188*(E188/100)+G189*(E189/100)+G209*(E209/100)+G214*(E214/100)+G217*(E217/100)","v":0},null,null,null,null,null,null,{"$f":"'BNB-System'!L155","v":2500}]
[null,null,null,null,null,null,null,null,null,null,null,null,null,{"$f":"'BNB-System'!L156","v":0}]
[null,null,{"$f":"'BNB-System'!G157","v":"Planung"},null,null,null,null,null,null,null,null,null,null,{"$f":"'BNB-System'!L157","v":0}]
[null,{"$f":"'BNB-System'!F158","v":" 5.1.1"},{"$f":"'BNB-System'!G158","v":"Projektvorbereitung"},{"$f":"'BNB-System'!H158","v":100},{"$f":"'BNB-System'!K158","v":1.2E-2},null,{"$f":"IF(SUM(G163:G165)>100,100,SUM(G163:G165))","v":0},null,null,null,null,null,null,{"$f":"'BNB-System'!L158","v":300},{"$f":"IF(ISNUMBER(E162*G162/100),E162*G162/100,0)","v":0}]
[null,null,{"$f":"'BNB-System'!G159","v":"Bedarfsplanung oder vergleichbare Planung"},{"$f":"'BNB-System'!H159","v":35},null,null,null,null,null,null,null,null,null,{"$f":"'BNB-System'!L159","v":0}]
[null,null,{"$f":"'BNB-System'!G160","v":"Zielvereinbarung"},{"$f":"'BNB-System'!H160","v":35},null,null,null,null,null,null,null,null,null,{"$f":"'BNB-System'!L160","v":0}]
[null,null,{"$f":"'BNB-System'!G161","v":"Architektenwettbewerb"},{"$f":"'BNB-System'!H161","v":30},null,null,null,null,null,null,null,null,null,{"$f":"'BNB-System'!L161","v":0}]
[null,{"$f":"'BNB-System'!F162","v":" 5.1.2"},{"$f":"'BNB-System'!G162","v":"Integrale Planung"},{"$f":"'BNB-System'!H162","v":100},{"$f":"'BNB-System'!K162","v":1.2E-2},null,{"$f":"IF(SUM(G167:G171)>100,100,SUM(G167:G171))","v":0},null,null,null,null,null,null,{"$f":"'BNB-System'!L162","v":300},{"$f":"IF(ISNUMBER(E166*G166/100),E166*G166/100,0)","v":0}]
[null,null,{"$f":"'BNB-System'!G163","v":"Integrales Planungsteam"},{"$f":"'BNB-System'!H163","v":20},null,null,null,null,null,null,null,null,null,{"$f":"'BNB-System'!L163","v":0}]
[null,null,{"$f":"'BNB-System'!G164","v":"Qualifikation des Planungsteams"},{"$f":"'BNB-System'!H164","v":20},null,null,null,null,null,null,null,null,null,{"$f":"'BNB-System'!L164","v":0}]
[null,null,{"$f":"'BNB-System'!G165","v":"Integraler Planungsprozess"},{"$f":"'BNB-System'!H165","v":20},null,null,null,null,null,null,null,null,null,{"$f":"'BNB-System'!L165","v":0}]
[null,null,{"$f":"'BNB-System'!G166","v":"Nutzerbeteiligung"},{"$f":"'BNB-System'!H166","v":30},null,null,null,null,null,null,null,null,null,{"$f":"'BNB-System'!L166","v":0}]
[null,null,{"$f":"'BNB-System'!G167","v":"Öffentlichkeitsbeteiligung"},{"$f":"'BNB-System'!H167","v":10},null,null,null,null,null,null,null,null,null,{"$f":"'BNB-System'!L167","v":0}]
[null,{"$f":"'BNB-System'!F168","v":" 5.1.3"},{"$f":"'BNB-System'!G168","v":"Komplexität und Optimierung der Planung"},{"$f":"'BNB-System'!H168","v":100},{"$f":"'BNB-System'!K168","v":1.2E-2},null,{"$f":"IF(SUM(G173:G187)>100,100,SUM(G173:G187))","v":0},null,null,null,null,null,null,{"$f":"'BNB-System'!L168","v":300},{"$f":"IF(ISNUMBER(E172*G172/100),E172*G172/100,0)","v":0}]
[null,null,{"$f":"'BNB-System'!G169","v":"SiGe-Plan"},{"$f":"'BNB-System'!H169","v":10},null,null,null,null,null,null,null,null,null,{"$f":"'BNB-System'!L169","v":0}]
[null,null,{"$f":"'BNB-System'!G170","v":"Ver- und Entsiegelungskonzept"},{"$f":"'BNB-System'!H170","v":10},null,null,null,null,null,null,null,null,null,{"$f":"'BNB-System'!L170","v":0}]
[null,null,{"$f":"'BNB-System'!G171","v":"Energiekonzept"},{"$f":"'BNB-System'!H171","v":15},null,null,null,null,null,null,null,null,null,{"$f":"'BNB-System'!L171","v":0}]
[null,null,{"$f":"'BNB-System'!G172","v":"Mess- und Monitoringkonzept"},{"$f":"'BNB-System'!H172","v":15},null,null,null,null,null,null,null,null,null,{"$f":"'BNB-System'!L172","v":0}]
[null,null,{"$f":"'BNB-System'!G173","v":"Wasserkonzept"},{"$f":"'BNB-System'!H173","v":10},null,null,null,null,null,null,null,null,null,{"$f":"'BNB-System'!L173","v":0}]
[null,null,{"$f":"'BNB-System'!G174","v":"Konzept zur Vermeidung von Umwelt- und Gesundheitsrisiken aus Bauprodukten"},{"$f":"'BNB-System'!H174","v":10},null,null,null,null,null,null,null,null,null,{"$f":"'BNB-System'!L174","v":0}]
[null,null,{"$f":"'BNB-System'!G175","v":"Lüftungskonzept"},{"$f":"'BNB-System'!H175","v":10},null,null,null,null,null,null,null,null,null,{"$f":"'BNB-System'!L175","v":0}]
[null,null,{"$f":"'BNB-System'!G176","v":"Abfallkonzept / Wertstoffkonzept"},{"$f":"'BNB-System'!H176","v":5},null,null,null,null,null,null,null,null,null,{"$f":"'BNB-System'!L176","v":0}]
[null,null,{"$f":"'BNB-System'!G177","v":"Tages- / Kunstlichtoptimierung"},{"$f":"'BNB-System'!H177","v":10},null,null,null,null,null,null,null,null,null,{"$f":"'BNB-System'!L177","v":0}]
[null,null,{"$f":"'BNB-System'!G178","v":"Konzept zur Sicherung der Reinigungs- und Instandhaltungsfreundlichkeit"},{"$f":"'BNB-System'!H178","v":10},null,null,null,null,null,null,null,null,null,{"$f":"'BNB-System'!L178","v":0}]
[null,null,{"$f":"'BNB-System'!G179","v":"Anpassbarkeits-, Rückbau- und Recyclingkonzept"},{"$f":"'BNB-System'!H179","v":10},null,null,null,null,null,null,null,null,null,{"$f":"'BNB-System'!L179","v":0}]
[null,null,{"$f":"'BNB-System'!G180","v":"Konzept zur Vermeidung und Beherrschung von Risiken"},{"$f":"'BNB-System'!H180","v":10},null,null,null,null,null,null,null,null,null,{"$f":"'BNB-System'!L180","v":0}]
[null,null,{"$f":"'BNB-System'!G181","v":"Sonstige Konzepte zum Nachhaltigen Bauen"},{"$f":"'BNB-System'!H181","v":10},null,null,null,null,null,null,null,null,null,{"$f":"'BNB-System'!L181","v":0}]
[null,null,{"$f":"'BNB-System'!G182","v":"Prüfung der Planungsunterlagen durch unabhängige Dritte"},{"$f":"'BNB-System'!H182","v":5},null,null,null,null,null,null,null,null,null,{"$f":"'BNB-System'!L182","v":0}]
[null,null,{"$f":"'BNB-System'!G183","v":"Durchführung von Variantenvergleichen"},{"$f":"'BNB-System'!H183","v":10},null,null,null,null,null,null,null,null,null,{"$f":"'BNB-System'!L183","v":0}]
[null,{"$f":"'BNB-System'!F184","v":" 5.1.4"},{"$f":"'BNB-System'!G184","v":"Ausschreibung und Vergabe"},{"$f":"'BNB-System'!H184","v":100},{"$f":"'BNB-System'!K184","v":8.0000000000000002E-3},null,null,null,null,null,null,null,null,{"$f":"'BNB-System'!L184","v":200},{"$f":"IF(ISNUMBER(E188*G188/100),E188*G188/100,0)","v":0}]
[null,{"$f":"'BNB-System'!F185","v":" 5.1.5"},{"$f":"'BNB-System'!G185","v":"Voraussetzungen für eine optimale Bewirtschaftung"},{"$f":"'BNB-System'!H185","v":100},{"$f":"'BNB-System'!K185","v":8.0000000000000002E-3},null,{"$f":"IF(SUM(G190:G193)>100,100,SUM(G190:G193))","v":0},null,null,null,null,null,null,{"$f":"'BNB-System'!L185","v":200},0]
[null,null,{"$f":"'BNB-System'!G186","v":"Erstellung einer Gebäudeakte / Objektdokumentation"},{"$f":"'BNB-System'!H186","v":25},null,null,null,null,null,null,null,null,null,{"$f":"'BNB-System'!L186","v":0}]
[null,null,{"$f":"'BNB-System'!G187","v":"Erstellung von Wartungs-, Inspektions-, Betriebs-, und Pflegeanleitungen"},{"$f":"'BNB-System'!H187","v":25},null,null,null,null,null,null,null,null,null,{"$f":"'BNB-System'!L187","v":0}]
[null,null,{"$f":"'BNB-System'!G188","v":"Anpassung der Pläne und Berechnungen an das realisierte Gebäude"},{"$f":"'BNB-System'!H188","v":25},null,null,null,null,null,null,null,null,null,{"$f":"'BNB-System'!L188","v":0}]
[null,null,{"$f":"'BNB-System'!G189","v":"Erstellung eines Nutzerhandbuches"},{"$f":"'BNB-System'!H189","v":25},null,null,null,null,null,null,null,null,null,{"$f":"'BNB-System'!L189","v":0}]
[null,{"$f":"'BNB-System'!F190","v":" 5.1.6"},{"$f":"'BNB-System'!G190","v":"Bestandsanalyse"},{"$f":"'BNB-System'!H190","v":100},{"$f":"'BNB-System'!K190","v":1.2E-2},null,{"$f":"IF(SUM(G195:G203)>100,100,SUM(G195:G203))","v":0}]
[null,null,{"$f":"'BNB-System'!G191","v":"Bestandsaufnahme Geometrie"},{"$f":"'BNB-System'!H191","v":10}]
[null,null,{"$f":"'BNB-System'!G192","v":"Bestandsaufnahme Baukonstruktion und Baustoffe"},{"$f":"'BNB-System'!H192","v":20}]
[null,null,{"$f":"'BNB-System'!G193","v":"Bestandsaufnahme Haustechnik"},{"$f":"'BNB-System'!H193","v":10}]
[null,null,{"$f":"'BNB-System'!G194","v":"Bestandsaufnahme Bau- und Nutzungsgeschichte"},{"$f":"'BNB-System'!H194","v":5}]
[null,null,{"$f":"'BNB-System'!G195","v":"Bestandsaufnahme Exposition"},{"$f":"'BNB-System'!H195","v":5}]
[null,null,{"$f":"'BNB-System'!G196","v":"Baudiagnose Tragwerk"},{"$f":"'BNB-System'!H196","v":15}]
[null,null,{"$f":"'BNB-System'!G197","v":"Baudiagnose Energetische Qualität"},{"$f":"'BNB-System'!H197","v":15}]
[null,null,{"$f":"'BNB-System'!G198","v":"Baudiagnose Schadstoffe"},{"$f":"'BNB-System'!H198","v":10}]
[null,null,{"$f":"'BNB-System'!G199","v":"Baudiagnose Feuchte- und Salzbelastung"},{"$f":"'BNB-System'!H199","v":10}]
[null,{"$f":"'BNB-System'!F200","v":" 5.1.7"},{"$f":"'BNB-System'!G200","v":"Rückbaumaßnahmen"},{"$f":"'BNB-System'!H200","v":100},{"$f":"'BNB-System'!K200","v":4.0000000000000001E-3},null,{"$f":"IF(SUM(G205:G207)>100,100,SUM(G205:G207))","v":0}]
[null,null,{"$f":"'BNB-System'!G201","v":"Planung des Rückbaus"},{"$f":"'BNB-System'!H201","v":50}]
[null,null,{"$f":"'BNB-System'!G202","v":"Selektiver Rückbau"},{"$f":"'BNB-System'!H202","v":25}]
[null,null,{"$f":"'BNB-System'!G203","v":"Prüfen auf Abfalltrennung und Entsorgung"},{"$f":"'BNB-System'!H203","v":25}]
[null,null,{"$f":"'BNB-System'!G204","v":"Bauausführung"},null,null,null,null,null,null,null,null,null,null,{"$f":"'BNB-System'!L204","v":0}]
[null,{"$f":"'BNB-System'!F205","v":" 5.2.1"},{"$f":"'BNB-System'!G205","v":"Baustelle / Bauprozess"},{"$f":"'BNB-System'!H205","v":100},{"$f":"'BNB-System'!K205","v":8.0000000000000002E-3},null,{"$f":"IF(SUM(G210:G213)>100,100,SUM(G210:G213))","v":0},null,null,null,null,null,null,{"$f":"'BNB-System'!L205","v":200},{"$f":"IF(ISNUMBER(E209*G209/100),E209*G209/100,0)","v":0}]
[null,null,{"$f":"'BNB-System'!G206","v":"Wertstoffoptimierte Baustelle"},{"$f":"'BNB-System'!H206","v":25},null,null,null,null,null,null,null,null,null,{"$f":"'BNB-System'!L206","v":0}]
[null,null,{"$f":"'BNB-System'!G207","v":"Lärmarme Baustelle"},{"$f":"'BNB-System'!H207","v":25},null,null,null,null,null,null,null,null,null,{"$f":"'BNB-System'!L207","v":0}]
[null,null,{"$f":"'BNB-System'!G208","v":"Staubarme Baustelle"},{"$f":"'BNB-System'!H208","v":25},null,null,null,null,null,null,null,null,null,{"$f":"'BNB-System'!L208","v":0}]
[null,null,{"$f":"'BNB-System'!G209","v":"Bodenschutz auf der Baustelle"},{"$f":"'BNB-System'!H209","v":25},null,null,null,null,null,null,null,null,null,{"$f":"'BNB-System'!L209","v":0}]
[null,{"$f":"'BNB-System'!F210","v":" 5.2.2"},{"$f":"'BNB-System'!G210","v":"Qualitätssicherung der Bauausführung"},{"$f":"'BNB-System'!H210","v":100},{"$f":"'BNB-System'!K210","v":1.2E-2},null,{"$f":"IF(SUM(G215:G216)>100,100,SUM(G215:G216))","v":0},null,null,null,null,null,null,{"$f":"'BNB-System'!L210","v":300},{"$f":"IF(ISNUMBER(E214*G214/100),E214*G214/100,0)","v":0}]
[null,null,{"$f":"'BNB-System'!G211","v":"Dokumentation"},{"$f":"'BNB-System'!H211","v":50},null,null,null,null,null,null,null,null,null,{"$f":"'BNB-System'!L211","v":0}]
[null,null,{"$f":"'BNB-System'!G212","v":"Messungen zur Qualitätskontrolle"},{"$f":"'BNB-System'!H212","v":50},null,null,null,null,null,null,null,null,null,{"$f":"'BNB-System'!L212","v":0}]
[null,{"$f":"'BNB-System'!F213","v":" 5.2.3"},{"$f":"'BNB-System'!G213","v":"Systematische Inbetriebnahme"},{"$f":"'BNB-System'!H213","v":100},{"$f":"'BNB-System'!K213","v":1.2E-2},null,null,null,null,null,null,null,null,{"$f":"'BNB-System'!L213","v":300},{"$f":"IF(ISNUMBER(E217*G217/100),E217*G217/100,0)","v":0}]
[]
[null,null,null,null,null,null,null,null,null,null,null,null,null,{"$f":"'BNB-System'!L215","v":0}]
[null,{"$f":"'BNB-System'!F216","v":"Standortmerkmale"},null,null,{"$f":"'BNB-System'!K216","v":1},null,{"$f":"G223*(E223/100)+G229*(E229/100)+G236*(E236/100)+G241*(E241/100)+G245*(E245/100)+G256*(E256/100)","v":0},null,null,null,null,null,null,{"$f":"'BNB-System'!L216","v":1300}]
[null,null,null,null,null,null,null,null,null,null,null,null,null,{"$f":"'BNB-System'!L217","v":0}]
[null,null,{"$f":"'BNB-System'!G218","v":"Standortmerkmale"},null,null,null,null,null,null,null,null,null,null,{"$f":"'BNB-System'!L218","v":0}]
[null,{"$f":"'BNB-System'!F219","v":" 6.1.1"},{"$f":"'BNB-System'!G219","v":"Risiken am Mikrostandort"},{"$f":"'BNB-System'!H219","v":100},{"$f":"'BNB-System'!K219","v":0.15384615384615385},null,{"$f":"IF(SUM(G224:G228)>100,100,SUM(G224:G228))","v":0},null,null,null,null,null,null,{"$f":"'BNB-System'!L219","v":200},{"$f":"IF(ISNUMBER(E223*G223/100),E223*G223/100,0)","v":0}]
[null,null,{"$f":"'BNB-System'!G220","v":"Risiken aus Man-Made-Hazards (Unfälle)"},{"$f":"'BNB-System'!H220","v":20}]
[null,null,{"$f":"'BNB-System'!G221","v":"Risiken aus Erdbeben"},{"$f":"'BNB-System'!H221","v":20}]
[null,null,{"$f":"'BNB-System'!G222","v":"Risiken aus Lawinen"},{"$f":"'BNB-System'!H222","v":20}]
[null,null,{"$f":"'BNB-System'!G223","v":"Risiken aus Sturm"},{"$f":"'BNB-System'!H223","v":20}]
[null,null,{"$f":"'BNB-System'!G224","v":"Risiken aus Hochwasser"},{"$f":"'BNB-System'!H224","v":20}]
[null,{"$f":"'BNB-System'!F225","v":" 6.1.2"},{"$f":"'BNB-System'!G225","v":"Verhältnisse am Mikrostandort"},{"$f":"'BNB-System'!H225","v":100},{"$f":"'BNB-System'!K225","v":0.15384615384615385},null,{"$f":"IF(SUM(G230:G235)>100,100,SUM(G230:G235))","v":0},null,null,null,null,null,null,{"$f":"'BNB-System'!L225","v":200},0]
[null,null,{"$f":"'BNB-System'!G226","v":"Außenluftqualität"},{"$f":"'BNB-System'!H226","v":16}]
[null,null,{"$f":"'BNB-System'!G227","v":"Außenlärmpegel"},{"$f":"'BNB-System'!H227","v":20}]
[null,null,{"$f":"'BNB-System'!G228","v":"Baugrundverhältnisse, Bodenbelastungen"},{"$f":"'BNB-System'!H228","v":16}]
[null,null,{"$f":"'BNB-System'!G229","v":"Elektromagnetische Felder"},{"$f":"'BNB-System'!H229","v":16}]
[null,null,{"$f":"'BNB-System'!G230","v":"Vorkommen von Radon"},{"$f":"'BNB-System'!H230","v":16}]
[null,null,{"$f":"'BNB-System'!G231","v":"Stadt- und Landschaftsbild / Sichtbeziehungen"},{"$f":"'BNB-System'!H231","v":16}]
[null,{"$f":"'BNB-System'!F232","v":" 6.1.3"},{"$f":"'BNB-System'!G232","v":"Quartiersmerkmale"},{"$f":"'BNB-System'!H232","v":100},{"$f":"'BNB-System'!K232","v":0.15384615384615385},null,{"$f":"IF(SUM(G237:G240)>100,100,SUM(G237:G240))","v":0},null,null,null,null,null,null,{"$f":"'BNB-System'!L232","v":200},0]
[null,null,{"$f":"'BNB-System'!G233","v":"Image, Attraktivität"},{"$f":"'BNB-System'!H233","v":25}]
[null,null,{"$f":"'BNB-System'!G234","v":"Synergie- und Konfliktpotenziale"},{"$f":"'BNB-System'!H234","v":25}]
[null,null,{"$f":"'BNB-System'!G235","v":"Kriminalität"},{"$f":"'BNB-System'!H235","v":25}]
[null,null,{"$f":"'BNB-System'!G236","v":"Pflege und Erhaltungszustand"},{"$f":"'BNB-System'!H236","v":25}]
[null,{"$f":"'BNB-System'!F237","v":" 6.1.4"},{"$f":"'BNB-System'!G237","v":"Verkehrsanbindung"},{"$f":"'BNB-System'!H237","v":100},{"$f":"'BNB-System'!K237","v":0.23076923076923078},null,{"$f":"IF(SUM(G242:G244)>100,100,SUM(G242:G244))","v":0},null,null,null,null,null,null,{"$f":"'BNB-System'!L237","v":300},0]
[null,null,{"$f":"'BNB-System'!G238","v":"Erreichbarkeit Haupt-/ Fernbahnhof"},{"$f":"'BNB-System'!H238","v":30}]
[null,null,{"$f":"'BNB-System'!G239","v":"Erreichbarkeit ÖPNV"},{"$f":"'BNB-System'!H239","v":30}]
[null,null,{"$f":"'BNB-System'!G240","v":"Fuß- und Radwege"},{"$f":"'BNB-System'!H240","v":40}]
[null,{"$f":"'BNB-System'!F241","v":" 6.1.5"},{"$f":"'BNB-System'!G241","v":"Nähe zu nutzungsrelevanten Einrichtungen"},{"$f":"'BNB-System'!H241","v":100},{"$f":"'BNB-System'!K241","v":0.15384615384615385},null,{"$f":"IF(SUM(G246:G255)>100,100,SUM(G246:G255))","v":0},null,null,null,null,null,null,{"$f":"'BNB-System'!L241","v":200},0]
[null,null,{"$f":"'BNB-System'!G242","v":"Gastronomie"},{"$f":"'BNB-System'!H242","v":10}]
[null,null,{"$f":"'BNB-System'!G243","v":"Nahversorgung"},{"$f":"'BNB-System'!H243","v":10}]
[null,null,{"$f":"'BNB-System'!G244","v":"Parkanlagen und Freiräume"},{"$f":"'BNB-System'!H244","v":10}]
[null,null,{"$f":"'BNB-System'!G245","v":"Bildung"},{"$f":"'BNB-System'!H245","v":10}]
[null,null,{"$f":"'BNB-System'!G246","v":"Öffentliche Verwaltung"},{"$f":"'BNB-System'!H246","v":10}]
[null,null,{"$f":"'BNB-System'!G247","v":"Medizinische Versorgung"},{"$f":"'BNB-System'!H247","v":10}]
[null,null,{"$f":"'BNB-System'!G248","v":"Sportstätten"},{"$f":"'BNB-System'!H248","v":10}]
[null,null,{"$f":"'BNB-System'!G249","v":"Freizeit"},{"$f":"'BNB-System'!H249","v":10}]
[null,null,{"$f":"'BNB-System'!G250","v":"Synergie- und Konfliktpotenziale"},{"$f":"'BNB-System'!H250","v":10}]
[null,null,{"$f":"'BNB-System'!G251","v":"Dienstleister"},{"$f":"'BNB-System'!H251","v":10}]
[null,{"$f":"'BNB-System'!F252","v":" 6.1.6"},{"$f":"'BNB-System'!G252","v":"Anliegende Medien / Erschließung"},{"$f":"'BNB-System'!H252","v":100},{"$f":"'BNB-System'!K252","v":0.15384615384615385},null,{"$f":"IF(SUM(G257:G260)>100,100,SUM(G257:G260))","v":0},null,null,null,null,null,null,{"$f":"'BNB-System'!L252","v":200},0]
[null,null,{"$f":"'BNB-System'!G253","v":"Leitungsgebundene Energie"},{"$f":"'BNB-System'!H253","v":25}]
[null,null,{"$f":"'BNB-System'!G254","v":"Solarenergie"},{"$f":"'BNB-System'!H254","v":25}]
[null,null,{"$f":"'BNB-System'!G255","v":"Breitband-Anschluss"},{"$f":"'BNB-System'!H255","v":25}]
[null,null,{"$f":"'BNB-System'!G256","v":"Regenwasserversickerung"},{"$f":"'BNB-System'!H256","v":25}]

{"sheet":"Bewertung durch Anwender","index":2,"n_rows":260,"n_cols":17,"rows_kept":260,"cut":false,"hidden":false,"merged":[[0,2,0,6],[3,16,4,16],[3,4,4,4],[3,17,4,17],[6,1,6,2],[3,1,4,2],[3,15,4,15],[3,3,4,3],[3,14,4,14]]}
[null,{"$f":"'BNB-System'!C1","v":"Projekt:"},{"$f":"Zielvereinbarung!C1","v":"Projektbezeichnung"},null,null,null,null,null,null,null,null,null,null,{"$f":"Zielvereinbarung!$G$1","v":"2017-11-13"}]
[null,{"$f":"'BNB-System'!C2","v":"Bewertungssystem Nachhaltiges Bauen (BNB)"}]
[null,{"$f":"'BNB-System'!C3","v":"Systemvariante Unterrichtsgebäude, Modul Komplettmodernisierung (BNB_UK) - Version 2017"}]
[null,"Nachhaltigkeitskriterien",null,"maximale Punktzahl","Gewichtung\nGesamt-bewertung","Zielwert aus der Ziel-vereinbarung","Zielwert  der Ziel-vereinbarung","Zielwert  der Ziel-vereinbarung","1. Korrektur \nZielwert","Kommentar","2. Korrektur \nZielwert","Kommentar"," Zwischen-bewertung","Endbewertung",null,"Zielwert","Gesamt-bewertung gemäß \nEnd-bewertung"]
[null,null,null,null,null,null,"Soll","aus Registerkarte \"Zielvereinbarung\"",{"$f":"TODAY()","v":"2018-03-12"},"Eintrag erforderlich\n für Zielwertkorrektur","2015-02-22","Eintrag erforderlich\n für Zielwertkorrektur",{"$f":"TODAY()","v":"2018-03-12"}]
[]
[null,"Gesamterfüllungsgrad",null,null,null,null,{"$f":"G10+G35+G48+G129+G159","v":0},{"$f":"Zielvereinbarung!G7","v":0},null,null,null,null,{"$f":"M10+M35+M48+M129+M159","v":0},{"$f":"N10+N35+N48+N129+N159","v":0}]
[null,null,null,null,null,null,null,null,null,null,null,null,"to_copy_zb","to_insert_zb","qwertz"]
[]
[null,{"$f":"'BNB-System'!F6","v":"Ökologische Qualität"},null,null,0.22500000000000001,null,{"$f":"G13*($E$13/100)+G14*($E$14/100)+G15*($E$15/100)+G16*($E$16/100)+G17*($E$17/100)+G18*($E$18/100)+G24*($E$24/100)+G26*($E$26/100)+G30*($E$30/100)+G31*($E$31/100)","v":0},{"$f":"Zielvereinbarung!G10","v":0},null,null,null,null,{"$f":"M13*($E$13/100)+M14*($E$14/100)+M15*($E$15/100)+M16*($E$16/100)+M17*($E$17/100)+M18*($E$18/100)+M24*($E$24/100)+M26*($E$26/100)+M30*($E$30/100)+M31*($E$31/100)","v":0},{"$f":"N13*($E$13/100)+N14*($E$14/100)+N15*($E$15/100)+N16*($E$16/100)+N17*($E$17/100)+N18*($E$18/100)+N24*($E$24/100)+N26*($E$26/100)+N30*($E$30/100)+N31*($E$31/100)","v":0},null,{"$f":"'BNB-System'!L6","v":1800}]
[null,null,null,null,null,null,null,null,null,null,null,null,null,null,null,{"$f":"'BNB-System'!L7","v":0}]
[null,null,"Wirkungen auf die globale und lokale  Umwelt",null,null,null,null,null,null,null,null,null,null,null,null,{"$f":"'BNB-System'!L8","v":0}]
[null,{"$f":"'BNB-System'!F9","v":" 1.1.1"},{"$f":"'BNB-System'!G9","v":"Treibhauspotenzial (GWP)"},{"$f":"'BNB-System'!H9","v":100},{"$f":"'BNB-System'!K9","v":3.7499999999999999E-2},"o",{"$f":"IF(AND(NOT(ISBLANK(K13)),NOT(ISBLANK(L13))),('Bewertung durch Anwender'!K13),IF(AND(NOT(ISBLANK(J13)),NOT(ISBLANK(I13))),('Bewertung durch Anwender'!I13),(Zielvereinbarung!G13)))","v":0},{"$f":"Zielvereinbarung!G13","v":0},null,null,null,null,null,null,null,{"$f":"'BNB-System'!L9","v":300},{"$f":"IF(ISNUMBER(E13*N13/100),E13*N13/100,0)","v":0}]
[null,{"$f":"'BNB-System'!F10","v":" 1.1.2"},{"$f":"'BNB-System'!G10","v":"Ozonschichtabbaupotenzial (ODP)"},{"$f":"'BNB-System'!H10","v":100},{"$f":"'BNB-System'!K10","v":1.2499999999999999E-2},"x",{"$f":"IF(AND(NOT(ISBLANK(K14)),NOT(ISBLANK(L14))),('Bewertung durch Anwender'!K14),IF(AND(NOT(ISBLANK(J14)),NOT(ISBLANK(I14))),('Bewertung durch Anwender'!I14),(Zielvereinbarung!G14)))","v":0},{"$f":"Zielvereinbarung!G14","v":0},null,null,null,null,null,null,null,{"$f":"'BNB-System'!L10","v":100},0]
[null,{"$f":"'BNB-System'!F11","v":" 1.1.3"},{"$f":"'BNB-System'!G11","v":"Ozonbildungspotenzial (POCP)"},{"$f":"'BNB-System'!H11","v":100},{"$f":"'BNB-System'!K11","v":1.2499999999999999E-2},null,{"$f":"IF(AND(NOT(ISBLANK(K15)),NOT(ISBLANK(L15))),('Bewertung durch Anwender'!K15),IF(AND(NOT(ISBLANK(J15)),NOT(ISBLANK(I15))),('Bewertung durch Anwender'!I15),(Zielvereinbarung!G15)))","v":0},{"$f":"Zielvereinbarung!G15","v":0},null,null,null,null,null,null,null,{"$f":"'BNB-System'!L11","v":100},0]
[null,{"$f":"'BNB-System'!F12","v":" 1.1.4"},{"$f":"'BNB-System'!G12","v":"Versauerungspotenzial (AP)"},{"$f":"'BNB-System'!H12","v":100},{"$f":"'BNB-System'!K12","v":1.2499999999999999E-2},null,{"$f":"IF(AND(NOT(ISBLANK(K16)),NOT(ISBLANK(L16))),('Bewertung durch Anwender'!K16),IF(AND(NOT(ISBLANK(J16)),NOT(ISBLANK(I16))),('Bewertung durch Anwender'!I16),(Zielvereinbarung!G16)))","v":0},{"$f":"Zielvereinbarung!G16","v":0},null,null,null,null,null,null,null,{"$f":"'BNB-System'!L12","v":100},0]
[null,{"$f":"'BNB-System'!F13","v":" 1.1.5"},{"$f":"'BNB-System'!G13","v":"Überdüngungspotenzial (EP)"},{"$f":"'BNB-System'!H13","v":100},{"$f":"'BNB-System'!K13","v":1.2499999999999999E-2},null,{"$f":"IF(AND(NOT(ISBLANK(K17)),NOT(ISBLANK(L17))),('Bewertung durch Anwender'!K17),IF(AND(NOT(ISBLANK(J17)),NOT(ISBLANK(I17))),('Bewertung durch Anwender'!I17),(Zielvereinbarung!G17)))","v":0},{"$f":"Zielvereinbarung!G17","v":0},null,null,null,null,null,null,null,{"$f":"'BNB-System'!L13","v":100},0]
[null,{"$f":"'BNB-System'!F14","v":" 1.1.6"},{"$f":"'BNB-System'!G14","v":"Risiken für die lokale Umwelt"},{"$f":"'BNB-System'!H14","v":100},{"$f":"'BNB-System'!K14","v":3.7499999999999999E-2},null,{"$f":"IF(AND(NOT(ISBLANK(K18)),NOT(ISBLANK(L18))),('Bewertung durch Anwender'!K18),IF(AND(NOT(ISBLANK(J18)),NOT(ISBLANK(I18))),('Bewertung durch Anwender'!I18),(Zielvereinbarung!G18)))","v":0},{"$f":"Zielvereinbarung!G18","v":0},null,null,null,null,{"$f":"IF(SUM(M19:M23)>100,100,SUM(M19:M23))","v":0},{"$f":"IF(SUM(N19:N23)>100,100,SUM(N19:N23))","v":0},null,{"$f":"'BNB-System'!L14","v":300},0]
[null,null,{"$f":"'BNB-System'!G15","v":"Altsubstanz Q4 ; Neusubstanz Q5"},{"$f":"'BNB-System'!H15","v":100},null,null,{"$f":"IF(AND(NOT(ISBLANK(K19)),NOT(ISBLANK(L19))),('Bewertung durch Anwender'!K19),IF(AND(NOT(ISBLANK(J19)),NOT(ISBLANK(I19))),('Bewertung durch Anwender'!I19),(Zielvereinbarung!G19)))","v":0},{"$f":"Zielvereinbarung!G19","v":0}]
[null,null,{"$f":"'BNB-System'!G16","v":"Altsubstanz Q3 ; Neusubstanz Q4"},{"$f":"'BNB-System'!H16","v":75},null,null,{"$f":"IF(AND(NOT(ISBLANK(K20)),NOT(ISBLANK(L20))),('Bewertung durch Anwender'!K20),IF(AND(NOT(ISBLANK(J20)),NOT(ISBLANK(I20))),('Bewertung durch Anwender'!I20),(Zielvereinbarung!G20)))","v":0},{"$f":"Zielvereinbarung!G20","v":0}]
[null,null,{"$f":"'BNB-System'!G17","v":"Altsubstanz Q2 ; Neusubstanz Q3"},{"$f":"'BNB-System'!H17","v":50},null,null,{"$f":"IF(AND(NOT(ISBLANK(K21)),NOT(ISBLANK(L21))),('Bewertung durch Anwender'!K21),IF(AND(NOT(ISBLANK(J21)),NOT(ISBLANK(I21))),('Bewertung durch Anwender'!I21),(Zielvereinbarung!G21)))","v":0},{"$f":"Zielvereinbarung!G21","v":0}]
[null,null,{"$f":"'BNB-System'!G18","v":"Altsubstanz Q1 ; Neusubstanz Q2"},{"$f":"'BNB-System'!H18","v":25},null,null,{"$f":"IF(AND(NOT(ISBLANK(K22)),NOT(ISBLANK(L22))),('Bewertung durch Anwender'!K22),IF(AND(NOT(ISBLANK(J22)),NOT(ISBLANK(I22))),('Bewertung durch Anwender'!I22),(Zielvereinbarung!G22)))","v":0},{"$f":"Zielvereinbarung!G22","v":0}]
[null,null,{"$f":"'BNB-System'!G19","v":"Altsubstanz Q1 ; Neusubstanz Q1"},{"$f":"'BNB-System'!H19","v":10},null,null,{"$f":"IF(AND(NOT(ISBLANK(K23)),NOT(ISBLANK(L23))),('Bewertung durch Anwender'!K23),IF(AND(NOT(ISBLANK(J23)),NOT(ISBLANK(I23))),('Bewertung durch Anwender'!I23),(Zielvereinbarung!G23)))","v":0},{"$f":"Zielvereinbarung!G23","v":0}]
[null,{"$f":"'BNB-System'!F20","v":" 1.1.7"},{"$f":"'BNB-System'!G20","v":"Nachhaltige Materialgewinnung / Biodiversität"},{"$f":"'BNB-System'!H20","v":100},{"$f":"'BNB-System'!K20","v":1.2499999999999999E-2},null,{"$f":"IF(AND(NOT(ISBLANK(K24)),NOT(ISBLANK(L24))),('Bewertung durch Anwender'!K24),IF(AND(NOT(ISBLANK(J24)),NOT(ISBLANK(I24))),('Bewertung durch Anwender'!I24),(Zielvereinbarung!G24)))","v":0},{"$f":"Zielvereinbarung!G24","v":0},null,null,null,null,null,null,null,{"$f":"'BNB-System'!L20","v":100},{"$f":"IF(ISNUMBER(E24*N24/100),E24*N24/100,0)","v":0}]
[null,null,{"$f":"'BNB-System'!G21","v":"Ressourceninanspruchnahme"},null,null,null,null,null,null,null,null,null,null,null,null,{"$f":"'BNB-System'!L21","v":0}]
[null,{"$f":"'BNB-System'!F22","v":" 1.2.1"},{"$f":"'BNB-System'!G22","v":"Primärenergiebedarf"},{"$f":"'BNB-System'!H22","v":100},{"$f":"'BNB-System'!K22","v":3.7499999999999999E-2},null,{"$f":"IF(AND(NOT(ISBLANK(K26)),NOT(ISBLANK(L26))),('Bewertung durch Anwender'!K26),IF(AND(NOT(ISBLANK(J26)),NOT(ISBLANK(I26))),('Bewertung durch Anwender'!I26),(Zielvereinbarung!G26)))","v":0},{"$f":"Zielvereinbarung!G26","v":0},null,null,null,null,{"$f":"SUM(M27:M28)","v":0},{"$f":"SUM(N27:N28)","v":0},null,{"$f":"'BNB-System'!L22","v":300},{"$f":"IF(ISNUMBER(E26*N26/100),E26*N26/100,0)","v":0}]
[null,null,{"$f":"'BNB-System'!G23","v":"Primärenergiebedarf nicht erneuerbar (PEne)"},{"$f":"'BNB-System'!H23","v":60},null,null,{"$f":"IF(AND(NOT(ISBLANK(K27)),NOT(ISBLANK(L27))),('Bewertung durch Anwender'!K27),IF(AND(NOT(ISBLANK(J27)),NOT(ISBLANK(I27))),('Bewertung durch Anwender'!I27),(Zielvereinbarung!G27)))","v":0},{"$f":"Zielvereinbarung!G27","v":0},null,null,null,null,null,null,null,{"$f":"'BNB-System'!L23","v":0}]
[null,null,{"$f":"'BNB-System'!G24","v":"Gesamtprimärenergiebedarf (PEges)"},{"$f":"'BNB-System'!H24","v":40},null,null,{"$f":"IF(AND(NOT(ISBLANK(K28)),NOT(ISBLANK(L28))),('Bewertung durch Anwender'!K28),IF(AND(NOT(ISBLANK(J28)),NOT(ISBLANK(I28))),('Bewertung durch Anwender'!I28),(Zielvereinbarung!G28)))","v":0},{"$f":"Zielvereinbarung!G28","v":0}]
[null,null,{"$f":"'BNB-System'!G25","v":"Anteil der erneuerbaren Primärenergie (Pee)"},{"$f":"'BNB-System'!H25","v":20},null,null,{"$f":"IF(AND(NOT(ISBLANK(K29)),NOT(ISBLANK(L29))),('Bewertung durch Anwender'!K29),IF(AND(NOT(ISBLANK(J29)),NOT(ISBLANK(I29))),('Bewertung durch Anwender'!I29),(Zielvereinbarung!G29)))","v":0},{"$f":"Zielvereinbarung!G29","v":0},null,null,null,null,null,null,null,{"$f":"'BNB-System'!L25","v":0}]
[null,{"$f":"'BNB-System'!F26","v":" 1.2.3"},{"$f":"'BNB-System'!G26","v":"Trinkwasserbedarf und Abwasseraufkommen"},{"$f":"'BNB-System'!H26","v":100},{"$f":"'BNB-System'!K26","v":2.4999999999999998E-2},null,{"$f":"IF(AND(NOT(ISBLANK(K30)),NOT(ISBLANK(L30))),('Bewertung durch Anwender'!K30),IF(AND(NOT(ISBLANK(J30)),NOT(ISBLANK(I30))),('Bewertung durch Anwender'!I30),(Zielvereinbarung!G30)))","v":0},{"$f":"Zielvereinbarung!G30","v":0},null,null,null,null,null,null,null,{"$f":"'BNB-System'!L26","v":200},{"$f":"IF(ISNUMBER(E30*N30/100),E30*N30/100,0)","v":0}]
[null,{"$f":"'BNB-System'!F27","v":" 1.2.4"},{"$f":"'BNB-System'!G27","v":"Flächeninanspruchnahme"},{"$f":"'BNB-System'!H27","v":100},{"$f":"'BNB-System'!K27","v":2.4999999999999998E-2},null,{"$f":"IF(AND(NOT(ISBLANK(K31)),NOT(ISBLANK(L31))),('Bewertung durch Anwender'!K31),IF(AND(NOT(ISBLANK(J31)),NOT(ISBLANK(I31))),('Bewertung durch Anwender'!I31),(Zielvereinbarung!G31)))","v":0},{"$f":"Zielvereinbarung!G31","v":0},null,null,null,null,{"$f":"SUM(M32:M33)","v":0},{"$f":"SUM(N32:N33)","v":0},null,{"$f":"'BNB-System'!L27","v":200},{"$f":"IF(ISNUMBER(E31*N31/100),E31*N31/100,0)","v":0}]
[null,null,{"$f":"'BNB-System'!G28","v":"Veränderung der Flächeninanspruchnahme"},{"$f":"'BNB-System'!H28","v":100},null,null,{"$f":"IF(AND(NOT(ISBLANK(K32)),NOT(ISBLANK(L32))),('Bewertung durch Anwender'!K32),IF(AND(NOT(ISBLANK(J32)),NOT(ISBLANK(I32))),('Bewertung durch Anwender'!I32),(Zielvereinbarung!G32)))","v":0},{"$f":"Zielvereinbarung!G32","v":0}]
[null,null,{"$f":"'BNB-System'!G29","v":"Ausgleichsmaßnahmen und Flächenrecycling"},{"$f":"'BNB-System'!H29","v":40},null,null,{"$f":"IF(AND(NOT(ISBLANK(K33)),NOT(ISBLANK(L33))),('Bewertung durch Anwender'!K33),IF(AND(NOT(ISBLANK(J33)),NOT(ISBLANK(I33))),('Bewertung durch Anwender'!I33),(Zielvereinbarung!G33)))","v":0},{"$f":"Zielvereinbarung!G33","v":0}]
[null,null,null,null,null,null,null,null,null,null,null,null,null,null,null,{"$f":"'BNB-System'!L30","v":0}]
[null,{"$f":"'BNB-System'!F31","v":"Ökonomische Qualität"},null,null,{"$f":"'BNB-System'!K31","v":0.22500000000000001},null,{"$f":"IF(AND(NOT(ISBLANK(K35)),NOT(ISBLANK(L35))),('Bewertung durch Anwender'!K35),IF(AND(NOT(ISBLANK(J35)),NOT(ISBLANK(I35))),('Bewertung durch Anwender'!I35),(Zielvereinbarung!G35)))","v":0},{"$f":"Zielvereinbarung!G35","v":0},null,null,null,null,{"$f":"M38*($E$38/100)+M40*($E$40/100)","v":0},{"$f":"N38*($E$38/100)+N40*($E$40/100)","v":0},null,{"$f":"'BNB-System'!L31","v":500}]
[null,null,null,null,null,null,null,null,null,null,null,null,null,null,null,{"$f":"'BNB-System'!L32","v":0}]
[null,null,{"$f":"'BNB-System'!G33","v":"Lebenszykluskosten"},null,null,null,null,null,null,null,null,null,null,null,null,{"$f":"'BNB-System'!L33","v":0}]
[null,{"$f":"'BNB-System'!F34","v":" 2.1.1"},{"$f":"'BNB-System'!G34","v":"Gebäudebezogene Kosten im Lebenszyklus"},{"$f":"'BNB-System'!H34","v":100},{"$f":"'BNB-System'!K34","v":0.13500000000000001},null,{"$f":"IF(AND(NOT(ISBLANK(K38)),NOT(ISBLANK(L38))),('Bewertung durch Anwender'!K38),IF(AND(NOT(ISBLANK(J38)),NOT(ISBLANK(I38))),('Bewertung durch Anwender'!I38),(Zielvereinbarung!G38)))","v":0},{"$f":"Zielvereinbarung!G38","v":0},null,null,null,null,null,null,null,{"$f":"'BNB-System'!L34","v":300},{"$f":"IF(ISNUMBER(E38*N38/100),E38*N38/100,0)","v":0}]
[null,null,{"$f":"'BNB-System'!G35","v":"Wirtschaftlichkeit und Wertstabilität"},null,null,null,null,null,null,null,null,null,null,null,null,{"$f":"'BNB-System'!L35","v":0}]
[null,{"$f":"'BNB-System'!F36","v":" 2.2.2"},{"$f":"'BNB-System'!G36","v":"Anpassungsfähigkeit"},{"$f":"'BNB-System'!H36","v":100},{"$f":"'BNB-System'!K36","v":9.0000000000000011E-2},"o",{"$f":"IF(AND(NOT(ISBLANK(K40)),NOT(ISBLANK(L40))),('Bewertung durch Anwender'!K40),IF(AND(NOT(ISBLANK(J40)),NOT(ISBLANK(I40))),('Bewertung durch Anwender'!I40),(Zielvereinbarung!G40)))","v":0},{"$f":"Zielvereinbarung!G40","v":0},null,null,null,null,{"$f":"SUM(M41:M46)","v":0},{"$f":"SUM(N41:N46)","v":0},null,{"$f":"'BNB-System'!L36","v":200},{"$f":"IF(ISNUMBER(E40*N40/100),E40*N40/100,0)","v":0}]
[null,null,{"$f":"'BNB-System'!G37","v":"Lichte Raumhöhe"},{"$f":"'BNB-System'!H37","v":15},null,null,{"$f":"IF(AND(NOT(ISBLANK(K41)),NOT(ISBLANK(L41))),('Bewertung durch Anwender'!K41),IF(AND(NOT(ISBLANK(J41)),NOT(ISBLANK(I41))),('Bewertung durch Anwender'!I41),(Zielvereinbarung!G41)))","v":0},{"$f":"Zielvereinbarung!G41","v":0},null,null,null,null,null,null,null,{"$f":"'BNB-System'!L37","v":0}]
[null,null,{"$f":"'BNB-System'!G38","v":"Gebäudetiefe"},{"$f":"'BNB-System'!H38","v":15},null,null,{"$f":"IF(AND(NOT(ISBLANK(K42)),NOT(ISBLANK(L42))),('Bewertung durch Anwender'!K42),IF(AND(NOT(ISBLANK(J42)),NOT(ISBLANK(I42))),('Bewertung durch Anwender'!I42),(Zielvereinbarung!G42)))","v":0},{"$f":"Zielvereinbarung!G42","v":0},null,null,null,null,null,null,null,{"$f":"'BNB-System'!L38","v":0}]
[null,null,{"$f":"'BNB-System'!G39","v":"Vertikale Erschließung"},{"$f":"'BNB-System'!H39","v":15},null,null,{"$f":"IF(AND(NOT(ISBLANK(K43)),NOT(ISBLANK(L43))),('Bewertung durch Anwender'!K43),IF(AND(NOT(ISBLANK(J43)),NOT(ISBLANK(I43))),('Bewertung durch Anwender'!I43),(Zielvereinbarung!G43)))","v":0},{"$f":"Zielvereinbarung!G43","v":0},null,null,null,null,null,null,null,{"$f":"'BNB-System'!L39","v":0}]
[null,null,{"$f":"'BNB-System'!G40","v":"Grundrisse"},{"$f":"'BNB-System'!H40","v":25},null,null,{"$f":"IF(AND(NOT(ISBLANK(K44)),NOT(ISBLANK(L44))),('Bewertung durch Anwender'!K44),IF(AND(NOT(ISBLANK(J44)),NOT(ISBLANK(I44))),('Bewertung durch Anwender'!I44),(Zielvereinbarung!G44)))","v":0},{"$f":"Zielvereinbarung!G44","v":0},null,null,null,null,null,null,null,{"$f":"'BNB-System'!L40","v":0}]
[null,null,{"$f":"'BNB-System'!G41","v":"Konstruktion"},{"$f":"'BNB-System'!H41","v":20},null,null,{"$f":"IF(AND(NOT(ISBLANK(K45)),NOT(ISBLANK(L45))),('Bewertung durch Anwender'!K45),IF(AND(NOT(ISBLANK(J45)),NOT(ISBLANK(I45))),('Bewertung durch Anwender'!I45),(Zielvereinbarung!G45)))","v":0},{"$f":"Zielvereinbarung!G45","v":0},null,null,null,null,null,null,null,{"$f":"'BNB-System'!L41","v":0}]
[null,null,{"$f":"'BNB-System'!G42","v":"Technische Ausstattung"},{"$f":"'BNB-System'!H42","v":10},null,null,{"$f":"IF(AND(NOT(ISBLANK(K46)),NOT(ISBLANK(L46))),('Bewertung durch Anwender'!K46),IF(AND(NOT(ISBLANK(J46)),NOT(ISBLANK(I46))),('Bewertung durch Anwender'!I46),(Zielvereinbarung!G46)))","v":0},{"$f":"Zielvereinbarung!G46","v":0},null,null,null,null,null,null,null,{"$f":"'BNB-System'!L42","v":0}]
[null,null,null,null,null,null,null,null,null,null,null,null,null,null,null,{"$f":"'BNB-System'!L43","v":0}]
[null,{"$f":"'BNB-System'!F44","v":"Soziokulturelle und funktionale Qualität"},null,null,{"$f":"'BNB-System'!K44","v":0.22500000000000001},null,{"$f":"IF(AND(NOT(ISBLANK(K48)),NOT(ISBLANK(L48))),('Bewertung durch Anwender'!K48),IF(AND(NOT(ISBLANK(J48)),NOT(ISBLANK(I48))),('Bewertung durch Anwender'!I48),(Zielvereinbarung!G48)))","v":0},{"$f":"Zielvereinbarung!G48","v":0},null,null,null,null,{"$f":"M51*($E$51/100)+M62*($E$62/100)+M65*($E$65/100)+M75*($E$75/100)+M83*($E$83/100)+M93*($E$93/100)+M98*($E$98/100)+M105*($E$105/100)+M106*($E$106/100)+M111*($E$111/100)+M116*($E$116/100)+M123*($E$123/100)","v":0},{"$f":"N51*($E$51/100)+N62*($E$62/100)+N65*($E$65/100)+N75*($E$75/100)+N83*($E$83/100)+N93*($E$93/100)+N98*($E$98/100)+N105*($E$105/100)+N106*($E$106/100)+N111*($E$111/100)+N116*($E$116/100)+N123*($E$123/100)","v":0},null,{"$f":"'BNB-System'!L44","v":2700}]
[null,null,null,null,null,null,null,null,null,null,null,null,null,null,null,{"$f":"'BNB-System'!L45","v":0}]
[null,null,{"$f":"'BNB-System'!G46","v":"Gesundheit, Behaglichkeit und Nutzerzufriedenheit"},null,null,null,null,null,null,null,null,null,null,null,null,{"$f":"'BNB-System'!L46","v":0}]
[null,{"$f":"'BNB-System'!F47","v":" 3.1.1"},{"$f":"'BNB-System'!G47","v":"Thermischer Komfort"},{"$f":"'BNB-System'!H47","v":100},{"$f":"'BNB-System'!K47","v":2.4999999999999998E-2},null,{"$f":"IF(AND(NOT(ISBLANK(K51)),NOT(ISBLANK(L51))),('Bewertung durch Anwender'!K51),IF(AND(NOT(ISBLANK(J51)),NOT(ISBLANK(I51))),('Bewertung durch Anwender'!I51),(Zielvereinbarung!G51)))","v":0},{"$f":"Zielvereinbarung!G51","v":0},null,null,null,null,{"$f":"SUM(M53:M56,M58:M61)","v":0},{"$f":"SUM(N53:N56,N58:N61)","v":0},null,{"$f":"'BNB-System'!L47","v":300},{"$f":"IF(ISNUMBER(E51*N51/100),E51*N51/100,0)","v":0}]
[null,null,{"$f":"'BNB-System'!G48","v":"Winter"},null,null,null,{"$f":"IF(Zielvereinbarung!E52=0,\"\",Zielvereinbarung!E52)","v":""},null,null,null,null,null,null,null,null,{"$f":"'BNB-System'!L49","v":0}]
[null,null,{"$f":"'BNB-System'!G49","v":"Operative Temperatur"},{"$f":"'BNB-System'!H49","v":10},null,null,{"$f":"IF(AND(NOT(ISBLANK(K53)),NOT(ISBLANK(L53))),('Bewertung durch Anwender'!K53),IF(AND(NOT(ISBLANK(J53)),NOT(ISBLANK(I53))),('Bewertung durch Anwender'!I53),(Zielvereinbarung!G53)))","v":0},{"$f":"Zielvereinbarung!G53","v":0},null,null,null,null,null,null,null,{"$f":"'BNB-System'!#REF!","v":{"$error":"#REF!"}}]
[null,null,{"$f":"'BNB-System'!G50","v":" Zugluft"},{"$f":"'BNB-System'!H50","v":10},null,null,{"$f":"IF(AND(NOT(ISBLANK(K54)),NOT(ISBLANK(L54))),('Bewertung durch Anwender'!K54),IF(AND(NOT(ISBLANK(J54)),NOT(ISBLANK(I54))),('Bewertung durch Anwender'!I54),(Zielvereinbarung!G54)))","v":0},{"$f":"Zielvereinbarung!G54","v":0}]
[null,null,{"$f":"'BNB-System'!G51","v":"Stahlungstemperaturasymmetrie und Fußbodentemperatur"},{"$f":"'BNB-System'!H51","v":10},null,null,{"$f":"IF(AND(NOT(ISBLANK(K55)),NOT(ISBLANK(L55))),('Bewertung durch Anwender'!K55),IF(AND(NOT(ISBLANK(J55)),NOT(ISBLANK(I55))),('Bewertung durch Anwender'!I55),(Zielvereinbarung!G55)))","v":0},{"$f":"Zielvereinbarung!G55","v":0}]
[null,null,{"$f":"'BNB-System'!G52","v":"Luftfeuchte"},{"$f":"'BNB-System'!H52","v":10},null,null,{"$f":"IF(AND(NOT(ISBLANK(K56)),NOT(ISBLANK(L56))),('Bewertung durch Anwender'!K56),IF(AND(NOT(ISBLANK(J56)),NOT(ISBLANK(I56))),('Bewertung durch Anwender'!I56),(Zielvereinbarung!G56)))","v":0},{"$f":"Zielvereinbarung!G56","v":0}]
[null,null,{"$f":"'BNB-System'!G53","v":"Sommer"},null,null,null,{"$f":"IF(Zielvereinbarung!E57=0,\"\",Zielvereinbarung!E57)","v":""}]
[null,null,{"$f":"'BNB-System'!G54","v":"Operative Temperatur"},{"$f":"'BNB-System'!H54","v":30},null,null,{"$f":"IF(AND(NOT(ISBLANK(K58)),NOT(ISBLANK(L58))),('Bewertung durch Anwender'!K58),IF(AND(NOT(ISBLANK(J58)),NOT(ISBLANK(I58))),('Bewertung durch Anwender'!I58),(Zielvereinbarung!G58)))","v":0},{"$f":"Zielvereinbarung!G58","v":0}]
[null,null,{"$f":"'BNB-System'!G55","v":" Zugluft"},{"$f":"'BNB-System'!H55","v":10},null,null,{"$f":"IF(AND(NOT(ISBLANK(K59)),NOT(ISBLANK(L59))),('Bewertung durch Anwender'!K59),IF(AND(NOT(ISBLANK(J59)),NOT(ISBLANK(I59))),('Bewertung durch Anwender'!I59),(Zielvereinbarung!G59)))","v":0},{"$f":"Zielvereinbarung!G59","v":0}]
[null,null,{"$f":"'BNB-System'!G56","v":"Stahlungstemperaturasymmetrie und Fußbodentemperatur"},{"$f":"'BNB-System'!H56","v":10},null,null,{"$f":"IF(AND(NOT(ISBLANK(K60)),NOT(ISBLANK(L60))),('Bewertung durch Anwender'!K60),IF(AND(NOT(ISBLANK(J60)),NOT(ISBLANK(I60))),('Bewertung durch Anwender'!I60),(Zielvereinbarung!G60)))","v":0},{"$f":"Zielvereinbarung!G60","v":0}]
[null,null,{"$f":"'BNB-System'!G57","v":"Luftfeuchte"},{"$f":"'BNB-System'!H57","v":10},null,null,{"$f":"IF(AND(NOT(ISBLANK(K61)),NOT(ISBLANK(L61))),('Bewertung durch Anwender'!K61),IF(AND(NOT(ISBLANK(J61)),NOT(ISBLANK(I61))),('Bewertung durch Anwender'!I61),(Zielvereinbarung!G61)))","v":0},{"$f":"Zielvereinbarung!G61","v":0}]
[null,{"$f":"'BNB-System'!F58","v":" 3.1.3"},{"$f":"'BNB-System'!G58","v":"Innenraumlufthygiene"},{"$f":"'BNB-System'!H58","v":100},{"$f":"'BNB-System'!K58","v":2.4999999999999998E-2},null,{"$f":"IF(AND(NOT(ISBLANK(K62)),NOT(ISBLANK(L62))),('Bewertung durch Anwender'!K62),IF(AND(NOT(ISBLANK(J62)),NOT(ISBLANK(I62))),('Bewertung durch Anwender'!I62),(Zielvereinbarung!G62)))","v":0},{"$f":"Zielvereinbarung!G62","v":0},null,null,null,null,{"$f":"SUM(M63:M64)","v":0},{"$f":"SUM(N63:N64)","v":0},null,{"$f":"'BNB-System'!L58","v":300},{"$f":"IF(ISNUMBER(E62*N62/100),E62*N62/100,0)","v":0}]
[null,null,{"$f":"'BNB-System'!G59","v":"Flüchtige organische Stoffe (VOC) und Formaldehyd"},{"$f":"'BNB-System'!H59","v":50},null,null,{"$f":"IF(AND(NOT(ISBLANK(K63)),NOT(ISBLANK(L63))),('Bewertung durch Anwender'!K63),IF(AND(NOT(ISBLANK(J63)),NOT(ISBLANK(I63))),('Bewertung durch Anwender'!I63),(Zielvereinbarung!G63)))","v":0},{"$f":"Zielvereinbarung!G63","v":0},null,null,null,null,null,null,null,{"$f":"'BNB-System'!L59","v":0}]
[null,null,{"$f":"'BNB-System'!G60","v":"Personenbezogene Lüftungsrate"},{"$f":"'BNB-System'!H60","v":50},null,null,{"$f":"IF(AND(NOT(ISBLANK(K64)),NOT(ISBLANK(L64))),('Bewertung durch Anwender'!K64),IF(AND(NOT(ISBLANK(J64)),NOT(ISBLANK(I64))),('Bewertung durch Anwender'!I64),(Zielvereinbarung!G64)))","v":0},{"$f":"Zielvereinbarung!G64","v":0},null,null,null,null,null,null,null,{"$f":"'BNB-System'!L60","v":0}]
[null,{"$f":"'BNB-System'!F61","v":" 3.1.4"},{"$f":"'BNB-System'!G61","v":"Akustischer Komfort"},{"$f":"'BNB-System'!H61","v":100},{"$f":"'BNB-System'!K61","v":1.6666666666666666E-2},null,{"$f":"IF(AND(NOT(ISBLANK(K65)),NOT(ISBLANK(L65))),('Bewertung durch Anwender'!K65),IF(AND(NOT(ISBLANK(J65)),NOT(ISBLANK(I65))),('Bewertung durch Anwender'!I65),(Zielvereinbarung!G65)))","v":0},{"$f":"Zielvereinbarung!G65","v":0},null,null,null,null,{"$f":"SUM(M66:M74)","v":0},{"$f":"SUM(N66:N74)","v":0},null,{"$f":"'BNB-System'!L61","v":200},{"$f":"IF(ISNUMBER(E65*N65/100),E65*N65/100,0)","v":0}]
[null,null,{"$f":"'BNB-System'!G62","v":"Räume Gruppe A"},{"$f":"'BNB-System'!H63","v":100},null,null,null,{"$f":"Zielvereinbarung!G66","v":0},null,null,null,null,null,null,null,{"$f":"'BNB-System'!L63","v":0}]
[null,null,{"$f":"'BNB-System'!G63","v":"Musik"},{"$f":"'BNB-System'!H64","v":100},null,null,{"$f":"IF(AND(NOT(ISBLANK(K67)),NOT(ISBLANK(L67))),('Bewertung durch Anwender'!K67),IF(AND(NOT(ISBLANK(J67)),NOT(ISBLANK(I67))),('Bewertung durch Anwender'!I67),(Zielvereinbarung!G68)))","v":0},{"$f":"Zielvereinbarung!G68","v":0},null,null,null,null,null,null,null,{"$f":"'BNB-System'!L64","v":0}]
[null,null,{"$f":"'BNB-System'!G64","v":"Sprache/ Vortrag"},null,null,null,{"$f":"IF(AND(NOT(ISBLANK(K68)),NOT(ISBLANK(L68))),('Bewertung durch Anwender'!K68),IF(AND(NOT(ISBLANK(J68)),NOT(ISBLANK(I68))),('Bewertung durch Anwender'!I68),(Zielvereinbarung!G68)))","v":0}]
[null,null,{"$f":"'BNB-System'!G65","v":"Unterricht Kommunikation"},{"$f":"'BNB-System'!H65","v":100},null,null,{"$f":"IF(AND(NOT(ISBLANK(K69)),NOT(ISBLANK(L69))),('Bewertung durch Anwender'!K69),IF(AND(NOT(ISBLANK(J69)),NOT(ISBLANK(I69))),('Bewertung durch Anwender'!I69),(Zielvereinbarung!G69)))","v":0},{"$f":"Zielvereinbarung!G69","v":0},null,null,null,null,null,null,null,{"$f":"'BNB-System'!L65","v":0}]
[null,null,{"$f":"'BNB-System'!G66","v":"Sport"},{"$f":"'BNB-System'!H66","v":100},null,null,{"$f":"IF(AND(NOT(ISBLANK(K70)),NOT(ISBLANK(L70))),('Bewertung durch Anwender'!K70),IF(AND(NOT(ISBLANK(J70)),NOT(ISBLANK(I70))),('Bewertung durch Anwender'!I70),(Zielvereinbarung!G70)))","v":0},{"$f":"Zielvereinbarung!G70","v":0},null,null,null,null,null,null,null,{"$f":"'BNB-System'!L66","v":0}]
[null,null,{"$f":"'BNB-System'!G67","v":"Räume Gruppe B"}]
[null,null,{"$f":"'BNB-System'!G68","v":"Einzel- und Mehrpersonenbüros bis 100 m3"},{"$f":"'BNB-System'!H68","v":100},null,null,{"$f":"IF(AND(NOT(ISBLANK(K72)),NOT(ISBLANK(L72))),('Bewertung durch Anwender'!K72),IF(AND(NOT(ISBLANK(J72)),NOT(ISBLANK(I72))),('Bewertung durch Anwender'!I72),(Zielvereinbarung!G72)))","v":0},{"$f":"Zielvereinbarung!G72","v":0},null,null,null,null,null,null,null,{"$f":"'BNB-System'!L68","v":0}]
[null,null,{"$f":"'BNB-System'!G69","v":"Mehrpersonenbüros über 100 m3"},{"$f":"'BNB-System'!H69","v":100},null,null,{"$f":"IF(AND(NOT(ISBLANK(K73)),NOT(ISBLANK(L73))),('Bewertung durch Anwender'!K73),IF(AND(NOT(ISBLANK(J73)),NOT(ISBLANK(I73))),('Bewertung durch Anwender'!I73),(Zielvereinbarung!G73)))","v":0},{"$f":"Zielvereinbarung!G73","v":0},null,null,null,null,null,null,null,{"$f":"'BNB-System'!L69","v":0}]
[null,null,{"$f":"'BNB-System'!G70","v":"Weitere Räume"},{"$f":"'BNB-System'!H70","v":100},null,null,{"$f":"IF(AND(NOT(ISBLANK(K74)),NOT(ISBLANK(L74))),('Bewertung durch Anwender'!K74),IF(AND(NOT(ISBLANK(J74)),NOT(ISBLANK(I74))),('Bewertung durch Anwender'!I74),(Zielvereinbarung!G74)))","v":0},{"$f":"Zielvereinbarung!G74","v":0},null,null,null,null,null,null,null,{"$f":"'BNB-System'!L70","v":0}]
[null,{"$f":"'BNB-System'!F71","v":" 3.1.5"},{"$f":"'BNB-System'!G71","v":"Visueller Komfort"},{"$f":"'BNB-System'!H71","v":100},{"$f":"'BNB-System'!K71","v":1.6666666666666666E-2},null,{"$f":"IF(AND(NOT(ISBLANK(K75)),NOT(ISBLANK(L75))),('Bewertung durch Anwender'!K75),IF(AND(NOT(ISBLANK(J75)),NOT(ISBLANK(I75))),('Bewertung durch Anwender'!I75),(Zielvereinbarung!G75)))","v":0},{"$f":"Zielvereinbarung!G75","v":0},null,null,null,null,{"$f":"SUM(M76:M82)","v":0},{"$f":"SUM(N76:N82)","v":0},null,{"$f":"'BNB-System'!L71","v":200},{"$f":"IF(ISNUMBER(E75*N75/100),E75*N75/100,0)","v":0}]
[null,null,{"$f":"'BNB-System'!G72","v":"Tageslichtverfügbarkeit Gesamtgebäude"},{"$f":"'BNB-System'!H72","v":15},null,null,{"$f":"IF(AND(NOT(ISBLANK(K76)),NOT(ISBLANK(L76))),('Bewertung durch Anwender'!K76),IF(AND(NOT(ISBLANK(J76)),NOT(ISBLANK(I76))),('Bewertung durch Anwender'!I76),(Zielvereinbarung!G76)))","v":0},{"$f":"Zielvereinbarung!G76","v":0},null,null,null,null,null,null,null,{"$f":"'BNB-System'!L72","v":0}]
[null,null,{"$f":"'BNB-System'!G73","v":"Tageslichtverfügbarkeit ständige Arbeitsplätze"},{"$f":"'BNB-System'!H73","v":15},null,null,{"$f":"IF(AND(NOT(ISBLANK(K77)),NOT(ISBLANK(L77))),('Bewertung durch Anwender'!K77),IF(AND(NOT(ISBLANK(J77)),NOT(ISBLANK(I77))),('Bewertung durch Anwender'!I77),(Zielvereinbarung!G77)))","v":0},{"$f":"Zielvereinbarung!G77","v":0},null,null,null,null,null,null,null,{"$f":"'BNB-System'!L73","v":0}]
[null,null,{"$f":"'BNB-System'!G74","v":"Nachweis de Sichtverbindung außen"},{"$f":"'BNB-System'!H74","v":35},null,null,{"$f":"IF(AND(NOT(ISBLANK(K78)),NOT(ISBLANK(L78))),('Bewertung durch Anwender'!K78),IF(AND(NOT(ISBLANK(J78)),NOT(ISBLANK(I78))),('Bewertung durch Anwender'!I78),(Zielvereinbarung!G78)))","v":0},{"$f":"Zielvereinbarung!G78","v":0},null,null,null,null,null,null,null,{"$f":"'BNB-System'!L74","v":0}]
[null,null,{"$f":"'BNB-System'!G75","v":"Blendfreiheit Tageslicht"},{"$f":"'BNB-System'!H75","v":10},null,null,{"$f":"IF(AND(NOT(ISBLANK(K79)),NOT(ISBLANK(L79))),('Bewertung durch Anwender'!K79),IF(AND(NOT(ISBLANK(J79)),NOT(ISBLANK(I79))),('Bewertung durch Anwender'!I79),(Zielvereinbarung!G79)))","v":0},{"$f":"Zielvereinbarung!G79","v":0},null,null,null,null,null,null,null,{"$f":"'BNB-System'!L75","v":0}]
[null,null,{"$f":"'BNB-System'!G76","v":"Blendfreiheit  Kunstlicht"},{"$f":"'BNB-System'!H76","v":5},null,null,{"$f":"IF(AND(NOT(ISBLANK(K80)),NOT(ISBLANK(L80))),('Bewertung durch Anwender'!K80),IF(AND(NOT(ISBLANK(J80)),NOT(ISBLANK(I80))),('Bewertung durch Anwender'!I80),(Zielvereinbarung!G80)))","v":0},{"$f":"Zielvereinbarung!G80","v":0},null,null,null,null,null,null,null,{"$f":"'BNB-System'!L76","v":0}]
[null,null,{"$f":"'BNB-System'!G77","v":"Lichtverteilung"},{"$f":"'BNB-System'!H77","v":20},null,null,{"$f":"IF(AND(NOT(ISBLANK(K81)),NOT(ISBLANK(L81))),('Bewertung durch Anwender'!K81),IF(AND(NOT(ISBLANK(J81)),NOT(ISBLANK(I81))),('Bewertung durch Anwender'!I81),(Zielvereinbarung!G81)))","v":0},{"$f":"Zielvereinbarung!G81","v":0},null,null,null,null,null,null,null,{"$f":"'BNB-System'!L77","v":0}]
[null,null,{"$f":"'BNB-System'!G78","v":"Farbwiedergabe"},{"$f":"'BNB-System'!H78","v":10},null,null,{"$f":"IF(AND(NOT(ISBLANK(K82)),NOT(ISBLANK(L82))),('Bewertung durch Anwender'!K82),IF(AND(NOT(ISBLANK(J82)),NOT(ISBLANK(I82))),('Bewertung durch Anwender'!I82),(Zielvereinbarung!G82)))","v":0},{"$f":"Zielvereinbarung!G82","v":0},null,null,null,null,null,null,null,{"$f":"'BNB-System'!L78","v":0}]
[null,{"$f":"'BNB-System'!F79","v":" 3.1.6"},{"$f":"'BNB-System'!G79","v":"Einflussnahmemöglichkeiten durch Nutzer"},{"$f":"'BNB-System'!H79","v":100},{"$f":"'BNB-System'!K79","v":1.6666666666666666E-2},null,{"$f":"IF(AND(NOT(ISBLANK(K83)),NOT(ISBLANK(L83))),('Bewertung durch Anwender'!K83),IF(AND(NOT(ISBLANK(J83)),NOT(ISBLANK(I83))),('Bewertung durch Anwender'!I83),(Zielvereinbarung!G83)))","v":0},{"$f":"Zielvereinbarung!G83","v":0},null,null,null,null,{"$f":"SUM(M84:M92)","v":0},{"$f":"SUM(N84:N92)","v":0},null,{"$f":"'BNB-System'!L79","v":200},{"$f":"IF(ISNUMBER(E83*N83/100),E83*N83/100,0)","v":0}]
[null,null,{"$f":"'BNB-System'!G80","v":"Lüftung"},{"$f":"'BNB-System'!H80","v":10},null,null,{"$f":"IF(AND(NOT(ISBLANK(K84)),NOT(ISBLANK(L84))),('Bewertung durch Anwender'!K84),IF(AND(NOT(ISBLANK(J84)),NOT(ISBLANK(I84))),('Bewertung durch Anwender'!I84),(Zielvereinbarung!G84)))","v":0},{"$f":"Zielvereinbarung!G84","v":0},null,null,null,null,null,null,null,{"$f":"'BNB-System'!L80","v":0}]
[null,null,{"$f":"'BNB-System'!G81","v":"Sonnenschutz"},{"$f":"'BNB-System'!H81","v":10},null,null,{"$f":"IF(AND(NOT(ISBLANK(K85)),NOT(ISBLANK(L85))),('Bewertung durch Anwender'!K85),IF(AND(NOT(ISBLANK(J85)),NOT(ISBLANK(I85))),('Bewertung durch Anwender'!I85),(Zielvereinbarung!G85)))","v":0},{"$f":"Zielvereinbarung!G85","v":0},null,null,null,null,null,null,null,{"$f":"'BNB-System'!L81","v":0}]
[null,null,{"$f":"'BNB-System'!G82","v":"Blendschutz"},{"$f":"'BNB-System'!H82","v":10},null,null,{"$f":"IF(AND(NOT(ISBLANK(K86)),NOT(ISBLANK(L86))),('Bewertung durch Anwender'!K86),IF(AND(NOT(ISBLANK(J86)),NOT(ISBLANK(I86))),('Bewertung durch Anwender'!I86),(Zielvereinbarung!G86)))","v":0},{"$f":"Zielvereinbarung!G86","v":0},null,null,null,null,null,null,null,{"$f":"'BNB-System'!L82","v":0}]
[null,null,{"$f":"'BNB-System'!G83","v":"Temperaturen während der Heizperiode"},{"$f":"'BNB-System'!H83","v":10},null,null,{"$f":"IF(AND(NOT(ISBLANK(K87)),NOT(ISBLANK(L87))),('Bewertung durch Anwender'!K87),IF(AND(NOT(ISBLANK(J87)),NOT(ISBLANK(I87))),('Bewertung durch Anwender'!I87),(Zielvereinbarung!G87)))","v":0},{"$f":"Zielvereinbarung!G87","v":0},null,null,null,null,null,null,null,{"$f":"'BNB-System'!L83","v":0}]
[null,null,{"$f":"'BNB-System'!G84","v":"Temperaturen außerhalb der Heizperiode"},{"$f":"'BNB-System'!H84","v":15},null,null,{"$f":"IF(AND(NOT(ISBLANK(K88)),NOT(ISBLANK(L88))),('Bewertung durch Anwender'!K88),IF(AND(NOT(ISBLANK(J88)),NOT(ISBLANK(I88))),('Bewertung durch Anwender'!I88),(Zielvereinbarung!G88)))","v":0},{"$f":"Zielvereinbarung!G88","v":0},null,null,null,null,null,null,null,{"$f":"'BNB-System'!L84","v":0}]
[null,null,{"$f":"'BNB-System'!G85","v":"Steuerung von Tageslicht"},{"$f":"'BNB-System'!H85","v":10},null,null,{"$f":"IF(AND(NOT(ISBLANK(K89)),NOT(ISBLANK(L89))),('Bewertung durch Anwender'!K89),IF(AND(NOT(ISBLANK(J89)),NOT(ISBLANK(I89))),('Bewertung durch Anwender'!I89),(Zielvereinbarung!G89)))","v":0},{"$f":"Zielvereinbarung!G89","v":0},null,null,null,null,null,null,null,{"$f":"'BNB-System'!L85","v":0}]
[null,null,{"$f":"'BNB-System'!G86","v":"Steuerung von  Kunstlicht"},{"$f":"'BNB-System'!H86","v":10},null,null,{"$f":"IF(AND(NOT(ISBLANK(K90)),NOT(ISBLANK(L90))),('Bewertung durch Anwender'!K90),IF(AND(NOT(ISBLANK(J90)),NOT(ISBLANK(I90))),('Bewertung durch Anwender'!I90),(Zielvereinbarung!G90)))","v":0},{"$f":"Zielvereinbarung!G90","v":0}]
[null,null,{"$f":"'BNB-System'!G87","v":"Bedienfreundlichkeit"},{"$f":"'BNB-System'!H87","v":10},null,null,{"$f":"IF(AND(NOT(ISBLANK(K91)),NOT(ISBLANK(L91))),('Bewertung durch Anwender'!K91),IF(AND(NOT(ISBLANK(J91)),NOT(ISBLANK(I91))),('Bewertung durch Anwender'!I91),(Zielvereinbarung!G91)))","v":0},{"$f":"Zielvereinbarung!G91","v":0},null,null,null,null,null,null,null,{"$f":"'BNB-System'!L87","v":0}]
[null,null,{"$f":"'BNB-System'!G88","v":"Funktionskonzept der Haustechnik"},{"$f":"'BNB-System'!H88","v":15},null,null,{"$f":"IF(AND(NOT(ISBLANK(K92)),NOT(ISBLANK(L92))),('Bewertung durch Anwender'!K92),IF(AND(NOT(ISBLANK(J92)),NOT(ISBLANK(I92))),('Bewertung durch Anwender'!I92),(Zielvereinbarung!G92)))","v":0},{"$f":"Zielvereinbarung!G92","v":0},null,null,null,null,null,null,null,{"$f":"'BNB-System'!L88","v":0}]
[null,{"$f":"'BNB-System'!F89","v":" 3.1.7"},{"$f":"'BNB-System'!G89","v":"Aufenthaltsmerkmale im Außenraum"},{"$f":"'BNB-System'!H89","v":100},{"$f":"'BNB-System'!K89","v":1.6666666666666666E-2},null,{"$f":"IF(AND(NOT(ISBLANK(K93)),NOT(ISBLANK(L93))),('Bewertung durch Anwender'!K93),IF(AND(NOT(ISBLANK(J93)),NOT(ISBLANK(I93))),('Bewertung durch Anwender'!I93),(Zielvereinbarung!G93)))","v":0},{"$f":"Zielvereinbarung!G93","v":0},null,null,null,null,{"$f":"SUM(M94:M97)","v":0},{"$f":"SUM(N94:N97)","v":0},null,{"$f":"'BNB-System'!L89","v":200},{"$f":"IF(ISNUMBER(E93*N93/100),E93*N93/100,0)","v":0}]
[null,null,{"$f":"'BNB-System'!G90","v":"Anzahl und Vielfalt Sitzgelegenheiten"},{"$f":"'BNB-System'!H90","v":30},null,null,{"$f":"IF(AND(NOT(ISBLANK(K94)),NOT(ISBLANK(L94))),('Bewertung durch Anwender'!K94),IF(AND(NOT(ISBLANK(J94)),NOT(ISBLANK(I94))),('Bewertung durch Anwender'!I94),(Zielvereinbarung!G94)))","v":0},{"$f":"Zielvereinbarung!G94","v":0},null,null,null,null,null,null,null,{"$f":"'BNB-System'!L90","v":0}]
[null,null,{"$f":"'BNB-System'!G91","v":"Anzahlund Vielfalt der Spiel- und Sportmöglichkeiten"},{"$f":"'BNB-System'!H91","v":15},null,null,{"$f":"IF(AND(NOT(ISBLANK(K95)),NOT(ISBLANK(L95))),('Bewertung durch Anwender'!K95),IF(AND(NOT(ISBLANK(J95)),NOT(ISBLANK(I95))),('Bewertung durch Anwender'!I95),(Zielvereinbarung!G95)))","v":0},{"$f":"Zielvereinbarung!G95","v":0},null,null,null,null,null,null,null,{"$f":"'BNB-System'!L91","v":0}]
[null,null,{"$f":"'BNB-System'!G92","v":"Zuordnung von Freibereichen zu Innenräumen"},{"$f":"'BNB-System'!H92","v":20},null,null,{"$f":"IF(AND(NOT(ISBLANK(K96)),NOT(ISBLANK(L96))),('Bewertung durch Anwender'!K96),IF(AND(NOT(ISBLANK(J96)),NOT(ISBLANK(I96))),('Bewertung durch Anwender'!I96),(Zielvereinbarung!G96)))","v":0},{"$f":"Zielvereinbarung!G96","v":0},null,null,null,null,null,null,null,{"$f":"'BNB-System'!L92","v":0}]
[null,null,{"$f":"'BNB-System'!G93","v":"Ausstattungsmerkmale"},{"$f":"'BNB-System'!H93","v":39},null,null,{"$f":"IF(AND(NOT(ISBLANK(K97)),NOT(ISBLANK(L97))),('Bewertung durch Anwender'!K97),IF(AND(NOT(ISBLANK(J97)),NOT(ISBLANK(I97))),('Bewertung durch Anwender'!I97),(Zielvereinbarung!G97)))","v":0},{"$f":"Zielvereinbarung!G97","v":0},null,null,null,null,null,null,null,{"$f":"'BNB-System'!L93","v":0}]
[null,{"$f":"'BNB-System'!F94","v":" 3.1.8"},{"$f":"'BNB-System'!G94","v":"Sicherheit"},{"$f":"'BNB-System'!H94","v":100},{"$f":"'BNB-System'!K94","v":8.3333333333333332E-3},null,{"$f":"IF(AND(NOT(ISBLANK(K98)),NOT(ISBLANK(L98))),('Bewertung durch Anwender'!K98),IF(AND(NOT(ISBLANK(J98)),NOT(ISBLANK(I98))),('Bewertung durch Anwender'!I98),(Zielvereinbarung!G98)))","v":0},{"$f":"Zielvereinbarung!G98","v":0},null,null,null,null,null,null,null,{"$f":"'BNB-System'!L94","v":100},{"$f":"IF(ISNUMBER(E98*N98/100),E98*N98/100,0)","v":0}]
[null,{"$f":"'BNB-System'!F95","v":" 3.1.9"},{"$f":"'BNB-System'!G95","v":"Innenraumqualität"},{"$f":"'BNB-System'!H95","v":100},{"$f":"'BNB-System'!K95","v":2.4999999999999998E-2},null,{"$f":"IF(AND(NOT(ISBLANK(K99)),NOT(ISBLANK(L99))),('Bewertung durch Anwender'!K99),IF(AND(NOT(ISBLANK(J99)),NOT(ISBLANK(I99))),('Bewertung durch Anwender'!I99),(Zielvereinbarung!G99)))","v":0},{"$f":"Zielvereinbarung!G99","v":0},null,null,null,null,{"$f":"SUM(M100:M103)","v":0},{"$f":"SUM(N100:N103)","v":0}]
[null,null,{"$f":"'BNB-System'!G96","v":"Aufenthaltsqualitäten der Erschließungsflächen"},{"$f":"'BNB-System'!H96","v":45},null,null,{"$f":"IF(AND(NOT(ISBLANK(K100)),NOT(ISBLANK(L100))),('Bewertung durch Anwender'!K100),IF(AND(NOT(ISBLANK(J100)),NOT(ISBLANK(I100))),('Bewertung durch Anwender'!I100),(Zielvereinbarung!G100)))","v":0},{"$f":"Zielvereinbarung!G100","v":0}]
[null,null,{"$f":"'BNB-System'!G97","v":"Innere Sitzbeziehung"},{"$f":"'BNB-System'!H97","v":15},null,null,{"$f":"IF(AND(NOT(ISBLANK(K101)),NOT(ISBLANK(L101))),('Bewertung durch Anwender'!K101),IF(AND(NOT(ISBLANK(J101)),NOT(ISBLANK(I101))),('Bewertung durch Anwender'!I101),(Zielvereinbarung!G101)))","v":0},{"$f":"Zielvereinbarung!G101","v":0}]
[null,null,{"$f":"'BNB-System'!G98","v":"Flexibilität der Raumnutzung"},{"$f":"'BNB-System'!H98","v":30},null,null,{"$f":"IF(AND(NOT(ISBLANK(K102)),NOT(ISBLANK(L102))),('Bewertung durch Anwender'!K102),IF(AND(NOT(ISBLANK(J102)),NOT(ISBLANK(I102))),('Bewertung durch Anwender'!I102),(Zielvereinbarung!G102)))","v":0},{"$f":"Zielvereinbarung!G102","v":0}]
[null,null,{"$f":"'BNB-System'!G99","v":"Aufbewahrungsmöglichkeiten"},{"$f":"'BNB-System'!H99","v":40},null,null,{"$f":"IF(AND(NOT(ISBLANK(K103)),NOT(ISBLANK(L103))),('Bewertung durch Anwender'!K103),IF(AND(NOT(ISBLANK(J103)),NOT(ISBLANK(I103))),('Bewertung durch Anwender'!I103),(Zielvereinbarung!G103)))","v":0},{"$f":"Zielvereinbarung!G103","v":0}]
[null,null,{"$f":"'BNB-System'!G100","v":"Funktionalität"},null,null,null,null,null,null,null,null,null,null,null,null,{"$f":"'BNB-System'!L100","v":0}]
[null,{"$f":"'BNB-System'!F101","v":" 3.2.1"},{"$f":"'BNB-System'!G101","v":"Barrierefreiheit"},{"$f":"'BNB-System'!H101","v":100},{"$f":"'BNB-System'!K101","v":1.6666666666666666E-2},null,{"$f":"IF(AND(NOT(ISBLANK(K105)),NOT(ISBLANK(L105))),('Bewertung durch Anwender'!K105),IF(AND(NOT(ISBLANK(J105)),NOT(ISBLANK(I105))),('Bewertung durch Anwender'!I105),(Zielvereinbarung!G105)))","v":0},{"$f":"Zielvereinbarung!G105","v":0},null,null,null,null,null,null,null,{"$f":"'BNB-System'!L101","v":200},{"$f":"IF(ISNUMBER(E105*N105/100),E105*N105/100,0)","v":0}]
[null,{"$f":"'BNB-System'!F102","v":" 3.2.4"},{"$f":"'BNB-System'!G102","v":"Zugänglichkeit"},{"$f":"'BNB-System'!H102","v":100},{"$f":"'BNB-System'!K102","v":1.6666666666666666E-2},null,{"$f":"IF(AND(NOT(ISBLANK(K106)),NOT(ISBLANK(L106))),('Bewertung durch Anwender'!K106),IF(AND(NOT(ISBLANK(J106)),NOT(ISBLANK(I106))),('Bewertung durch Anwender'!I106),(Zielvereinbarung!G106)))","v":0},{"$f":"Zielvereinbarung!G106","v":0},null,null,null,null,{"$f":"SUM(M107:M110)","v":0},{"$f":"SUM(N107:N110)","v":0},null,{"$f":"'BNB-System'!L102","v":200},{"$f":"IF(ISNUMBER(E106*N106/100),E106*N106/100,0)","v":0}]
[null,null,{"$f":"'BNB-System'!G103","v":"Grundsätzliche öffentliche Zugänglichkeit des Gebäudes"},{"$f":"'BNB-System'!H103","v":20},null,null,{"$f":"IF(AND(NOT(ISBLANK(K107)),NOT(ISBLANK(L107))),('Bewertung durch Anwender'!K107),IF(AND(NOT(ISBLANK(J107)),NOT(ISBLANK(I107))),('Bewertung durch Anwender'!I107),(Zielvereinbarung!G107)))","v":0},{"$f":"Zielvereinbarung!G107","v":0},null,null,null,null,null,null,null,{"$f":"'BNB-System'!L103","v":0}]
[null,null,{"$f":"'BNB-System'!G104","v":"Qualitative Merkmale der öffentlichen Zugänglichkeit des Gebäudes"},{"$f":"'BNB-System'!H104","v":50},null,null,{"$f":"IF(AND(NOT(ISBLANK(K108)),NOT(ISBLANK(L108))),('Bewertung durch Anwender'!K108),IF(AND(NOT(ISBLANK(J108)),NOT(ISBLANK(I108))),('Bewertung durch Anwender'!I108),(Zielvereinbarung!G108)))","v":0},{"$f":"Zielvereinbarung!G108","v":0},null,null,null,null,null,null,null,{"$f":"'BNB-System'!L104","v":0}]
[null,null,{"$f":"'BNB-System'!G105","v":"Nutzungsmerkmale der Zugänglichkeit"},{"$f":"'BNB-System'!H105","v":50},null,null,{"$f":"IF(AND(NOT(ISBLANK(K109)),NOT(ISBLANK(L109))),('Bewertung durch Anwender'!K109),IF(AND(NOT(ISBLANK(J109)),NOT(ISBLANK(I109))),('Bewertung durch Anwender'!I109),(Zielvereinbarung!G109)))","v":0},{"$f":"Zielvereinbarung!G109","v":0},null,null,null,null,null,null,null,{"$f":"'BNB-System'!L105","v":0}]
[null,null,{"$f":"'BNB-System'!G106","v":"Qualitative Aspekte der öffentlichen Zugänglichkeit der Freiflächen"},{"$f":"'BNB-System'!H106","v":20},null,null,{"$f":"IF(AND(NOT(ISBLANK(K110)),NOT(ISBLANK(L110))),('Bewertung durch Anwender'!K110),IF(AND(NOT(ISBLANK(J110)),NOT(ISBLANK(I110))),('Bewertung durch Anwender'!I110),(Zielvereinbarung!G110)))","v":0},{"$f":"Zielvereinbarung!G110","v":0},null,null,null,null,null,null,null,{"$f":"'BNB-System'!L106","v":0}]
[null,{"$f":"'BNB-System'!F107","v":" 3.2.5"},{"$f":"'BNB-System'!G107","v":"Mobilitätsinfrastruktur"},{"$f":"'BNB-System'!H107","v":100},{"$f":"'BNB-System'!K107","v":8.3333333333333332E-3},null,{"$f":"IF(AND(NOT(ISBLANK(K111)),NOT(ISBLANK(L111))),('Bewertung durch Anwender'!K111),IF(AND(NOT(ISBLANK(J111)),NOT(ISBLANK(I111))),('Bewertung durch Anwender'!I111),(Zielvereinbarung!G111)))","v":0},{"$f":"Zielvereinbarung!G111","v":0},null,null,null,null,{"$f":"IF(SUM(M112:M114)>100,100,SUM(M112:M114))","v":0},{"$f":"IF(SUM(N112:N114)>100,100,SUM(N112:N114))","v":0},null,{"$f":"'BNB-System'!L107","v":100},{"$f":"IF(ISNUMBER(E111*N111/100),E111*N111/100,0)","v":0}]
[null,null,{"$f":"'BNB-System'!G108","v":"Anzahl der Fahrradstellplätze"},null,null,null,{"$f":"IF(AND(NOT(ISBLANK(K112)),NOT(ISBLANK(L112))),('Bewertung durch Anwender'!K112),IF(AND(NOT(ISBLANK(J112)),NOT(ISBLANK(I112))),('Bewertung durch Anwender'!I112),(Zielvereinbarung!G112)))","v":0},null,null,null,null,null,null,null,null,{"$f":"'BNB-System'!L108","v":0}]
[null,null,{"$f":"'BNB-System'!G109","v":"Anzahl der Lademöglichkeiten und Carsharing-Stellplätze"},null,null,null,{"$f":"IF(AND(NOT(ISBLANK(K113)),NOT(ISBLANK(L113))),('Bewertung durch Anwender'!K113),IF(AND(NOT(ISBLANK(J113)),NOT(ISBLANK(I113))),('Bewertung durch Anwender'!I113),(Zielvereinbarung!G113)))","v":0},null,null,null,null,null,null,null,null,{"$f":"'BNB-System'!L109","v":0}]
[null,null,{"$f":"'BNB-System'!G110","v":"Qualitative Anforderungen an Fahrradstellplätze"},null,null,null,{"$f":"IF(AND(NOT(ISBLANK(K114)),NOT(ISBLANK(L114))),('Bewertung durch Anwender'!K114),IF(AND(NOT(ISBLANK(J114)),NOT(ISBLANK(I114))),('Bewertung durch Anwender'!I114),(Zielvereinbarung!G114)))","v":0},null,null,null,null,null,null,null,null,{"$f":"'BNB-System'!L110","v":0}]
[null,null,{"$f":"'BNB-System'!G111","v":"Sicherung der Gestaltungsqualität"},null,null,null,null,null,null,null,null,null,null,null,null,{"$f":"'BNB-System'!L111","v":0}]
[null,{"$f":"'BNB-System'!F112","v":" 3.3.1"},{"$f":"'BNB-System'!G112","v":"Gestalterische und städtebauliche Qualität"},{"$f":"'BNB-System'!H112","v":100},{"$f":"'BNB-System'!K112","v":2.4999999999999998E-2},null,{"$f":"IF(AND(NOT(ISBLANK(K116)),NOT(ISBLANK(L116))),('Bewertung durch Anwender'!K116),IF(AND(NOT(ISBLANK(J116)),NOT(ISBLANK(I116))),('Bewertung durch Anwender'!I116),(Zielvereinbarung!G116)))","v":0},{"$f":"Zielvereinbarung!G116","v":0},null,null,null,null,{"$f":"IF(AND(M117>0,M121<=M122),SUM(M117:M120),IF(AND(M117>0,M122<=M121),SUM(M117:M120),IF(M121>0,M121,IF(M122>0,M122,))))","v":0},{"$f":"IF(AND(N117>0,N121<=N122),SUM(N117:N120),IF(AND(N117>0,N122<=N121),SUM(N117:N120),IF(N121>0,N121,IF(N122>0,N122,))))","v":0},null,{"$f":"'BNB-System'!L112","v":300},{"$f":"IF(ISNUMBER(E116*N116/100),E116*N116/100,0)","v":0}]
[null,null,{"$f":"'BNB-System'!G113","v":"Fortentwicklung der gestalterischen und städtebaulichen Qualität des Bestandsgebäudes"},{"$f":"'BNB-System'!H113","v":40},null,null,{"$f":"IF(AND(NOT(ISBLANK(K117)),NOT(ISBLANK(L117))),('Bewertung durch Anwender'!K117),IF(AND(NOT(ISBLANK(J117)),NOT(ISBLANK(I117))),('Bewertung durch Anwender'!I117),(Zielvereinbarung!G117)))","v":0},{"$f":"Zielvereinbarung!G117","v":0},null,null,null,null,null,null,null,{"$f":"'BNB-System'!L113","v":0}]
[null,null,{"$f":"'BNB-System'!G114","v":"Wettbewerbsverfahren"},{"$f":"'BNB-System'!H114","v":35},null,null,{"$f":"IF(AND(NOT(ISBLANK(K118)),NOT(ISBLANK(L118))),('Bewertung durch Anwender'!K118),IF(AND(NOT(ISBLANK(J118)),NOT(ISBLANK(I118))),('Bewertung durch Anwender'!I118),(Zielvereinbarung!G118)))","v":0},{"$f":"Zielvereinbarung!G118","v":0},null,null,null,null,null,null,null,{"$f":"'BNB-System'!L114","v":0}]
[null,null,{"$f":"'BNB-System'!G115","v":"Ausführung des Entwurfs eines der Preisträger"},{"$f":"'BNB-System'!H115","v":20},null,null,{"$f":"IF(AND(NOT(ISBLANK(K119)),NOT(ISBLANK(L119))),('Bewertung durch Anwender'!K119),IF(AND(NOT(ISBLANK(J119)),NOT(ISBLANK(I119))),('Bewertung durch Anwender'!I119),(Zielvereinbarung!G119)))","v":0},{"$f":"Zielvereinbarung!G119","v":0},null,null,null,null,null,null,null,{"$f":"'BNB-System'!L115","v":0}]
[null,null,{"$f":"'BNB-System'!G116","v":"Beauftragung des Planungsteams"},{"$f":"'BNB-System'!H116","v":5},null,null,{"$f":"IF(AND(NOT(ISBLANK(K120)),NOT(ISBLANK(L120))),('Bewertung durch Anwender'!K120),IF(AND(NOT(ISBLANK(J120)),NOT(ISBLANK(I120))),('Bewertung durch Anwender'!I120),(Zielvereinbarung!G120)))","v":0},{"$f":"Zielvereinbarung!G120","v":0},null,null,null,null,null,null,null,{"$f":"'BNB-System'!L116","v":0}]
[null,null,{"$f":"'BNB-System'!G117","v":"Auszeichnung mit einem Architekturpreis"},{"$f":"'BNB-System'!H117","v":40},null,null,{"$f":"IF(AND(NOT(ISBLANK(K121)),NOT(ISBLANK(L121))),('Bewertung durch Anwender'!K121),IF(AND(NOT(ISBLANK(J121)),NOT(ISBLANK(I121))),('Bewertung durch Anwender'!I121),(Zielvereinbarung!G121)))","v":0},{"$f":"Zielvereinbarung!G121","v":0},null,null,null,null,null,null,null,{"$f":"'BNB-System'!L117","v":0}]
[null,null,{"$f":"'BNB-System'!G118","v":"Unabhängiges Expertengremium"},{"$f":"'BNB-System'!H118","v":30},null,null,{"$f":"IF(AND(NOT(ISBLANK(K122)),NOT(ISBLANK(L122))),('Bewertung durch Anwender'!K122),IF(AND(NOT(ISBLANK(J122)),NOT(ISBLANK(I122))),('Bewertung durch Anwender'!I122),(Zielvereinbarung!G122)))","v":0},{"$f":"Zielvereinbarung!G122","v":0},null,null,null,null,null,null,null,{"$f":"'BNB-System'!L118","v":0}]
[null,{"$f":"'BNB-System'!F119","v":" 3.3.2"},{"$f":"'BNB-System'!G119","v":"Kunst am Bau "},{"$f":"'BNB-System'!H119","v":100},{"$f":"'BNB-System'!K119","v":8.3333333333333332E-3},null,{"$f":"IF(AND(NOT(ISBLANK(K123)),NOT(ISBLANK(L123))),('Bewertung durch Anwender'!K123),IF(AND(NOT(ISBLANK(J123)),NOT(ISBLANK(I123))),('Bewertung durch Anwender'!I123),(Zielvereinbarung!G123)))","v":0},{"$f":"Zielvereinbarung!G123","v":0},null,null,null,null,{"$f":"SUM(M124:M127)","v":0},{"$f":"SUM(N124:N127)","v":0},null,{"$f":"'BNB-System'!L119","v":100},{"$f":"IF(ISNUMBER(E123*N123/100),E123*N123/100,0)","v":0}]
[null,null,{"$f":"'BNB-System'!G120","v":"Mindestanforderung"},{"$f":"'BNB-System'!H120","v":10},null,null,{"$f":"IF(AND(NOT(ISBLANK(K124)),NOT(ISBLANK(L124))),('Bewertung durch Anwender'!K124),IF(AND(NOT(ISBLANK(J124)),NOT(ISBLANK(I124))),('Bewertung durch Anwender'!I124),(Zielvereinbarung!G124)))","v":0},{"$f":"Zielvereinbarung!G124","v":0},null,null,null,null,null,null,null,{"$f":"'BNB-System'!L120","v":0}]
[null,null,{"$f":"'BNB-System'!G121","v":"Bereitstellung von Mitteln im Rahmen der Bauaufgabe"},{"$f":"'BNB-System'!H121","v":30},null,null,{"$f":"IF(AND(NOT(ISBLANK(K125)),NOT(ISBLANK(L125))),('Bewertung durch Anwender'!K125),IF(AND(NOT(ISBLANK(J125)),NOT(ISBLANK(I125))),('Bewertung durch Anwender'!I125),(Zielvereinbarung!G125)))","v":0},{"$f":"Zielvereinbarung!G125","v":0},null,null,null,null,null,null,null,{"$f":"'BNB-System'!L121","v":0}]
[null,null,{"$f":"'BNB-System'!G122","v":"Umsetzung des Leitfadens Kunst am Bau"},{"$f":"'BNB-System'!H122","v":40},null,null,{"$f":"IF(AND(NOT(ISBLANK(K126)),NOT(ISBLANK(L126))),('Bewertung durch Anwender'!K126),IF(AND(NOT(ISBLANK(J126)),NOT(ISBLANK(I126))),('Bewertung durch Anwender'!I126),(Zielvereinbarung!G126)))","v":0},{"$f":"Zielvereinbarung!G126","v":0},null,null,null,null,null,null,null,{"$f":"'BNB-System'!L122","v":0}]
[null,null,{"$f":"'BNB-System'!G123","v":"Öffentlichkeitsarbeit, Rezeption  der Kunst am Bau"},{"$f":"'BNB-System'!H123","v":20},null,null,{"$f":"IF(AND(NOT(ISBLANK(K127)),NOT(ISBLANK(L127))),('Bewertung durch Anwender'!K127),IF(AND(NOT(ISBLANK(J127)),NOT(ISBLANK(I127))),('Bewertung durch Anwender'!I127),(Zielvereinbarung!G127)))","v":0},{"$f":"Zielvereinbarung!G127","v":0},null,null,null,null,null,null,null,{"$f":"'BNB-System'!L123","v":0}]
[null,null,null,null,null,null,null,null,null,null,null,null,null,null,null,{"$f":"'BNB-System'!L124","v":0}]
[null,{"$f":"'BNB-System'!F125","v":"Technische Qualität"},null,null,{"$f":"'BNB-System'!K125","v":0.22500000000000001},null,{"$f":"IF(AND(NOT(ISBLANK(K129)),NOT(ISBLANK(L129))),('Bewertung durch Anwender'!K129),IF(AND(NOT(ISBLANK(J129)),NOT(ISBLANK(I129))),('Bewertung durch Anwender'!I129),(Zielvereinbarung!G129)))","v":0},{"$f":"Zielvereinbarung!G129","v":0},null,null,null,null,{"$f":"M132*($E$132/100)+M137*($E$137/100)+M144*($E$144/100)+M155*($E$155/100)+M156*($E$156/100)+M157*($E$157/100)","v":0},{"$f":"N132*($E$132/100)+N137*($E$137/100)+N144*($E$144/100)+N155*($E$155/100)+N156*($E$156/100)+N157*($E$157/100)","v":0},null,{"$f":"'BNB-System'!L125","v":1000}]
[null,null,null,null,null,null,null,null,null,null,null,null,null,null,null,{"$f":"'BNB-System'!L126","v":0}]
[null,null,{"$f":"'BNB-System'!G127","v":"technische Ausführung"},null,null,null,null,null,null,null,null,null,null,null,null,{"$f":"'BNB-System'!L127","v":0}]
[null,{"$f":"'BNB-System'!F128","v":" 4.1.1"},{"$f":"'BNB-System'!G128","v":"Schallschutz "},{"$f":"'BNB-System'!H128","v":100},{"$f":"'BNB-System'!K128","v":4.5000000000000005E-2},null,{"$f":"IF(AND(NOT(ISBLANK(K132)),NOT(ISBLANK(L132))),('Bewertung durch Anwender'!K132),IF(AND(NOT(ISBLANK(J132)),NOT(ISBLANK(I132))),('Bewertung durch Anwender'!I132),(Zielvereinbarung!G132)))","v":0},{"$f":"Zielvereinbarung!G132","v":0},null,null,null,null,{"$f":"SUM(M133:M136)","v":0},{"$f":"SUM(N133:N136)","v":0},null,{"$f":"'BNB-System'!L128","v":200},{"$f":"IF(ISNUMBER(E132*N132/100),E132*N132/100,0)","v":0}]
[null,null,{"$f":"'BNB-System'!G129","v":"Luftschallschutz gegen Außenlärm"},{"$f":"'BNB-System'!H129","v":20},null,null,{"$f":"IF(AND(NOT(ISBLANK(K133)),NOT(ISBLANK(L133))),('Bewertung durch Anwender'!K133),IF(AND(NOT(ISBLANK(J133)),NOT(ISBLANK(I133))),('Bewertung durch Anwender'!I133),(Zielvereinbarung!G133)))","v":0},{"$f":"Zielvereinbarung!G133","v":0},null,null,null,null,null,null,null,{"$f":"'BNB-System'!L129","v":0}]
[null,null,{"$f":"'BNB-System'!G130","v":"Luftschallschutz"},{"$f":"'BNB-System'!H130","v":30},null,null,{"$f":"IF(AND(NOT(ISBLANK(K134)),NOT(ISBLANK(L134))),('Bewertung durch Anwender'!K134),IF(AND(NOT(ISBLANK(J134)),NOT(ISBLANK(I134))),('Bewertung durch Anwender'!I134),(Zielvereinbarung!G134)))","v":0},{"$f":"Zielvereinbarung!G134","v":0},null,null,null,null,null,null,null,{"$f":"'BNB-System'!L130","v":0}]
[null,null,{"$f":"'BNB-System'!G131","v":"Trittschallschutz"},{"$f":"'BNB-System'!H131","v":30},null,null,{"$f":"IF(AND(NOT(ISBLANK(K135)),NOT(ISBLANK(L135))),('Bewertung durch Anwender'!K135),IF(AND(NOT(ISBLANK(J135)),NOT(ISBLANK(I135))),('Bewertung durch Anwender'!I135),(Zielvereinbarung!G135)))","v":0},{"$f":"Zielvereinbarung!G135","v":0},null,null,null,null,null,null,null,{"$f":"'BNB-System'!L131","v":0}]
[null,null,{"$f":"'BNB-System'!G132","v":"Schallschutz gegenüber haustechnischen Anlagen"},{"$f":"'BNB-System'!H132","v":20},null,null,{"$f":"IF(AND(NOT(ISBLANK(K136)),NOT(ISBLANK(L136))),('Bewertung durch Anwender'!K136),IF(AND(NOT(ISBLANK(J136)),NOT(ISBLANK(I136))),('Bewertung durch Anwender'!I136),(Zielvereinbarung!G136)))","v":0},{"$f":"Zielvereinbarung!G136","v":0},null,null,null,null,null,null,null,{"$f":"'BNB-System'!L132","v":0}]
[null,{"$f":"'BNB-System'!F133","v":" 4.1.2"},{"$f":"'BNB-System'!G133","v":"Wärme- und Tauwasserschutz "},{"$f":"'BNB-System'!H133","v":100},{"$f":"'BNB-System'!K133","v":4.5000000000000005E-2},null,{"$f":"IF(AND(NOT(ISBLANK(K137)),NOT(ISBLANK(L137))),('Bewertung durch Anwender'!K137),IF(AND(NOT(ISBLANK(J137)),NOT(ISBLANK(I137))),('Bewertung durch Anwender'!I137),(Zielvereinbarung!G137)))","v":0},{"$f":"Zielvereinbarung!G137","v":0},null,null,null,null,{"$f":"SUM(M138:M143)","v":0},{"$f":"SUM(N138:N143)","v":0},null,{"$f":"'BNB-System'!L133","v":200},{"$f":"IF(ISNUMBER(E137*N137/100),E137*N137/100,0)","v":0}]
[null,null,{"$f":"'BNB-System'!G134","v":"Mittlere Wärmeduchgangskoeffizienten"},{"$f":"'BNB-System'!H134","v":30},null,null,{"$f":"IF(AND(NOT(ISBLANK(K138)),NOT(ISBLANK(L138))),('Bewertung durch Anwender'!K138),IF(AND(NOT(ISBLANK(J138)),NOT(ISBLANK(I138))),('Bewertung durch Anwender'!I138),(Zielvereinbarung!G138)))","v":0},{"$f":"Zielvereinbarung!G138","v":0},null,null,null,null,null,null,null,{"$f":"'BNB-System'!L134","v":0}]
[null,null,{"$f":"'BNB-System'!G135","v":"Wärmebrückenzuschlag"},{"$f":"'BNB-System'!H135","v":15},null,null,{"$f":"IF(AND(NOT(ISBLANK(K139)),NOT(ISBLANK(L139))),('Bewertung durch Anwender'!K139),IF(AND(NOT(ISBLANK(J139)),NOT(ISBLANK(I139))),('Bewertung durch Anwender'!I139),(Zielvereinbarung!G139)))","v":0},{"$f":"Zielvereinbarung!G139","v":0},null,null,null,null,null,null,null,{"$f":"'BNB-System'!L135","v":0}]
[null,null,{"$f":"'BNB-System'!G136","v":"Klassen der Luftdurchlässigkeit (Fugendurchlässigkeit)"},{"$f":"'BNB-System'!H136","v":15},null,null,{"$f":"IF(AND(NOT(ISBLANK(K140)),NOT(ISBLANK(L140))),('Bewertung durch Anwender'!K140),IF(AND(NOT(ISBLANK(J140)),NOT(ISBLANK(I140))),('Bewertung durch Anwender'!I140),(Zielvereinbarung!G140)))","v":0},{"$f":"Zielvereinbarung!G140","v":0},null,null,null,null,null,null,null,{"$f":"'BNB-System'!L136","v":0}]
[null,null,{"$f":"'BNB-System'!G137","v":"Tauwasserbildung"},{"$f":"'BNB-System'!H137","v":10},null,null,{"$f":"IF(AND(NOT(ISBLANK(K141)),NOT(ISBLANK(L141))),('Bewertung durch Anwender'!K141),IF(AND(NOT(ISBLANK(J141)),NOT(ISBLANK(I141))),('Bewertung durch Anwender'!I141),(Zielvereinbarung!G141)))","v":0},{"$f":"Zielvereinbarung!G141","v":0},null,null,null,null,null,null,null,{"$f":"'BNB-System'!L137","v":0}]
[null,null,{"$f":"'BNB-System'!G138","v":"Luftwechsel"},{"$f":"'BNB-System'!H138","v":15},null,null,{"$f":"IF(AND(NOT(ISBLANK(K142)),NOT(ISBLANK(L142))),('Bewertung durch Anwender'!K142),IF(AND(NOT(ISBLANK(J142)),NOT(ISBLANK(I142))),('Bewertung durch Anwender'!I142),(Zielvereinbarung!G142)))","v":0},{"$f":"Zielvereinbarung!G142","v":0},null,null,null,null,null,null,null,{"$f":"'BNB-System'!L138","v":0}]
[null,null,{"$f":"'BNB-System'!G139","v":"Sonneneintragswert"},{"$f":"'BNB-System'!H139","v":15},null,null,{"$f":"IF(AND(NOT(ISBLANK(K143)),NOT(ISBLANK(L143))),('Bewertung durch Anwender'!K143),IF(AND(NOT(ISBLANK(J143)),NOT(ISBLANK(I143))),('Bewertung durch Anwender'!I143),(Zielvereinbarung!G143)))","v":0},{"$f":"Zielvereinbarung!G143","v":0},null,null,null,null,null,null,null,{"$f":"'BNB-System'!L139","v":0}]
[null,{"$f":"'BNB-System'!F140","v":" 4.1.3"},{"$f":"'BNB-System'!G140","v":"Reinigungs- und Instandhaltungsfreundlichkeit"},{"$f":"'BNB-System'!H140","v":100},{"$f":"'BNB-System'!K140","v":4.5000000000000005E-2},null,{"$f":"IF(AND(NOT(ISBLANK(K144)),NOT(ISBLANK(L144))),('Bewertung durch Anwender'!K144),IF(AND(NOT(ISBLANK(J144)),NOT(ISBLANK(I144))),('Bewertung durch Anwender'!I144),(Zielvereinbarung!G144)))","v":0},{"$f":"Zielvereinbarung!G144","v":0},null,null,null,null,{"$f":"SUM(M145:M154)","v":0},{"$f":"SUM(N145:N154)","v":0},null,{"$f":"'BNB-System'!L140","v":200},{"$f":"IF(ISNUMBER(E144*N144/100),E144*N144/100,0)","v":0}]
[null,null,{"$f":"'BNB-System'!G141","v":"Tragkonstruktion"},{"$f":"'BNB-System'!H141","v":15},null,null,{"$f":"IF(AND(NOT(ISBLANK(K145)),NOT(ISBLANK(L145))),('Bewertung durch Anwender'!K145),IF(AND(NOT(ISBLANK(J145)),NOT(ISBLANK(I145))),('Bewertung durch Anwender'!I145),(Zielvereinbarung!G145)))","v":0},{"$f":"Zielvereinbarung!G145","v":0},null,null,null,null,null,null,null,{"$f":"'BNB-System'!L141","v":0}]
[null,null,{"$f":"'BNB-System'!G142","v":"Zugänglichkeit der Außenglasflächen"},{"$f":"'BNB-System'!H142","v":12},null,null,{"$f":"IF(AND(NOT(ISBLANK(K146)),NOT(ISBLANK(L146))),('Bewertung durch Anwender'!K146),IF(AND(NOT(ISBLANK(J146)),NOT(ISBLANK(I146))),('Bewertung durch Anwender'!I146),(Zielvereinbarung!G146)))","v":0},{"$f":"Zielvereinbarung!G146","v":0},null,null,null,null,null,null,null,{"$f":"'BNB-System'!L142","v":0}]
[null,null,{"$f":"'BNB-System'!G143","v":"Außenbauteile"},{"$f":"'BNB-System'!H143","v":9},null,null,{"$f":"IF(AND(NOT(ISBLANK(K147)),NOT(ISBLANK(L147))),('Bewertung durch Anwender'!K147),IF(AND(NOT(ISBLANK(J147)),NOT(ISBLANK(I147))),('Bewertung durch Anwender'!I147),(Zielvereinbarung!G147)))","v":0},{"$f":"Zielvereinbarung!G147","v":0},null,null,null,null,null,null,null,{"$f":"'BNB-System'!L143","v":0}]
[null,null,{"$f":"'BNB-System'!G144","v":"Bodenbelag"},{"$f":"'BNB-System'!H144","v":9},null,null,{"$f":"IF(AND(NOT(ISBLANK(K148)),NOT(ISBLANK(L148))),('Bewertung durch Anwender'!K148),IF(AND(NOT(ISBLANK(J148)),NOT(ISBLANK(I148))),('Bewertung durch Anwender'!I148),(Zielvereinbarung!G148)))","v":0},{"$f":"Zielvereinbarung!G148","v":0},null,null,null,null,null,null,null,{"$f":"'BNB-System'!L144","v":0}]
[null,null,{"$f":"'BNB-System'!G145","v":"Schmutzfangzone"},{"$f":"'BNB-System'!H145","v":9},null,null,{"$f":"IF(AND(NOT(ISBLANK(K149)),NOT(ISBLANK(L149))),('Bewertung durch Anwender'!K149),IF(AND(NOT(ISBLANK(J149)),NOT(ISBLANK(I149))),('Bewertung durch Anwender'!I149),(Zielvereinbarung!G149)))","v":0},{"$f":"Zielvereinbarung!G149","v":0},null,null,null,null,null,null,null,{"$f":"'BNB-System'!L145","v":0}]
[null,null,{"$f":"'BNB-System'!G146","v":"Fußbodenleisten"},{"$f":"'BNB-System'!H146","v":9},null,null,{"$f":"IF(AND(NOT(ISBLANK(K150)),NOT(ISBLANK(L150))),('Bewertung durch Anwender'!K150),IF(AND(NOT(ISBLANK(J150)),NOT(ISBLANK(I150))),('Bewertung durch Anwender'!I150),(Zielvereinbarung!G150)))","v":0},{"$f":"Zielvereinbarung!G150","v":0},null,null,null,null,null,null,null,{"$f":"'BNB-System'!L146","v":0}]
[null,null,{"$f":"'BNB-System'!G147","v":"Hindernisfreie Grundrissgestaltung"},{"$f":"'BNB-System'!H147","v":9},null,null,{"$f":"IF(AND(NOT(ISBLANK(K151)),NOT(ISBLANK(L151))),('Bewertung durch Anwender'!K151),IF(AND(NOT(ISBLANK(J151)),NOT(ISBLANK(I151))),('Bewertung durch Anwender'!I151),(Zielvereinbarung!G151)))","v":0},{"$f":"Zielvereinbarung!G151","v":0},null,null,null,null,null,null,null,{"$f":"'BNB-System'!L147","v":0}]
[null,null,{"$f":"'BNB-System'!G148","v":"Einbauten"},{"$f":"'BNB-System'!H148","v":10},null,null,{"$f":"IF(AND(NOT(ISBLANK(K152)),NOT(ISBLANK(L152))),('Bewertung durch Anwender'!K152),IF(AND(NOT(ISBLANK(J152)),NOT(ISBLANK(I152))),('Bewertung durch Anwender'!I152),(Zielvereinbarung!G152)))","v":0},{"$f":"Zielvereinbarung!G152","v":0},null,null,null,null,null,null,null,{"$f":"'BNB-System'!L148","v":0}]
[null,null,{"$f":"'BNB-System'!G149","v":"Zugänglichkeit der Innenglasflächen "},{"$f":"'BNB-System'!H149","v":9},null,null,{"$f":"IF(AND(NOT(ISBLANK(K153)),NOT(ISBLANK(L153))),('Bewertung durch Anwender'!K153),IF(AND(NOT(ISBLANK(J153)),NOT(ISBLANK(I153))),('Bewertung durch Anwender'!I153),(Zielvereinbarung!G154)))","v":0},{"$f":"Zielvereinbarung!G154","v":0}]
[null,null,{"$f":"'BNB-System'!G150","v":"Wände"},{"$f":"'BNB-System'!H150","v":9},null,null,{"$f":"IF(AND(NOT(ISBLANK(K154)),NOT(ISBLANK(L154))),('Bewertung durch Anwender'!K154),IF(AND(NOT(ISBLANK(J154)),NOT(ISBLANK(I154))),('Bewertung durch Anwender'!I154),(Zielvereinbarung!G154)))","v":0},{"$f":"Zielvereinbarung!G154","v":0},null,null,null,null,null,null,null,{"$f":"'BNB-System'!L150","v":0}]
[null,{"$f":"'BNB-System'!F151","v":" 4.1.4"},{"$f":"'BNB-System'!G151","v":"Rückbau, Trennung und Verwertung"},{"$f":"'BNB-System'!H151","v":100},{"$f":"'BNB-System'!K151","v":4.5000000000000005E-2},null,{"$f":"IF(AND(NOT(ISBLANK(K155)),NOT(ISBLANK(L155))),('Bewertung durch Anwender'!K155),IF(AND(NOT(ISBLANK(J155)),NOT(ISBLANK(I155))),('Bewertung durch Anwender'!I155),(Zielvereinbarung!G155)))","v":0},{"$f":"Zielvereinbarung!G155","v":0},null,null,null,null,null,null,null,{"$f":"'BNB-System'!L151","v":200},{"$f":"IF(ISNUMBER(E155*N155/100),E155*N155/100,0)","v":0}]
[null,{"$f":"'BNB-System'!F152","v":" 4.1.5"},{"$f":"'BNB-System'!G152","v":"Widerstandsfähigkeit gegen Naturgefahren"},{"$f":"'BNB-System'!H152","v":100},{"$f":"'BNB-System'!K152","v":2.2500000000000003E-2},null,{"$f":"IF(AND(NOT(ISBLANK(K156)),NOT(ISBLANK(L156))),('Bewertung durch Anwender'!K156),IF(AND(NOT(ISBLANK(J156)),NOT(ISBLANK(I156))),('Bewertung durch Anwender'!I156),(Zielvereinbarung!G156)))","v":0},{"$f":"Zielvereinbarung!G156","v":0},null,null,null,null,null,null,null,{"$f":"'BNB-System'!L152","v":100},{"$f":"IF(ISNUMBER(E156*N156/100),E156*N156/100,0)","v":0}]
[null,{"$f":"'BNB-System'!F153","v":" 4.1.6"},{"$f":"'BNB-System'!G153","v":"Bedienungs- und Instandhaltungsfreundlichkeit der TGA"},{"$f":"'BNB-System'!H153","v":100},{"$f":"'BNB-System'!K153","v":2.2500000000000003E-2},null,{"$f":"IF(AND(NOT(ISBLANK(K157)),NOT(ISBLANK(L157))),('Bewertung durch Anwender'!K157),IF(AND(NOT(ISBLANK(J157)),NOT(ISBLANK(I157))),('Bewertung durch Anwender'!I157),(Zielvereinbarung!G157)))","v":0},{"$f":"Zielvereinbarung!G157","v":0},null,null,null,null,null,null,null,{"$f":"'BNB-System'!L153","v":100},{"$f":"IF(ISNUMBER(E157*N157/100),E157*N157/100,0)","v":0}]
[null,null,null,null,null,null,null,null,null,null,null,null,null,null,null,{"$f":"'BNB-System'!L154","v":0}]
[null,{"$f":"'BNB-System'!F155","v":"Prozessqualität"},null,null,{"$f":"'BNB-System'!K155","v":0.1},null,{"$f":"IF(AND(NOT(ISBLANK(K159)),NOT(ISBLANK(L159))),('Bewertung durch Anwender'!K159),IF(AND(NOT(ISBLANK(J159)),NOT(ISBLANK(I159))),('Bewertung durch Anwender'!I159),(Zielvereinbarung!G159)))","v":0},{"$f":"Zielvereinbarung!G159","v":0},null,null,null,null,{"$f":"M162*($E$162/100)+M166*($E$166/100)+M172*($E$172/100)+M188*($E$188/100)+M189*($E$189/100)+M209*($E$209/100)+M214*($E$214/100)+M217*($E$217/100)","v":0},{"$f":"N162*($E$162/100)+N166*($E$166/100)+N172*($E$172/100)+N188*($E$188/100)+N189*($E$189/100)+N209*($E$209/100)+N214*($E$214/100)+N217*($E$217/100)","v":0},null,{"$f":"'BNB-System'!L155","v":2500}]
[null,null,null,null,null,null,null,null,null,null,null,null,null,null,null,{"$f":"'BNB-System'!L156","v":0}]
[null,null,{"$f":"'BNB-System'!G157","v":"Planung"},null,null,null,null,null,null,null,null,null,null,null,null,{"$f":"'BNB-System'!L157","v":0}]
[null,{"$f":"'BNB-System'!F158","v":" 5.1.1"},{"$f":"'BNB-System'!G158","v":"Projektvorbereitung"},{"$f":"'BNB-System'!H158","v":100},{"$f":"'BNB-System'!K158","v":1.2E-2},null,{"$f":"IF(AND(NOT(ISBLANK(K162)),NOT(ISBLANK(L162))),('Bewertung durch Anwender'!K162),IF(AND(NOT(ISBLANK(J162)),NOT(ISBLANK(I162))),('Bewertung durch Anwender'!I162),(Zielvereinbarung!G162)))","v":0},{"$f":"Zielvereinbarung!G162","v":0},null,null,null,null,null,null,null,{"$f":"'BNB-System'!L158","v":300},{"$f":"IF(ISNUMBER(E162*N162/100),E162*N162/100,0)","v":0}]
[null,null,{"$f":"'BNB-System'!G159","v":"Bedarfsplanung oder vergleichbare Planung"},{"$f":"'BNB-System'!H159","v":35},{"$f":"'BNB-System'!K159","v":0},null,{"$f":"IF(AND(NOT(ISBLANK(K163)),NOT(ISBLANK(L163))),('Bewertung durch Anwender'!K163),IF(AND(NOT(ISBLANK(J163)),NOT(ISBLANK(I163))),('Bewertung durch Anwender'!I163),(Zielvereinbarung!G163)))","v":0},{"$f":"Zielvereinbarung!G163","v":0},null,null,null,null,null,null,null,{"$f":"'BNB-System'!L159","v":0}]
[null,null,{"$f":"'BNB-System'!G160","v":"Zielvereinbarung"},{"$f":"'BNB-System'!H160","v":35},{"$f":"'BNB-System'!K160","v":0},null,{"$f":"IF(AND(NOT(ISBLANK(K164)),NOT(ISBLANK(L164))),('Bewertung durch Anwender'!K164),IF(AND(NOT(ISBLANK(J164)),NOT(ISBLANK(I164))),('Bewertung durch Anwender'!I164),(Zielvereinbarung!G164)))","v":0},{"$f":"Zielvereinbarung!G164","v":0},null,null,null,null,null,null,null,{"$f":"'BNB-System'!L160","v":0}]
[null,null,{"$f":"'BNB-System'!G161","v":"Architektenwettbewerb"},{"$f":"'BNB-System'!H161","v":30},{"$f":"'BNB-System'!K161","v":0},null,{"$f":"IF(AND(NOT(ISBLANK(K165)),NOT(ISBLANK(L165))),('Bewertung durch Anwender'!K165),IF(AND(NOT(ISBLANK(J165)),NOT(ISBLANK(I165))),('Bewertung durch Anwender'!I165),(Zielvereinbarung!G165)))","v":0},{"$f":"Zielvereinbarung!G165","v":0},null,null,null,null,null,null,null,{"$f":"'BNB-System'!L161","v":0}]
[null,{"$f":"'BNB-System'!F162","v":" 5.1.2"},{"$f":"'BNB-System'!G162","v":"Integrale Planung"},{"$f":"'BNB-System'!H162","v":100},{"$f":"'BNB-System'!K162","v":1.2E-2},null,{"$f":"IF(AND(NOT(ISBLANK(K166)),NOT(ISBLANK(L166))),('Bewertung durch Anwender'!K166),IF(AND(NOT(ISBLANK(J166)),NOT(ISBLANK(I166))),('Bewertung durch Anwender'!I166),(Zielvereinbarung!G166)))","v":0},{"$f":"Zielvereinbarung!G166","v":0},null,null,null,null,{"$f":"SUM(M167:M171)","v":0},{"$f":"SUM(N167:N171)","v":0},null,{"$f":"'BNB-System'!L162","v":300},{"$f":"IF(ISNUMBER(E166*N166/100),E166*N166/100,0)","v":0}]
[null,null,{"$f":"'BNB-System'!G163","v":"Integrales Planungsteam"},{"$f":"'BNB-System'!H163","v":20},null,null,{"$f":"IF(AND(NOT(ISBLANK(K167)),NOT(ISBLANK(L167))),('Bewertung durch Anwender'!K167),IF(AND(NOT(ISBLANK(J167)),NOT(ISBLANK(I167))),('Bewertung durch Anwender'!I167),(Zielvereinbarung!G167)))","v":0},{"$f":"Zielvereinbarung!G167","v":0},null,null,null,null,null,null,null,{"$f":"'BNB-System'!L163","v":0}]
[null,null,{"$f":"'BNB-System'!G164","v":"Qualifikation des Planungsteams"},{"$f":"'BNB-System'!H164","v":20},null,null,{"$f":"IF(AND(NOT(ISBLANK(K168)),NOT(ISBLANK(L168))),('Bewertung durch Anwender'!K168),IF(AND(NOT(ISBLANK(J168)),NOT(ISBLANK(I168))),('Bewertung durch Anwender'!I168),(Zielvereinbarung!G168)))","v":0},{"$f":"Zielvereinbarung!G168","v":0},null,null,null,null,null,null,null,{"$f":"'BNB-System'!L164","v":0}]
[null,null,{"$f":"'BNB-System'!G165","v":"Integraler Planungsprozess"},{"$f":"'BNB-System'!H165","v":20},null,null,{"$f":"IF(AND(NOT(ISBLANK(K169)),NOT(ISBLANK(L169))),('Bewertung durch Anwender'!K169),IF(AND(NOT(ISBLANK(J169)),NOT(ISBLANK(I169))),('Bewertung durch Anwender'!I169),(Zielvereinbarung!G169)))","v":0},{"$f":"Zielvereinbarung!G169","v":0},null,null,null,null,null,null,null,{"$f":"'BNB-System'!L165","v":0}]
[null,null,{"$f":"'BNB-System'!G166","v":"Nutzerbeteiligung"},{"$f":"'BNB-System'!H166","v":30},null,null,{"$f":"IF(AND(NOT(ISBLANK(K170)),NOT(ISBLANK(L170))),('Bewertung durch Anwender'!K170),IF(AND(NOT(ISBLANK(J170)),NOT(ISBLANK(I170))),('Bewertung durch Anwender'!I170),(Zielvereinbarung!G170)))","v":0},{"$f":"Zielvereinbarung!G170","v":0},null,null,null,null,null,null,null,{"$f":"'BNB-System'!L166","v":0}]
[null,null,{"$f":"'BNB-System'!G167","v":"Öffentlichkeitsbeteiligung"},{"$f":"'BNB-System'!H167","v":10},null,null,{"$f":"IF(AND(NOT(ISBLANK(K171)),NOT(ISBLANK(L171))),('Bewertung durch Anwender'!K171),IF(AND(NOT(ISBLANK(J171)),NOT(ISBLANK(I171))),('Bewertung durch Anwender'!I171),(Zielvereinbarung!G171)))","v":0},{"$f":"Zielvereinbarung!G171","v":0},null,null,null,null,null,null,null,{"$f":"'BNB-System'!L167","v":0}]
[null,{"$f":"'BNB-System'!F168","v":" 5.1.3"},{"$f":"'BNB-System'!G168","v":"Komplexität und Optimierung der Planung"},{"$f":"'BNB-System'!H168","v":100},{"$f":"'BNB-System'!K168","v":1.2E-2},null,{"$f":"IF(AND(NOT(ISBLANK(K172)),NOT(ISBLANK(L172))),('Bewertung durch Anwender'!K172),IF(AND(NOT(ISBLANK(J172)),NOT(ISBLANK(I172))),('Bewertung durch Anwender'!I172),(Zielvereinbarung!G172)))","v":0},{"$f":"Zielvereinbarung!G172","v":0},null,null,null,null,{"$f":"IF(SUM(M173:M187)>100,100,SUM(M173:M187))","v":0},{"$f":"IF(SUM(N173:N187)>100,100,SUM(N173:N187))","v":0},null,{"$f":"'BNB-System'!L168","v":300},{"$f":"IF(ISNUMBER(E172*N172/100),E172*N172/100,0)","v":0}]
[null,null,{"$f":"'BNB-System'!G169","v":"SiGe-Plan"},{"$f":"'BNB-System'!H169","v":10},null,null,{"$f":"IF(AND(NOT(ISBLANK(K173)),NOT(ISBLANK(L173))),('Bewertung durch Anwender'!K173),IF(AND(NOT(ISBLANK(J173)),NOT(ISBLANK(I173))),('Bewertung durch Anwender'!I173),(Zielvereinbarung!G173)))","v":0},{"$f":"Zielvereinbarung!G173","v":0},null,null,null,null,null,null,null,{"$f":"'BNB-System'!L169","v":0}]
[null,null,{"$f":"'BNB-System'!G170","v":"Ver- und Entsiegelungskonzept"},{"$f":"'BNB-System'!H170","v":10},null,null,{"$f":"IF(AND(NOT(ISBLANK(K174)),NOT(ISBLANK(L174))),('Bewertung durch Anwender'!K174),IF(AND(NOT(ISBLANK(J174)),NOT(ISBLANK(I174))),('Bewertung durch Anwender'!I174),(Zielvereinbarung!G174)))","v":0},{"$f":"Zielvereinbarung!G174","v":0},null,null,null,null,null,null,null,{"$f":"'BNB-System'!L170","v":0}]
[null,null,{"$f":"'BNB-System'!G171","v":"Energiekonzept"},{"$f":"'BNB-System'!H171","v":15},null,null,{"$f":"IF(AND(NOT(ISBLANK(K175)),NOT(ISBLANK(L175))),('Bewertung durch Anwender'!K175),IF(AND(NOT(ISBLANK(J175)),NOT(ISBLANK(I175))),('Bewertung durch Anwender'!I175),(Zielvereinbarung!G175)))","v":0},{"$f":"Zielvereinbarung!G175","v":0},null,null,null,null,null,null,null,{"$f":"'BNB-System'!L171","v":0}]
[null,null,{"$f":"'BNB-System'!G172","v":"Mess- und Monitoringkonzept"},{"$f":"'BNB-System'!H172","v":15},null,null,{"$f":"IF(AND(NOT(ISBLANK(K176)),NOT(ISBLANK(L176))),('Bewertung durch Anwender'!K176),IF(AND(NOT(ISBLANK(J176)),NOT(ISBLANK(I176))),('Bewertung durch Anwender'!I176),(Zielvereinbarung!G176)))","v":0},{"$f":"Zielvereinbarung!G176","v":0},null,null,null,null,null,null,null,{"$f":"'BNB-System'!L172","v":0}]
[null,null,{"$f":"'BNB-System'!G173","v":"Wasserkonzept"},{"$f":"'BNB-System'!H173","v":10},null,null,{"$f":"IF(AND(NOT(ISBLANK(K177)),NOT(ISBLANK(L177))),('Bewertung durch Anwender'!K177),IF(AND(NOT(ISBLANK(J177)),NOT(ISBLANK(I177))),('Bewertung durch Anwender'!I177),(Zielvereinbarung!G177)))","v":0},{"$f":"Zielvereinbarung!G177","v":0},null,null,null,null,null,null,null,{"$f":"'BNB-System'!L173","v":0}]
[null,null,{"$f":"'BNB-System'!G174","v":"Konzept zur Vermeidung von Umwelt- und Gesundheitsrisiken aus Bauprodukten"},{"$f":"'BNB-System'!H174","v":10},null,null,{"$f":"IF(AND(NOT(ISBLANK(K178)),NOT(ISBLANK(L178))),('Bewertung durch Anwender'!K178),IF(AND(NOT(ISBLANK(J178)),NOT(ISBLANK(I178))),('Bewertung durch Anwender'!I178),(Zielvereinbarung!G178)))","v":0},{"$f":"Zielvereinbarung!G178","v":0},null,null,null,null,null,null,null,{"$f":"'BNB-System'!L174","v":0}]
[null,null,{"$f":"'BNB-System'!G175","v":"Lüftungskonzept"},{"$f":"'BNB-System'!H175","v":10},null,null,{"$f":"IF(AND(NOT(ISBLANK(K179)),NOT(ISBLANK(L179))),('Bewertung durch Anwender'!K179),IF(AND(NOT(ISBLANK(J179)),NOT(ISBLANK(I179))),('Bewertung durch Anwender'!I179),(Zielvereinbarung!G179)))","v":0},{"$f":"Zielvereinbarung!G179","v":0},null,null,null,null,null,null,null,{"$f":"'BNB-System'!L175","v":0}]
[null,null,{"$f":"'BNB-System'!G176","v":"Abfallkonzept / Wertstoffkonzept"},{"$f":"'BNB-System'!H176","v":5},null,null,{"$f":"IF(AND(NOT(ISBLANK(K180)),NOT(ISBLANK(L180))),('Bewertung durch Anwender'!K180),IF(AND(NOT(ISBLANK(J180)),NOT(ISBLANK(I180))),('Bewertung durch Anwender'!I180),(Zielvereinbarung!G180)))","v":0},{"$f":"Zielvereinbarung!G180","v":0},null,null,null,null,null,null,null,{"$f":"'BNB-System'!L176","v":0}]
[null,null,{"$f":"'BNB-System'!G177","v":"Tages- / Kunstlichtoptimierung"},{"$f":"'BNB-System'!H177","v":10},null,null,{"$f":"IF(AND(NOT(ISBLANK(K181)),NOT(ISBLANK(L181))),('Bewertung durch Anwender'!K181),IF(AND(NOT(ISBLANK(J181)),NOT(ISBLANK(I181))),('Bewertung durch Anwender'!I181),(Zielvereinbarung!G181)))","v":0},{"$f":"Zielvereinbarung!G181","v":0},null,null,null,null,null,null,null,{"$f":"'BNB-System'!L177","v":0}]
[null,null,{"$f":"'BNB-System'!G178","v":"Konzept zur Sicherung der Reinigungs- und Instandhaltungsfreundlichkeit"},{"$f":"'BNB-System'!H178","v":10},null,null,{"$f":"IF(AND(NOT(ISBLANK(K182)),NOT(ISBLANK(L182))),('Bewertung durch Anwender'!K182),IF(AND(NOT(ISBLANK(J182)),NOT(ISBLANK(I182))),('Bewertung durch Anwender'!I182),(Zielvereinbarung!G182)))","v":0},{"$f":"Zielvereinbarung!G182","v":0},null,null,null,null,null,null,null,{"$f":"'BNB-System'!L178","v":0}]
[null,null,{"$f":"'BNB-System'!G179","v":"Anpassbarkeits-, Rückbau- und Recyclingkonzept"},{"$f":"'BNB-System'!H179","v":10},null,null,{"$f":"IF(AND(NOT(ISBLANK(K183)),NOT(ISBLANK(L183))),('Bewertung durch Anwender'!K183),IF(AND(NOT(ISBLANK(J183)),NOT(ISBLANK(I183))),('Bewertung durch Anwender'!I183),(Zielvereinbarung!G183)))","v":0},{"$f":"Zielvereinbarung!G183","v":0},null,null,null,null,null,null,null,{"$f":"'BNB-System'!L179","v":0}]
[null,null,{"$f":"'BNB-System'!G180","v":"Konzept zur Vermeidung und Beherrschung von Risiken"},{"$f":"'BNB-System'!H180","v":10},null,null,{"$f":"IF(AND(NOT(ISBLANK(K184)),NOT(ISBLANK(L184))),('Bewertung durch Anwender'!K184),IF(AND(NOT(ISBLANK(J184)),NOT(ISBLANK(I184))),('Bewertung durch Anwender'!I184),(Zielvereinbarung!G184)))","v":0},{"$f":"Zielvereinbarung!G184","v":0},null,null,null,null,null,null,null,{"$f":"'BNB-System'!L180","v":0}]
[null,null,{"$f":"'BNB-System'!G181","v":"Sonstige Konzepte zum Nachhaltigen Bauen"},{"$f":"'BNB-System'!H181","v":10},null,null,{"$f":"IF(AND(NOT(ISBLANK(K185)),NOT(ISBLANK(L185))),('Bewertung durch Anwender'!K185),IF(AND(NOT(ISBLANK(J185)),NOT(ISBLANK(I185))),('Bewertung durch Anwender'!I185),(Zielvereinbarung!G185)))","v":0},{"$f":"Zielvereinbarung!G185","v":0},null,null,null,null,null,null,null,{"$f":"'BNB-System'!L181","v":0}]
[null,null,{"$f":"'BNB-System'!G182","v":"Prüfung der Planungsunterlagen durch unabhängige Dritte"},{"$f":"'BNB-System'!H182","v":5},null,null,{"$f":"IF(AND(NOT(ISBLANK(K186)),NOT(ISBLANK(L186))),('Bewertung durch Anwender'!K186),IF(AND(NOT(ISBLANK(J186)),NOT(ISBLANK(I186))),('Bewertung durch Anwender'!I186),(Zielvereinbarung!G186)))","v":0},{"$f":"Zielvereinbarung!G186","v":0},null,null,null,null,null,null,null,{"$f":"'BNB-System'!L182","v":0}]
[null,null,{"$f":"'BNB-System'!G183","v":"Durchführung von Variantenvergleichen"},{"$f":"'BNB-System'!H183","v":10},null,null,{"$f":"IF(AND(NOT(ISBLANK(K187)),NOT(ISBLANK(L187))),('Bewertung durch Anwender'!K187),IF(AND(NOT(ISBLANK(J187)),NOT(ISBLANK(I187))),('Bewertung durch Anwender'!I187),(Zielvereinbarung!G187)))","v":0},{"$f":"Zielvereinbarung!G187","v":0},null,null,null,null,null,null,null,{"$f":"'BNB-System'!L183","v":0}]
[null,{"$f":"'BNB-System'!F184","v":" 5.1.4"},{"$f":"'BNB-System'!G184","v":"Ausschreibung und Vergabe"},{"$f":"'BNB-System'!H184","v":100},{"$f":"'BNB-System'!K184","v":8.0000000000000002E-3},null,{"$f":"IF(AND(NOT(ISBLANK(K188)),NOT(ISBLANK(L188))),('Bewertung durch Anwender'!K188),IF(AND(NOT(ISBLANK(J188)),NOT(ISBLANK(I188))),('Bewertung durch Anwender'!I188),(Zielvereinbarung!G188)))","v":0},{"$f":"Zielvereinbarung!G188","v":0},null,null,null,null,null,null,null,{"$f":"'BNB-System'!L184","v":200},{"$f":"IF(ISNUMBER(E188*N188/100),E188*N188/100,0)","v":0}]
[null,{"$f":"'BNB-System'!F185","v":" 5.1.5"},{"$f":"'BNB-System'!G185","v":"Voraussetzungen für eine optimale Bewirtschaftung"},{"$f":"'BNB-System'!H185","v":100},{"$f":"'BNB-System'!K185","v":8.0000000000000002E-3},null,{"$f":"IF(AND(NOT(ISBLANK(K189)),NOT(ISBLANK(L189))),('Bewertung durch Anwender'!K189),IF(AND(NOT(ISBLANK(J189)),NOT(ISBLANK(I189))),('Bewertung durch Anwender'!I189),(Zielvereinbarung!G189)))","v":0},{"$f":"Zielvereinbarung!G189","v":0},null,null,null,null,{"$f":"SUM(M190:M193)","v":0},{"$f":"SUM(N190:N193)","v":0},null,{"$f":"'BNB-System'!L185","v":200},{"$f":"IF(ISNUMBER(E189*N189/100),E189*N189/100,0)","v":0}]
[null,null,{"$f":"'BNB-System'!G186","v":"Erstellung einer Gebäudeakte / Objektdokumentation"},{"$f":"'BNB-System'!H186","v":25},null,null,{"$f":"IF(AND(NOT(ISBLANK(K190)),NOT(ISBLANK(L190))),('Bewertung durch Anwender'!K190),IF(AND(NOT(ISBLANK(J190)),NOT(ISBLANK(I190))),('Bewertung durch Anwender'!I190),(Zielvereinbarung!G190)))","v":0},{"$f":"Zielvereinbarung!G190","v":0},null,null,null,null,null,null,null,{"$f":"'BNB-System'!L186","v":0}]
[null,null,{"$f":"'BNB-System'!G187","v":"Erstellung von Wartungs-, Inspektions-, Betriebs-, und Pflegeanleitungen"},{"$f":"'BNB-System'!H187","v":25},null,null,{"$f":"IF(AND(NOT(ISBLANK(K191)),NOT(ISBLANK(L191))),('Bewertung durch Anwender'!K191),IF(AND(NOT(ISBLANK(J191)),NOT(ISBLANK(I191))),('Bewertung durch Anwender'!I191),(Zielvereinbarung!G191)))","v":0},{"$f":"Zielvereinbarung!G191","v":0},null,null,null,null,null,null,null,{"$f":"'BNB-System'!L187","v":0}]
[null,null,{"$f":"'BNB-System'!G188","v":"Anpassung der Pläne und Berechnungen an das realisierte Gebäude"},{"$f":"'BNB-System'!H188","v":25},null,null,{"$f":"IF(AND(NOT(ISBLANK(K192)),NOT(ISBLANK(L192))),('Bewertung durch Anwender'!K192),IF(AND(NOT(ISBLANK(J192)),NOT(ISBLANK(I192))),('Bewertung durch Anwender'!I192),(Zielvereinbarung!G192)))","v":0},{"$f":"Zielvereinbarung!G192","v":0},null,null,null,null,null,null,null,{"$f":"'BNB-System'!L188","v":0}]
[null,null,{"$f":"'BNB-System'!G189","v":"Erstellung eines Nutzerhandbuches"},{"$f":"'BNB-System'!H189","v":25},null,null,{"$f":"IF(AND(NOT(ISBLANK(K193)),NOT(ISBLANK(L193))),('Bewertung durch Anwender'!K193),IF(AND(NOT(ISBLANK(J193)),NOT(ISBLANK(I193))),('Bewertung durch Anwender'!I193),(Zielvereinbarung!G193)))","v":0},{"$f":"Zielvereinbarung!G193","v":0},null,null,null,null,null,null,null,{"$f":"'BNB-System'!L189","v":0}]
[null,{"$f":"'BNB-System'!F190","v":" 5.1.6"},{"$f":"'BNB-System'!G190","v":"Bestandsanalyse"},{"$f":"'BNB-System'!H190","v":100},{"$f":"'BNB-System'!K190","v":1.2E-2},null,{"$f":"IF(AND(NOT(ISBLANK(K194)),NOT(ISBLANK(L194))),('Bewertung durch Anwender'!K194),IF(AND(NOT(ISBLANK(J194)),NOT(ISBLANK(I194))),('Bewertung durch Anwender'!I194),(Zielvereinbarung!G194)))","v":0},{"$f":"Zielvereinbarung!G194","v":0},null,null,null,null,{"$f":"SUM(M195:M203)","v":0},{"$f":"SUM(N195:N203)","v":0}]
[null,null,{"$f":"'BNB-System'!G191","v":"Bestandsaufnahme Geometrie"},{"$f":"'BNB-System'!H191","v":10},null,null,{"$f":"IF(AND(NOT(ISBLANK(K195)),NOT(ISBLANK(L195))),('Bewertung durch Anwender'!K195),IF(AND(NOT(ISBLANK(J195)),NOT(ISBLANK(I195))),('Bewertung durch Anwender'!I195),(Zielvereinbarung!G195)))","v":0},{"$f":"Zielvereinbarung!G195","v":0}]
[null,null,{"$f":"'BNB-System'!G192","v":"Bestandsaufnahme Baukonstruktion und Baustoffe"},{"$f":"'BNB-System'!H192","v":20},null,null,{"$f":"IF(AND(NOT(ISBLANK(K196)),NOT(ISBLANK(L196))),('Bewertung durch Anwender'!K196),IF(AND(NOT(ISBLANK(J196)),NOT(ISBLANK(I196))),('Bewertung durch Anwender'!I196),(Zielvereinbarung!G196)))","v":0},{"$f":"Zielvereinbarung!G196","v":0}]
[null,null,{"$f":"'BNB-System'!G193","v":"Bestandsaufnahme Haustechnik"},{"$f":"'BNB-System'!H193","v":10},null,null,{"$f":"IF(AND(NOT(ISBLANK(K197)),NOT(ISBLANK(L197))),('Bewertung durch Anwender'!K197),IF(AND(NOT(ISBLANK(J197)),NOT(ISBLANK(I197))),('Bewertung durch Anwender'!I197),(Zielvereinbarung!G197)))","v":0},{"$f":"Zielvereinbarung!G197","v":0}]
[null,null,{"$f":"'BNB-System'!G194","v":"Bestandsaufnahme Bau- und Nutzungsgeschichte"},{"$f":"'BNB-System'!H194","v":5},null,null,{"$f":"IF(AND(NOT(ISBLANK(K198)),NOT(ISBLANK(L198))),('Bewertung durch Anwender'!K198),IF(AND(NOT(ISBLANK(J198)),NOT(ISBLANK(I198))),('Bewertung durch Anwender'!I198),(Zielvereinbarung!G198)))","v":0},{"$f":"Zielvereinbarung!G198","v":0}]
[null,null,{"$f":"'BNB-System'!G195","v":"Bestandsaufnahme Exposition"},{"$f":"'BNB-System'!H195","v":5},null,null,{"$f":"IF(AND(NOT(ISBLANK(K199)),NOT(ISBLANK(L199))),('Bewertung durch Anwender'!K199),IF(AND(NOT(ISBLANK(J199)),NOT(ISBLANK(I199))),('Bewertung durch Anwender'!I199),(Zielvereinbarung!G199)))","v":0},{"$f":"Zielvereinbarung!G199","v":0}]
[null,null,{"$f":"'BNB-System'!G196","v":"Baudiagnose Tragwerk"},{"$f":"'BNB-System'!H196","v":15},null,null,{"$f":"IF(AND(NOT(ISBLANK(K200)),NOT(ISBLANK(L200))),('Bewertung durch Anwender'!K200),IF(AND(NOT(ISBLANK(J200)),NOT(ISBLANK(I200))),('Bewertung durch Anwender'!I200),(Zielvereinbarung!G200)))","v":0},{"$f":"Zielvereinbarung!G200","v":0}]
[null,null,{"$f":"'BNB-System'!G197","v":"Baudiagnose Energetische Qualität"},{"$f":"'BNB-System'!H197","v":15},null,null,{"$f":"IF(AND(NOT(ISBLANK(K201)),NOT(ISBLANK(L201))),('Bewertung durch Anwender'!K201),IF(AND(NOT(ISBLANK(J201)),NOT(ISBLANK(I201))),('Bewertung durch Anwender'!I201),(Zielvereinbarung!G201)))","v":0},{"$f":"Zielvereinbarung!G201","v":0}]
[null,null,{"$f":"'BNB-System'!G198","v":"Baudiagnose Schadstoffe"},{"$f":"'BNB-System'!H198","v":10},null,null,{"$f":"IF(AND(NOT(ISBLANK(K202)),NOT(ISBLANK(L202))),('Bewertung durch Anwender'!K202),IF(AND(NOT(ISBLANK(J202)),NOT(ISBLANK(I202))),('Bewertung durch Anwender'!I202),(Zielvereinbarung!G202)))","v":0},{"$f":"Zielvereinbarung!G202","v":0}]
[null,null,{"$f":"'BNB-System'!G199","v":"Baudiagnose Feuchte- und Salzbelastung"},{"$f":"'BNB-System'!H199","v":10},null,null,{"$f":"IF(AND(NOT(ISBLANK(K203)),NOT(ISBLANK(L203))),('Bewertung durch Anwender'!K203),IF(AND(NOT(ISBLANK(J203)),NOT(ISBLANK(I203))),('Bewertung durch Anwender'!I203),(Zielvereinbarung!G203)))","v":0},{"$f":"Zielvereinbarung!G203","v":0}]
[null,{"$f":"'BNB-System'!F200","v":" 5.1.7"},{"$f":"'BNB-System'!G200","v":"Rückbaumaßnahmen"},{"$f":"'BNB-System'!H200","v":100},{"$f":"'BNB-System'!K200","v":4.0000000000000001E-3},null,{"$f":"IF(AND(NOT(ISBLANK(K204)),NOT(ISBLANK(L204))),('Bewertung durch Anwender'!K204),IF(AND(NOT(ISBLANK(J204)),NOT(ISBLANK(I204))),('Bewertung durch Anwender'!I204),(Zielvereinbarung!G204)))","v":0},{"$f":"Zielvereinbarung!G204","v":0},null,null,null,null,{"$f":"SUM(M205:M207)","v":0},{"$f":"SUM(N205:N207)","v":0}]
[null,null,{"$f":"'BNB-System'!G201","v":"Planung des Rückbaus"},{"$f":"'BNB-System'!H201","v":50},null,null,{"$f":"IF(AND(NOT(ISBLANK(K205)),NOT(ISBLANK(L205))),('Bewertung durch Anwender'!K205),IF(AND(NOT(ISBLANK(J205)),NOT(ISBLANK(I205))),('Bewertung durch Anwender'!I205),(Zielvereinbarung!G205)))","v":0},{"$f":"Zielvereinbarung!G205","v":0}]
[null,null,{"$f":"'BNB-System'!G202","v":"Selektiver Rückbau"},{"$f":"'BNB-System'!H202","v":25},null,null,{"$f":"IF(AND(NOT(ISBLANK(K206)),NOT(ISBLANK(L206))),('Bewertung durch Anwender'!K206),IF(AND(NOT(ISBLANK(J206)),NOT(ISBLANK(I206))),('Bewertung durch Anwender'!I206),(Zielvereinbarung!G206)))","v":0},{"$f":"Zielvereinbarung!G206","v":0}]
[null,null,{"$f":"'BNB-System'!G203","v":"Prüfen auf Abfalltrennung und Entsorgung"},{"$f":"'BNB-System'!H203","v":25},null,null,{"$f":"IF(AND(NOT(ISBLANK(K207)),NOT(ISBLANK(L207))),('Bewertung durch Anwender'!K207),IF(AND(NOT(ISBLANK(J207)),NOT(ISBLANK(I207))),('Bewertung durch Anwender'!I207),(Zielvereinbarung!G207)))","v":0},{"$f":"Zielvereinbarung!G207","v":0}]
[null,null,{"$f":"'BNB-System'!G204","v":"Bauausführung"},null,null,null,null,null,null,null,null,null,null,null,null,{"$f":"'BNB-System'!L204","v":0}]
[null,{"$f":"'BNB-System'!F205","v":" 5.2.1"},{"$f":"'BNB-System'!G205","v":"Baustelle / Bauprozess"},{"$f":"'BNB-System'!H205","v":100},{"$f":"'BNB-System'!K205","v":8.0000000000000002E-3},null,{"$f":"IF(AND(NOT(ISBLANK(K209)),NOT(ISBLANK(L209))),('Bewertung durch Anwender'!K209),IF(AND(NOT(ISBLANK(J209)),NOT(ISBLANK(I209))),('Bewertung durch Anwender'!I209),(Zielvereinbarung!G209)))","v":0},{"$f":"Zielvereinbarung!G209","v":0},null,null,null,null,{"$f":"SUM(M210:M213)","v":0},{"$f":"SUM(N210:N213)","v":0},null,{"$f":"'BNB-System'!L205","v":200},{"$f":"IF(ISNUMBER(E209*N209/100),E209*N209/100,0)","v":0}]
[null,null,{"$f":"'BNB-System'!G206","v":"Wertstoffoptimierte Baustelle"},{"$f":"'BNB-System'!H206","v":25},null,null,{"$f":"IF(AND(NOT(ISBLANK(K210)),NOT(ISBLANK(L210))),('Bewertung durch Anwender'!K210),IF(AND(NOT(ISBLANK(J210)),NOT(ISBLANK(I210))),('Bewertung durch Anwender'!I210),(Zielvereinbarung!G210)))","v":0},{"$f":"Zielvereinbarung!G210","v":0},null,null,null,null,null,null,null,{"$f":"'BNB-System'!L206","v":0}]
[null,null,{"$f":"'BNB-System'!G207","v":"Lärmarme Baustelle"},{"$f":"'BNB-System'!H207","v":25},null,null,{"$f":"IF(AND(NOT(ISBLANK(K211)),NOT(ISBLANK(L211))),('Bewertung durch Anwender'!K211),IF(AND(NOT(ISBLANK(J211)),NOT(ISBLANK(I211))),('Bewertung durch Anwender'!I211),(Zielvereinbarung!G211)))","v":0},{"$f":"Zielvereinbarung!G211","v":0},null,null,null,null,null,null,null,{"$f":"'BNB-System'!L207","v":0}]
[null,null,{"$f":"'BNB-System'!G208","v":"Staubarme Baustelle"},{"$f":"'BNB-System'!H208","v":25},null,null,{"$f":"IF(AND(NOT(ISBLANK(K212)),NOT(ISBLANK(L212))),('Bewertung durch Anwender'!K212),IF(AND(NOT(ISBLANK(J212)),NOT(ISBLANK(I212))),('Bewertung durch Anwender'!I212),(Zielvereinbarung!G212)))","v":0},{"$f":"Zielvereinbarung!G212","v":0},null,null,null,null,null,null,null,{"$f":"'BNB-System'!L208","v":0}]
[null,null,{"$f":"'BNB-System'!G209","v":"Bodenschutz auf der Baustelle"},{"$f":"'BNB-System'!H209","v":25},null,null,{"$f":"IF(AND(NOT(ISBLANK(K213)),NOT(ISBLANK(L213))),('Bewertung durch Anwender'!K213),IF(AND(NOT(ISBLANK(J213)),NOT(ISBLANK(I213))),('Bewertung durch Anwender'!I213),(Zielvereinbarung!G213)))","v":0},{"$f":"Zielvereinbarung!G213","v":0},null,null,null,null,null,null,null,{"$f":"'BNB-System'!L209","v":0}]
[null,{"$f":"'BNB-System'!F210","v":" 5.2.2"},{"$f":"'BNB-System'!G210","v":"Qualitätssicherung der Bauausführung"},{"$f":"'BNB-System'!H210","v":100},{"$f":"'BNB-System'!K210","v":1.2E-2},null,{"$f":"IF(AND(NOT(ISBLANK(K214)),NOT(ISBLANK(L214))),('Bewertung durch Anwender'!K214),IF(AND(NOT(ISBLANK(J214)),NOT(ISBLANK(I214))),('Bewertung durch Anwender'!I214),(Zielvereinbarung!G214)))","v":0},{"$f":"Zielvereinbarung!G214","v":0},null,null,null,null,{"$f":"SUM(M215:M216)","v":0},{"$f":"SUM(N215:N216)","v":0},null,{"$f":"'BNB-System'!L210","v":300},{"$f":"IF(ISNUMBER(E214*N214/100),E214*N214/100,0)","v":0}]
[null,null,{"$f":"'BNB-System'!G211","v":"Dokumentation"},{"$f":"'BNB-System'!H211","v":50},null,null,{"$f":"IF(AND(NOT(ISBLANK(K215)),NOT(ISBLANK(L215))),('Bewertung durch Anwender'!K215),IF(AND(NOT(ISBLANK(J215)),NOT(ISBLANK(I215))),('Bewertung durch Anwender'!I215),(Zielvereinbarung!G215)))","v":0},{"$f":"Zielvereinbarung!G215","v":0},null,null,null,null,null,null,null,{"$f":"'BNB-System'!L211","v":0}]
[null,null,{"$f":"'BNB-System'!G212","v":"Messungen zur Qualitätskontrolle"},{"$f":"'BNB-System'!H212","v":50},null,null,{"$f":"IF(AND(NOT(ISBLANK(K216)),NOT(ISBLANK(L216))),('Bewertung durch Anwender'!K216),IF(AND(NOT(ISBLANK(J216)),NOT(ISBLANK(I216))),('Bewertung durch Anwender'!I216),(Zielvereinbarung!G216)))","v":0},{"$f":"Zielvereinbarung!G216","v":0},null,null,null,null,null,null,null,{"$f":"'BNB-System'!L212","v":0}]
[null,{"$f":"'BNB-System'!F213","v":" 5.2.3"},{"$f":"'BNB-System'!G213","v":"Systematische Inbetriebnahme"},{"$f":"'BNB-System'!H213","v":100},{"$f":"'BNB-System'!K213","v":1.2E-2},null,{"$f":"IF(AND(NOT(ISBLANK(K217)),NOT(ISBLANK(L217))),('Bewertung durch Anwender'!K217),IF(AND(NOT(ISBLANK(J217)),NOT(ISBLANK(I217))),('Bewertung durch Anwender'!I217),(Zielvereinbarung!G217)))","v":0},{"$f":"Zielvereinbarung!G217","v":0},null,null,null,null,null,null,null,{"$f":"'BNB-System'!L213","v":300},{"$f":"IF(ISNUMBER(E217*N217/100),E217*N217/100,0)","v":0}]
[null,null,null,null,null,null,null,null,null,null,null,null,null,null,null,{"$f":"'BNB-System'!#REF!","v":{"$error":"#REF!"}}]
[null,null,null,null,null,null,null,null,null,null,null,null,null,null,null,{"$f":"'BNB-System'!L215","v":0}]
[null,{"$f":"'BNB-System'!F216","v":"Standortmerkmale"},null,null,{"$f":"'BNB-System'!K216","v":1},null,{"$f":"G223*(E223/100)+G229*(E229/100)+G236*(E236/100)+G241*(E241/100)+G245*(E245/100)+G256*(E256/100)","v":0},{"$f":"Zielvereinbarung!G220","v":0},null,null,null,null,{"$f":"M223*(E223/100)+M229*(E229/100)+M236*(E236/100)+M241*(E241/100)+M245*(E245/100)+M256*(E256/100)","v":0},{"$f":"N223*(E223/100)+N229*(E229/100)+N236*(E236/100)+N241*(E241/100)+N245*(E245/100)+N256*(E256/100)","v":0},null,{"$f":"'BNB-System'!L216","v":1300}]
[null,null,null,null,null,null,null,null,null,null,null,null,null,null,null,{"$f":"'BNB-System'!L217","v":0}]
[null,null,{"$f":"'BNB-System'!G218","v":"Standortmerkmale"},null,null,null,null,null,null,null,null,null,null,null,null,{"$f":"'BNB-System'!L218","v":0}]
[null,{"$f":"'BNB-System'!F219","v":" 6.1.1"},{"$f":"'BNB-System'!G219","v":"Risiken am Mikrostandort"},{"$f":"'BNB-System'!H219","v":100},{"$f":"'BNB-System'!K219","v":0.15384615384615385},null,{"$f":"IF(AND(NOT(ISBLANK(K223)),NOT(ISBLANK(L223))),('Bewertung durch Anwender'!K223),IF(AND(NOT(ISBLANK(J223)),NOT(ISBLANK(I223))),('Bewertung durch Anwender'!I223),(Zielvereinbarung!G223)))","v":0},{"$f":"Zielvereinbarung!G223","v":0},null,null,null,null,{"$f":"IF(SUM(M224:M228)>100,100,SUM(M224:M228))","v":0},{"$f":"IF(SUM(N224:N228)>100,100,SUM(N224:N228))","v":0},null,{"$f":"'BNB-System'!L219","v":200}]
[null,null,{"$f":"'BNB-System'!G220","v":"Risiken aus Man-Made-Hazards (Unfälle)"},{"$f":"'BNB-System'!H220","v":20},null,null,{"$f":"IF(AND(NOT(ISBLANK(K224)),NOT(ISBLANK(L224))),('Bewertung durch Anwender'!K224),IF(AND(NOT(ISBLANK(J224)),NOT(ISBLANK(I224))),('Bewertung durch Anwender'!I224),(Zielvereinbarung!G224)))","v":0},{"$f":"Zielvereinbarung!G224","v":0},null,null,null,null,null,null,null,{"$f":"'BNB-System'!L225","v":200}]
[null,null,{"$f":"'BNB-System'!G221","v":"Risiken aus Erdbeben"},{"$f":"'BNB-System'!H221","v":20},null,null,{"$f":"IF(AND(NOT(ISBLANK(K225)),NOT(ISBLANK(L225))),('Bewertung durch Anwender'!K225),IF(AND(NOT(ISBLANK(J225)),NOT(ISBLANK(I225))),('Bewertung durch Anwender'!I225),(Zielvereinbarung!G225)))","v":0},{"$f":"Zielvereinbarung!G225","v":0},null,null,null,null,null,null,null,{"$f":"'BNB-System'!L232","v":200}]
[null,null,{"$f":"'BNB-System'!G222","v":"Risiken aus Lawinen"},{"$f":"'BNB-System'!H222","v":20},null,null,{"$f":"IF(AND(NOT(ISBLANK(K226)),NOT(ISBLANK(L226))),('Bewertung durch Anwender'!K226),IF(AND(NOT(ISBLANK(J226)),NOT(ISBLANK(I226))),('Bewertung durch Anwender'!I226),(Zielvereinbarung!G226)))","v":0},{"$f":"Zielvereinbarung!G226","v":0},null,null,null,null,null,null,null,{"$f":"'BNB-System'!L237","v":300}]
[null,null,{"$f":"'BNB-System'!G223","v":"Risiken aus Sturm"},{"$f":"'BNB-System'!H223","v":20},null,null,{"$f":"IF(AND(NOT(ISBLANK(K227)),NOT(ISBLANK(L227))),('Bewertung durch Anwender'!K227),IF(AND(NOT(ISBLANK(J227)),NOT(ISBLANK(I227))),('Bewertung durch Anwender'!I227),(Zielvereinbarung!G227)))","v":0},{"$f":"Zielvereinbarung!G227","v":0},null,null,null,null,null,null,null,{"$f":"'BNB-System'!L241","v":200}]
[null,null,{"$f":"'BNB-System'!G224","v":"Risiken aus Hochwasser"},{"$f":"'BNB-System'!H224","v":20},null,null,{"$f":"IF(AND(NOT(ISBLANK(K228)),NOT(ISBLANK(L228))),('Bewertung durch Anwender'!K228),IF(AND(NOT(ISBLANK(J228)),NOT(ISBLANK(I228))),('Bewertung durch Anwender'!I228),(Zielvereinbarung!G228)))","v":0},{"$f":"Zielvereinbarung!G228","v":0},null,null,null,null,null,null,null,{"$f":"'BNB-System'!L252","v":200}]
[null,{"$f":"'BNB-System'!F225","v":" 6.1.2"},{"$f":"'BNB-System'!G225","v":"Verhältnisse am Mikrostandort"},{"$f":"'BNB-System'!H225","v":100},{"$f":"'BNB-System'!K225","v":0.15384615384615385},null,{"$f":"IF(AND(NOT(ISBLANK(K229)),NOT(ISBLANK(L229))),('Bewertung durch Anwender'!K229),IF(AND(NOT(ISBLANK(J229)),NOT(ISBLANK(I229))),('Bewertung durch Anwender'!I229),(Zielvereinbarung!G229)))","v":0},{"$f":"Zielvereinbarung!G229","v":0},null,null,null,null,{"$f":"IF(SUM(M230:M235)>100,100,SUM(M230:M235))","v":0},{"$f":"IF(SUM(N230:N235)>100,100,SUM(N230:N235))","v":0}]
[null,null,{"$f":"'BNB-System'!G226","v":"Außenluftqualität"},{"$f":"'BNB-System'!H226","v":16},null,null,{"$f":"IF(AND(NOT(ISBLANK(K230)),NOT(ISBLANK(L230))),('Bewertung durch Anwender'!K230),IF(AND(NOT(ISBLANK(J230)),NOT(ISBLANK(I230))),('Bewertung durch Anwender'!I230),(Zielvereinbarung!G230)))","v":0},{"$f":"Zielvereinbarung!G230","v":0}]
[null,null,{"$f":"'BNB-System'!G227","v":"Außenlärmpegel"},{"$f":"'BNB-System'!H227","v":20},null,null,{"$f":"IF(AND(NOT(ISBLANK(K231)),NOT(ISBLANK(L231))),('Bewertung durch Anwender'!K231),IF(AND(NOT(ISBLANK(J231)),NOT(ISBLANK(I231))),('Bewertung durch Anwender'!I231),(Zielvereinbarung!G231)))","v":0},{"$f":"Zielvereinbarung!G231","v":0}]
[null,null,{"$f":"'BNB-System'!G228","v":"Baugrundverhältnisse, Bodenbelastungen"},{"$f":"'BNB-System'!H228","v":16},null,null,{"$f":"IF(AND(NOT(ISBLANK(K232)),NOT(ISBLANK(L232))),('Bewertung durch Anwender'!K232),IF(AND(NOT(ISBLANK(J232)),NOT(ISBLANK(I232))),('Bewertung durch Anwender'!I232),(Zielvereinbarung!G232)))","v":0},{"$f":"Zielvereinbarung!G232","v":0}]
[null,null,{"$f":"'BNB-System'!G229","v":"Elektromagnetische Felder"},{"$f":"'BNB-System'!H229","v":16},null,null,{"$f":"IF(AND(NOT(ISBLANK(K233)),NOT(ISBLANK(L233))),('Bewertung durch Anwender'!K233),IF(AND(NOT(ISBLANK(J233)),NOT(ISBLANK(I233))),('Bewertung durch Anwender'!I233),(Zielvereinbarung!G233)))","v":0},{"$f":"Zielvereinbarung!G233","v":0}]
[null,null,{"$f":"'BNB-System'!G230","v":"Vorkommen von Radon"},{"$f":"'BNB-System'!H230","v":16},null,null,{"$f":"IF(AND(NOT(ISBLANK(K234)),NOT(ISBLANK(L234))),('Bewertung durch Anwender'!K234),IF(AND(NOT(ISBLANK(J234)),NOT(ISBLANK(I234))),('Bewertung durch Anwender'!I234),(Zielvereinbarung!G234)))","v":0},{"$f":"Zielvereinbarung!G234","v":0}]
[null,null,{"$f":"'BNB-System'!G231","v":"Stadt- und Landschaftsbild / Sichtbeziehungen"},{"$f":"'BNB-System'!H231","v":16},null,null,{"$f":"IF(AND(NOT(ISBLANK(K235)),NOT(ISBLANK(L235))),('Bewertung durch Anwender'!K235),IF(AND(NOT(ISBLANK(J235)),NOT(ISBLANK(I235))),('Bewertung durch Anwender'!I235),(Zielvereinbarung!G235)))","v":0},{"$f":"Zielvereinbarung!G235","v":0}]
[null,{"$f":"'BNB-System'!F232","v":" 6.1.3"},{"$f":"'BNB-System'!G232","v":"Quartiersmerkmale"},{"$f":"'BNB-System'!H232","v":100},{"$f":"'BNB-System'!K232","v":0.15384615384615385},null,{"$f":"IF(AND(NOT(ISBLANK(K236)),NOT(ISBLANK(L236))),('Bewertung durch Anwender'!K236),IF(AND(NOT(ISBLANK(J236)),NOT(ISBLANK(I236))),('Bewertung durch Anwender'!I236),(Zielvereinbarung!G236)))","v":0},{"$f":"Zielvereinbarung!G236","v":0},null,null,null,null,{"$f":"IF(SUM(M237:M240)>100,100,SUM(M237:M240))","v":0},{"$f":"IF(SUM(N237:N240)>100,100,SUM(N237:N240))","v":0}]
[null,null,{"$f":"'BNB-System'!G233","v":"Image, Attraktivität"},{"$f":"'BNB-System'!H233","v":25},null,null,{"$f":"IF(AND(NOT(ISBLANK(K237)),NOT(ISBLANK(L237))),('Bewertung durch Anwender'!K237),IF(AND(NOT(ISBLANK(J237)),NOT(ISBLANK(I237))),('Bewertung durch Anwender'!I237),(Zielvereinbarung!G237)))","v":0},{"$f":"Zielvereinbarung!G237","v":0}]
[null,null,{"$f":"'BNB-System'!G234","v":"Synergie- und Konfliktpotenziale"},{"$f":"'BNB-System'!H234","v":25},null,null,{"$f":"IF(AND(NOT(ISBLANK(K238)),NOT(ISBLANK(L238))),('Bewertung durch Anwender'!K238),IF(AND(NOT(ISBLANK(J238)),NOT(ISBLANK(I238))),('Bewertung durch Anwender'!I238),(Zielvereinbarung!G238)))","v":0},{"$f":"Zielvereinbarung!G238","v":0}]
[null,null,{"$f":"'BNB-System'!G235","v":"Kriminalität"},{"$f":"'BNB-System'!H235","v":25},null,null,{"$f":"IF(AND(NOT(ISBLANK(K239)),NOT(ISBLANK(L239))),('Bewertung durch Anwender'!K239),IF(AND(NOT(ISBLANK(J239)),NOT(ISBLANK(I239))),('Bewertung durch Anwender'!I239),(Zielvereinbarung!G239)))","v":0},{"$f":"Zielvereinbarung!G239","v":0}]
[null,null,{"$f":"'BNB-System'!G236","v":"Pflege und Erhaltungszustand"},{"$f":"'BNB-System'!H236","v":25},null,null,{"$f":"IF(AND(NOT(ISBLANK(K240)),NOT(ISBLANK(L240))),('Bewertung durch Anwender'!K240),IF(AND(NOT(ISBLANK(J240)),NOT(ISBLANK(I240))),('Bewertung durch Anwender'!I240),(Zielvereinbarung!G240)))","v":0},{"$f":"Zielvereinbarung!G240","v":0}]
[null,{"$f":"'BNB-System'!F237","v":" 6.1.4"},{"$f":"'BNB-System'!G237","v":"Verkehrsanbindung"},{"$f":"'BNB-System'!H237","v":100},{"$f":"'BNB-System'!K237","v":0.23076923076923078},null,{"$f":"IF(AND(NOT(ISBLANK(K241)),NOT(ISBLANK(L241))),('Bewertung durch Anwender'!K241),IF(AND(NOT(ISBLANK(J241)),NOT(ISBLANK(I241))),('Bewertung durch Anwender'!I241),(Zielvereinbarung!G241)))","v":0},{"$f":"Zielvereinbarung!G241","v":0},null,null,null,null,{"$f":"IF(SUM(M242:M244)>100,100,SUM(M242:M244))","v":0},{"$f":"IF(SUM(N242:N244)>100,100,SUM(N242:N244))","v":0}]
[null,null,{"$f":"'BNB-System'!G238","v":"Erreichbarkeit Haupt-/ Fernbahnhof"},{"$f":"'BNB-System'!H238","v":30},null,null,{"$f":"IF(AND(NOT(ISBLANK(K242)),NOT(ISBLANK(L242))),('Bewertung durch Anwender'!K242),IF(AND(NOT(ISBLANK(J242)),NOT(ISBLANK(I242))),('Bewertung durch Anwender'!I242),(Zielvereinbarung!G242)))","v":0},{"$f":"Zielvereinbarung!G242","v":0}]
[null,null,{"$f":"'BNB-System'!G239","v":"Erreichbarkeit ÖPNV"},{"$f":"'BNB-System'!H239","v":30},null,null,{"$f":"IF(AND(NOT(ISBLANK(K243)),NOT(ISBLANK(L243))),('Bewertung durch Anwender'!K243),IF(AND(NOT(ISBLANK(J243)),NOT(ISBLANK(I243))),('Bewertung durch Anwender'!I243),(Zielvereinbarung!G243)))","v":0},{"$f":"Zielvereinbarung!G243","v":0}]
[null,null,{"$f":"'BNB-System'!G240","v":"Fuß- und Radwege"},{"$f":"'BNB-System'!H240","v":40},null,null,{"$f":"IF(AND(NOT(ISBLANK(K244)),NOT(ISBLANK(L244))),('Bewertung durch Anwender'!K244),IF(AND(NOT(ISBLANK(J244)),NOT(ISBLANK(I244))),('Bewertung durch Anwender'!I244),(Zielvereinbarung!G244)))","v":0},{"$f":"Zielvereinbarung!G244","v":0}]
[null,{"$f":"'BNB-System'!F241","v":" 6.1.5"},{"$f":"'BNB-System'!G241","v":"Nähe zu nutzungsrelevanten Einrichtungen"},{"$f":"'BNB-System'!H241","v":100},{"$f":"'BNB-System'!K241","v":0.15384615384615385},null,{"$f":"IF(AND(NOT(ISBLANK(K245)),NOT(ISBLANK(L245))),('Bewertung durch Anwender'!K245),IF(AND(NOT(ISBLANK(J245)),NOT(ISBLANK(I245))),('Bewertung durch Anwender'!I245),(Zielvereinbarung!G245)))","v":0},{"$f":"Zielvereinbarung!G245","v":0},null,null,null,null,{"$f":"IF(SUM(M246:M255)>100,100,SUM(M246:M255))","v":0},{"$f":"IF(SUM(N246:N255)>100,100,SUM(N246:N255))","v":0}]
[null,null,{"$f":"'BNB-System'!G242","v":"Gastronomie"},{"$f":"'BNB-System'!H242","v":10},null,null,{"$f":"IF(AND(NOT(ISBLANK(K246)),NOT(ISBLANK(L246))),('Bewertung durch Anwender'!K246),IF(AND(NOT(ISBLANK(J246)),NOT(ISBLANK(I246))),('Bewertung durch Anwender'!I246),(Zielvereinbarung!G246)))","v":0},{"$f":"Zielvereinbarung!G246","v":0}]
[null,null,{"$f":"'BNB-System'!G243","v":"Nahversorgung"},{"$f":"'BNB-System'!H243","v":10},null,null,{"$f":"IF(AND(NOT(ISBLANK(K247)),NOT(ISBLANK(L247))),('Bewertung durch Anwender'!K247),IF(AND(NOT(ISBLANK(J247)),NOT(ISBLANK(I247))),('Bewertung durch Anwender'!I247),(Zielvereinbarung!G247)))","v":0},{"$f":"Zielvereinbarung!G247","v":0}]
[null,null,{"$f":"'BNB-System'!G244","v":"Parkanlagen und Freiräume"},{"$f":"'BNB-System'!H244","v":10},null,null,{"$f":"IF(AND(NOT(ISBLANK(K248)),NOT(ISBLANK(L248))),('Bewertung durch Anwender'!K248),IF(AND(NOT(ISBLANK(J248)),NOT(ISBLANK(I248))),('Bewertung durch Anwender'!I248),(Zielvereinbarung!G248)))","v":0},{"$f":"Zielvereinbarung!G248","v":0}]
[null,null,{"$f":"'BNB-System'!G245","v":"Bildung"},{"$f":"'BNB-System'!H245","v":10},null,null,{"$f":"IF(AND(NOT(ISBLANK(K249)),NOT(ISBLANK(L249))),('Bewertung durch Anwender'!K249),IF(AND(NOT(ISBLANK(J249)),NOT(ISBLANK(I249))),('Bewertung durch Anwender'!I249),(Zielvereinbarung!G249)))","v":0},{"$f":"Zielvereinbarung!G249","v":0}]
[null,null,{"$f":"'BNB-System'!G246","v":"Öffentliche Verwaltung"},{"$f":"'BNB-System'!H246","v":10},null,null,{"$f":"IF(AND(NOT(ISBLANK(K250)),NOT(ISBLANK(L250))),('Bewertung durch Anwender'!K250),IF(AND(NOT(ISBLANK(J250)),NOT(ISBLANK(I250))),('Bewertung durch Anwender'!I250),(Zielvereinbarung!G250)))","v":0},{"$f":"Zielvereinbarung!G250","v":0}]
[null,null,{"$f":"'BNB-System'!G247","v":"Medizinische Versorgung"},{"$f":"'BNB-System'!H247","v":10},null,null,{"$f":"IF(AND(NOT(ISBLANK(K251)),NOT(ISBLANK(L251))),('Bewertung durch Anwender'!K251),IF(AND(NOT(ISBLANK(J251)),NOT(ISBLANK(I251))),('Bewertung durch Anwender'!I251),(Zielvereinbarung!G251)))","v":0},{"$f":"Zielvereinbarung!G251","v":0}]
[null,null,{"$f":"'BNB-System'!G248","v":"Sportstätten"},{"$f":"'BNB-System'!H248","v":10},null,null,{"$f":"IF(AND(NOT(ISBLANK(K252)),NOT(ISBLANK(L252))),('Bewertung durch Anwender'!K252),IF(AND(NOT(ISBLANK(J252)),NOT(ISBLANK(I252))),('Bewertung durch Anwender'!I252),(Zielvereinbarung!G252)))","v":0},{"$f":"Zielvereinbarung!G252","v":0}]
[null,null,{"$f":"'BNB-System'!G249","v":"Freizeit"},{"$f":"'BNB-System'!H249","v":10},null,null,{"$f":"IF(AND(NOT(ISBLANK(K253)),NOT(ISBLANK(L253))),('Bewertung durch Anwender'!K253),IF(AND(NOT(ISBLANK(J253)),NOT(ISBLANK(I253))),('Bewertung durch Anwender'!I253),(Zielvereinbarung!G253)))","v":0},{"$f":"Zielvereinbarung!G253","v":0}]
[null,null,{"$f":"'BNB-System'!G250","v":"Synergie- und Konfliktpotenziale"},{"$f":"'BNB-System'!H250","v":10},null,null,{"$f":"IF(AND(NOT(ISBLANK(K254)),NOT(ISBLANK(L254))),('Bewertung durch Anwender'!K254),IF(AND(NOT(ISBLANK(J254)),NOT(ISBLANK(I254))),('Bewertung durch Anwender'!I254),(Zielvereinbarung!G254)))","v":0},{"$f":"Zielvereinbarung!G254","v":0}]
[null,null,{"$f":"'BNB-System'!G251","v":"Dienstleister"},{"$f":"'BNB-System'!H251","v":10},null,null,{"$f":"IF(AND(NOT(ISBLANK(K255)),NOT(ISBLANK(L255))),('Bewertung durch Anwender'!K255),IF(AND(NOT(ISBLANK(J255)),NOT(ISBLANK(I255))),('Bewertung durch Anwender'!I255),(Zielvereinbarung!G255)))","v":0},{"$f":"Zielvereinbarung!G255","v":0}]
[null,{"$f":"'BNB-System'!F252","v":" 6.1.6"},{"$f":"'BNB-System'!G252","v":"Anliegende Medien / Erschließung"},{"$f":"'BNB-System'!H252","v":100},{"$f":"'BNB-System'!K252","v":0.15384615384615385},null,{"$f":"IF(AND(NOT(ISBLANK(K256)),NOT(ISBLANK(L256))),('Bewertung durch Anwender'!K256),IF(AND(NOT(ISBLANK(J256)),NOT(ISBLANK(I256))),('Bewertung durch Anwender'!I256),(Zielvereinbarung!G256)))","v":0},{"$f":"Zielvereinbarung!G256","v":0},null,null,null,null,{"$f":"IF(SUM(M257:M260)>100,100,SUM(M257:M260))","v":0},{"$f":"IF(SUM(N257:N260)>100,100,SUM(N257:N260))","v":0}]
[null,null,{"$f":"'BNB-System'!G253","v":"Leitungsgebundene Energie"},{"$f":"'BNB-System'!H253","v":25},null,null,{"$f":"IF(AND(NOT(ISBLANK(K257)),NOT(ISBLANK(L257))),('Bewertung durch Anwender'!K257),IF(AND(NOT(ISBLANK(J257)),NOT(ISBLANK(I257))),('Bewertung durch Anwender'!I257),(Zielvereinbarung!G257)))","v":0},{"$f":"Zielvereinbarung!G257","v":0}]
[null,null,{"$f":"'BNB-System'!G254","v":"Solarenergie"},{"$f":"'BNB-System'!H254","v":25},null,null,{"$f":"IF(AND(NOT(ISBLANK(K258)),NOT(ISBLANK(L258))),('Bewertung durch Anwender'!K258),IF(AND(NOT(ISBLANK(J258)),NOT(ISBLANK(I258))),('Bewertung durch Anwender'!I258),(Zielvereinbarung!G258)))","v":0},{"$f":"Zielvereinbarung!G258","v":0}]
[null,null,{"$f":"'BNB-System'!G255","v":"Breitband-Anschluss"},{"$f":"'BNB-System'!H255","v":25},null,null,{"$f":"IF(AND(NOT(ISBLANK(K259)),NOT(ISBLANK(L259))),('Bewertung durch Anwender'!K259),IF(AND(NOT(ISBLANK(J259)),NOT(ISBLANK(I259))),('Bewertung durch Anwender'!I259),(Zielvereinbarung!G259)))","v":0},{"$f":"Zielvereinbarung!G259","v":0}]
[null,null,{"$f":"'BNB-System'!G256","v":"Regenwasserversickerung"},{"$f":"'BNB-System'!H256","v":25},null,null,{"$f":"IF(AND(NOT(ISBLANK(K260)),NOT(ISBLANK(L260))),('Bewertung durch Anwender'!K260),IF(AND(NOT(ISBLANK(J260)),NOT(ISBLANK(I260))),('Bewertung durch Anwender'!I260),(Zielvereinbarung!G260)))","v":0},{"$f":"Zielvereinbarung!G260","v":0}]

{"sheet":"Konformitätsprüfung","index":3,"n_rows":260,"n_cols":14,"rows_kept":260,"cut":false,"hidden":false,"merged":[[0,2,0,7],[3,14,4,14],[6,1,6,2],[3,10,4,10],[3,4,4,4],[3,6,3,7],[3,13,4,13],[3,11,4,11],[3,1,4,2],[3,3,4,3],[3,12,4,12],[3,9,4,9]]}
[null,{"$f":"'BNB-System'!C1","v":"Projekt:"},{"$f":"Zielvereinbarung!C1","v":"Projektbezeichnung"}]
[null,{"$f":"'BNB-System'!C2","v":"Bewertungssystem Nachhaltiges Bauen (BNB)"}]
[null,{"$f":"'BNB-System'!C3","v":"Systemvariante Unterrichtsgebäude, Modul Komplettmodernisierung (BNB_UK) - Version 2017"}]
[null,"Nachhaltigkeitskriterien",null,"maximale Punktzahl","Gewichtung\nGesamt-\nbewertung","Punkt-\nzahl","Eingereichte \nEndbewertung",null,"Bemerkung Konformitätsprüfung \n\nPrüfung vom:","Bearbeiter",null,"Zielwert","Gesamt-bewertung Anwender","Gesamt-bewertung Konformitäts-\nprüfung"]
[null,null,null,null,null,"Ziel-\nvereinbarung","Anwender","Konformitätsprüfung",{"$f":"TODAY()","v":"2018-03-12"}]
[]
[null,"Gesamterfüllungsgrad",null,null,null,{"$f":"Zielvereinbarung!$G$7","v":0},{"$f":"'Bewertung durch Anwender'!N7","v":0},{"$f":"H10+H35+H48+H129+H159","v":0}]
[null,null,null,null,null,null,null,"ende",null,null,"qwertz"]
[]
[null,{"$f":"'BNB-System'!F6","v":"Ökologische Qualität"},null,null,{"$f":"'BNB-System'!K6","v":0.22500000000000001},{"$f":"'Bewertung durch Anwender'!G10","v":0},{"$f":"'Bewertung durch Anwender'!N10","v":0},{"$f":"H13*(E13/100)+H14*(E14/100)+H15*(E15/100)+H16*(E16/100)+H17*(E17/100)+H18*(E18/100)+H24*(E24/100)+H26*(E26/100)+H30*(E30/100)+H31*(E31/100)","v":0},null,null,null,{"$f":"'BNB-System'!L6","v":1800}]
[null,null,null,null,null,null,null,null,null,null,null,{"$f":"'BNB-System'!L7","v":0}]
[null,null,"Wirkungen auf die globale und lokale  Umwelt",null,null,null,null,null,null,null,null,{"$f":"'BNB-System'!L8","v":0}]
[null,{"$f":"'BNB-System'!F9","v":" 1.1.1"},{"$f":"'BNB-System'!G9","v":"Treibhauspotenzial (GWP)"},{"$f":"'BNB-System'!H9","v":100},{"$f":"'BNB-System'!K9","v":3.7499999999999999E-2},{"$f":"'Bewertung durch Anwender'!G13","v":0},{"$f":"'Bewertung durch Anwender'!N13","v":0},null,null,null,null,{"$f":"'BNB-System'!L9","v":300},{"$f":"IF(ISNUMBER(G13*E13/100),G13*E13/100,0)","v":0},{"$f":"IF(ISNUMBER(H13*E13/100),H13*E13/100,0)","v":0}]
[null,{"$f":"'BNB-System'!F10","v":" 1.1.2"},{"$f":"'BNB-System'!G10","v":"Ozonschichtabbaupotenzial (ODP)"},{"$f":"'BNB-System'!H10","v":100},{"$f":"'BNB-System'!K10","v":1.2499999999999999E-2},{"$f":"'Bewertung durch Anwender'!G14","v":0},{"$f":"'Bewertung durch Anwender'!N14","v":0},null,null,null,null,{"$f":"'BNB-System'!L10","v":100},{"$f":"IF(ISNUMBER(G14*E14/100),G14*E14/100,0)","v":0},0]
[null,{"$f":"'BNB-System'!F11","v":" 1.1.3"},{"$f":"'BNB-System'!G11","v":"Ozonbildungspotenzial (POCP)"},{"$f":"'BNB-System'!H11","v":100},{"$f":"'BNB-System'!K11","v":1.2499999999999999E-2},{"$f":"'Bewertung durch Anwender'!G15","v":0},{"$f":"'Bewertung durch Anwender'!N15","v":0},null,null,null,null,{"$f":"'BNB-System'!L11","v":100},0,0]
[null,{"$f":"'BNB-System'!F12","v":" 1.1.4"},{"$f":"'BNB-System'!G12","v":"Versauerungspotenzial (AP)"},{"$f":"'BNB-System'!H12","v":100},{"$f":"'BNB-System'!K12","v":1.2499999999999999E-2},{"$f":"'Bewertung durch Anwender'!G16","v":0},{"$f":"'Bewertung durch Anwender'!N16","v":0},null,null,null,null,{"$f":"'BNB-System'!L12","v":100},0,0]
[null,{"$f":"'BNB-System'!F13","v":" 1.1.5"},{"$f":"'BNB-System'!G13","v":"Überdüngungspotenzial (EP)"},{"$f":"'BNB-System'!H13","v":100},{"$f":"'BNB-System'!K13","v":1.2499999999999999E-2},{"$f":"'Bewertung durch Anwender'!G17","v":0},{"$f":"'Bewertung durch Anwender'!N17","v":0},null,null,null,null,{"$f":"'BNB-System'!L13","v":100},0,0]
[null,{"$f":"'BNB-System'!F14","v":" 1.1.6"},{"$f":"'BNB-System'!G14","v":"Risiken für die lokale Umwelt"},{"$f":"'BNB-System'!H14","v":100},{"$f":"'BNB-System'!K14","v":3.7499999999999999E-2},{"$f":"'Bewertung durch Anwender'!G18","v":0},{"$f":"'Bewertung durch Anwender'!N18","v":0},{"$f":"IF(SUM(H19:H23)>100,100,SUM(H19:H23))","v":0},null,null,null,{"$f":"'BNB-System'!L14","v":300},0,0]
[null,null,{"$f":"'BNB-System'!G15","v":"Altsubstanz Q4 ; Neusubstanz Q5"},{"$f":"'BNB-System'!H15","v":100},null,{"$f":"'Bewertung durch Anwender'!G19","v":0},{"$f":"'Bewertung durch Anwender'!N19","v":0}]
[null,null,{"$f":"'BNB-System'!G16","v":"Altsubstanz Q3 ; Neusubstanz Q4"},{"$f":"'BNB-System'!H16","v":75},null,{"$f":"'Bewertung durch Anwender'!G20","v":0},{"$f":"'Bewertung durch Anwender'!N20","v":0}]
[null,null,{"$f":"'BNB-System'!G17","v":"Altsubstanz Q2 ; Neusubstanz Q3"},{"$f":"'BNB-System'!H17","v":50},null,{"$f":"'Bewertung durch Anwender'!G21","v":0},{"$f":"'Bewertung durch Anwender'!N21","v":0}]
[null,null,{"$f":"'BNB-System'!G18","v":"Altsubstanz Q1 ; Neusubstanz Q2"},{"$f":"'BNB-System'!H18","v":25},null,{"$f":"'Bewertung durch Anwender'!G22","v":0},{"$f":"'Bewertung durch Anwender'!N22","v":0}]
[null,null,{"$f":"'BNB-System'!G19","v":"Altsubstanz Q1 ; Neusubstanz Q1"},{"$f":"'BNB-System'!H19","v":10},null,{"$f":"'Bewertung durch Anwender'!G23","v":0},{"$f":"'Bewertung durch Anwender'!N23","v":0}]
[null,{"$f":"'BNB-System'!F20","v":" 1.1.7"},{"$f":"'BNB-System'!G20","v":"Nachhaltige Materialgewinnung / Biodiversität"},{"$f":"'BNB-System'!H20","v":100},{"$f":"'BNB-System'!K20","v":1.2499999999999999E-2},{"$f":"'Bewertung durch Anwender'!G24","v":0},{"$f":"'Bewertung durch Anwender'!N24","v":0},null,null,null,null,{"$f":"'BNB-System'!L20","v":100},0,0]
[null,null,{"$f":"'BNB-System'!G21","v":"Ressourceninanspruchnahme"},null,null,null,null,null,null,null,null,{"$f":"'BNB-System'!L21","v":0}]
[null,{"$f":"'BNB-System'!F22","v":" 1.2.1"},{"$f":"'BNB-System'!G22","v":"Primärenergiebedarf"},{"$f":"'BNB-System'!H22","v":100},{"$f":"'BNB-System'!K22","v":3.7499999999999999E-2},{"$f":"'Bewertung durch Anwender'!G26","v":0},{"$f":"'Bewertung durch Anwender'!N26","v":0},{"$f":"IF(SUM(H27:H29)>100,100,SUM(H27:H29))","v":0},null,null,null,{"$f":"'BNB-System'!L22","v":300},{"$f":"IF(ISNUMBER(G26*E26/100),G26*E26/100,0)","v":0},{"$f":"IF(ISNUMBER(H26*E26/100),H26*E26/100,0)","v":0}]
[null,null,{"$f":"'BNB-System'!G23","v":"Primärenergiebedarf nicht erneuerbar (PEne)"},{"$f":"'BNB-System'!H23","v":60},null,{"$f":"'Bewertung durch Anwender'!G27","v":0},{"$f":"'Bewertung durch Anwender'!N27","v":0},null,null,null,null,{"$f":"'BNB-System'!L23","v":0}]
[null,null,{"$f":"'BNB-System'!G24","v":"Gesamtprimärenergiebedarf (PEges)"},{"$f":"'BNB-System'!H24","v":40},null,{"$f":"'Bewertung durch Anwender'!G29","v":0},{"$f":"'Bewertung durch Anwender'!N29","v":0}]
[null,null,{"$f":"'BNB-System'!G25","v":"Anteil der erneuerbaren Primärenergie (Pee)"},{"$f":"'BNB-System'!H25","v":20},null,{"$f":"'Bewertung durch Anwender'!G30","v":0},{"$f":"'Bewertung durch Anwender'!N30","v":0},null,null,null,null,{"$f":"'BNB-System'!L25","v":0}]
[null,{"$f":"'BNB-System'!F26","v":" 1.2.3"},{"$f":"'BNB-System'!G26","v":"Trinkwasserbedarf und Abwasseraufkommen"},{"$f":"'BNB-System'!H26","v":100},{"$f":"'BNB-System'!K26","v":2.4999999999999998E-2},{"$f":"'Bewertung durch Anwender'!G30","v":0},{"$f":"'Bewertung durch Anwender'!N30","v":0},null,null,null,null,{"$f":"'BNB-System'!L26","v":200},{"$f":"IF(ISNUMBER(G30*E30/100),G30*E30/100,0)","v":0},{"$f":"IF(ISNUMBER(H30*E30/100),H30*E30/100,0)","v":0}]
[null,{"$f":"'BNB-System'!F27","v":" 1.2.4"},{"$f":"'BNB-System'!G27","v":"Flächeninanspruchnahme"},{"$f":"'BNB-System'!H27","v":100},{"$f":"'BNB-System'!K27","v":2.4999999999999998E-2},{"$f":"'Bewertung durch Anwender'!G31","v":0},{"$f":"'Bewertung durch Anwender'!N31","v":0},{"$f":"SUM(H32:H33)","v":0},null,null,null,{"$f":"'BNB-System'!L27","v":200},{"$f":"IF(ISNUMBER(G31*E31/100),G31*E31/100,0)","v":0},{"$f":"IF(ISNUMBER(H31*E31/100),H31*E31/100,0)","v":0}]
[null,null,{"$f":"'BNB-System'!G28","v":"Veränderung der Flächeninanspruchnahme"},{"$f":"'BNB-System'!H28","v":100},null,{"$f":"'Bewertung durch Anwender'!G32","v":0},{"$f":"'Bewertung durch Anwender'!N32","v":0}]
[null,null,{"$f":"'BNB-System'!G29","v":"Ausgleichsmaßnahmen und Flächenrecycling"},{"$f":"'BNB-System'!H29","v":40},null,{"$f":"'Bewertung durch Anwender'!G33","v":0},{"$f":"'Bewertung durch Anwender'!N33","v":0}]
[null,null,null,null,null,null,null,null,null,null,null,{"$f":"'BNB-System'!L30","v":0}]
[null,{"$f":"'BNB-System'!F31","v":"Ökonomische Qualität"},null,null,{"$f":"'BNB-System'!K31","v":0.22500000000000001},{"$f":"'Bewertung durch Anwender'!G35","v":0},{"$f":"'Bewertung durch Anwender'!N35","v":0},{"$f":"H38*($E$38/100)+H40*($E$40/100)","v":0},null,null,null,{"$f":"'BNB-System'!L31","v":500}]
[null,null,null,null,null,null,null,null,null,null,null,{"$f":"'BNB-System'!L32","v":0}]
[null,null,{"$f":"'BNB-System'!G33","v":"Lebenszykluskosten"},null,null,null,null,null,null,null,null,{"$f":"'BNB-System'!L33","v":0}]
[null,{"$f":"'BNB-System'!F34","v":" 2.1.1"},{"$f":"'BNB-System'!G34","v":"Gebäudebezogene Kosten im Lebenszyklus"},{"$f":"'BNB-System'!H34","v":100},{"$f":"'BNB-System'!K34","v":0.13500000000000001},{"$f":"'Bewertung durch Anwender'!G38","v":0},{"$f":"'Bewertung durch Anwender'!N38","v":0},null,null,null,null,{"$f":"'BNB-System'!L34","v":300},{"$f":"IF(ISNUMBER(G38*E38/100),G38*E38/100,0)","v":0},{"$f":"IF(ISNUMBER(H38*E38/100),H38*E38/100,0)","v":0}]
[null,null,{"$f":"'BNB-System'!G35","v":"Wirtschaftlichkeit und Wertstabilität"},null,null,null,null,null,null,null,null,{"$f":"'BNB-System'!L35","v":0}]
[null,{"$f":"'BNB-System'!F36","v":" 2.2.2"},{"$f":"'BNB-System'!G36","v":"Anpassungsfähigkeit"},{"$f":"'BNB-System'!H36","v":100},{"$f":"'BNB-System'!K36","v":9.0000000000000011E-2},{"$f":"'Bewertung durch Anwender'!G40","v":0},{"$f":"'Bewertung durch Anwender'!N40","v":0},{"$f":"SUM(H41:H46)","v":0},null,null,null,{"$f":"'BNB-System'!L36","v":200},{"$f":"IF(ISNUMBER(G40*E40/100),G40*E40/100,0)","v":0},{"$f":"IF(ISNUMBER(H40*E40/100),H40*E40/100,0)","v":0}]
[null,null,{"$f":"'BNB-System'!G37","v":"Lichte Raumhöhe"},{"$f":"'BNB-System'!H37","v":15},null,{"$f":"'Bewertung durch Anwender'!G41","v":0},{"$f":"'Bewertung durch Anwender'!N41","v":0},null,null,null,null,{"$f":"'BNB-System'!L37","v":0}]
[null,null,{"$f":"'BNB-System'!G38","v":"Gebäudetiefe"},{"$f":"'BNB-System'!H38","v":15},null,{"$f":"'Bewertung durch Anwender'!G42","v":0},{"$f":"'Bewertung durch Anwender'!N42","v":0},null,null,null,null,{"$f":"'BNB-System'!L38","v":0}]
[null,null,{"$f":"'BNB-System'!G39","v":"Vertikale Erschließung"},{"$f":"'BNB-System'!H39","v":15},null,{"$f":"'Bewertung durch Anwender'!G43","v":0},{"$f":"'Bewertung durch Anwender'!N43","v":0},null,null,null,null,{"$f":"'BNB-System'!L39","v":0}]
[null,null,{"$f":"'BNB-System'!G40","v":"Grundrisse"},{"$f":"'BNB-System'!H40","v":25},null,{"$f":"'Bewertung durch Anwender'!G44","v":0},{"$f":"'Bewertung durch Anwender'!N44","v":0},null,null,null,null,{"$f":"'BNB-System'!L40","v":0}]
[null,null,{"$f":"'BNB-System'!G41","v":"Konstruktion"},{"$f":"'BNB-System'!H41","v":20},null,{"$f":"'Bewertung durch Anwender'!G45","v":0},{"$f":"'Bewertung durch Anwender'!N45","v":0},null,null,null,null,{"$f":"'BNB-System'!L41","v":0}]
[null,null,{"$f":"'BNB-System'!G42","v":"Technische Ausstattung"},{"$f":"'BNB-System'!H42","v":10},null,{"$f":"'Bewertung durch Anwender'!G46","v":0},{"$f":"'Bewertung durch Anwender'!N46","v":0},null,null,null,null,{"$f":"'BNB-System'!L42","v":0}]
[null,null,null,null,null,null,null,null,null,null,null,{"$f":"'BNB-System'!L43","v":0}]
[null,{"$f":"'BNB-System'!F44","v":"Soziokulturelle und funktionale Qualität"},null,null,{"$f":"'BNB-System'!K44","v":0.22500000000000001},{"$f":"'Bewertung durch Anwender'!G48","v":0},{"$f":"'Bewertung durch Anwender'!N48","v":0},{"$f":"H51*($E$51/100)+H62*($E$62/100)+H65*($E$65/100)+H75*($E$75/100)+H83*($E$83/100)+H93*($E$93/100)+H98*($E$98/100)+H105*($E$105/100)+H106*($E$106/100)+H111*($E$111/100)+H116*($E$116/100)+H123*($E$123/100)","v":0},null,null,null,{"$f":"'BNB-System'!L44","v":2700}]
[null,null,null,null,null,null,null,null,null,null,null,{"$f":"'BNB-System'!L45","v":0}]
[null,null,{"$f":"'BNB-System'!G46","v":"Gesundheit, Behaglichkeit und Nutzerzufriedenheit"},null,null,null,null,null,null,null,null,{"$f":"'BNB-System'!L46","v":0}]
[null,{"$f":"'BNB-System'!F47","v":" 3.1.1"},{"$f":"'BNB-System'!G47","v":"Thermischer Komfort"},{"$f":"'BNB-System'!H47","v":100},{"$f":"'BNB-System'!K47","v":2.4999999999999998E-2},{"$f":"'Bewertung durch Anwender'!G51","v":0},{"$f":"'Bewertung durch Anwender'!N51","v":0},{"$f":"SUM(H53:H56,H58:H61)","v":0},null,null,null,{"$f":"'BNB-System'!L47","v":300},{"$f":"IF(ISNUMBER(G51*E51/100),G51*E51/100,0)","v":0},{"$f":"IF(ISNUMBER(H51*E51/100),H51*E51/100,0)","v":0}]
[null,null,{"$f":"'BNB-System'!G48","v":"Winter"}]
[null,null,{"$f":"'BNB-System'!G49","v":"Operative Temperatur"},{"$f":"'BNB-System'!H49","v":10},null,{"$f":"'Bewertung durch Anwender'!G53","v":0},{"$f":"'Bewertung durch Anwender'!N53","v":0}]
[null,null,{"$f":"'BNB-System'!G50","v":" Zugluft"},{"$f":"'BNB-System'!H50","v":10},null,{"$f":"'Bewertung durch Anwender'!G54","v":0},{"$f":"'Bewertung durch Anwender'!N54","v":0}]
[null,null,{"$f":"'BNB-System'!G51","v":"Stahlungstemperaturasymmetrie und Fußbodentemperatur"},{"$f":"'BNB-System'!H51","v":10},null,{"$f":"'Bewertung durch Anwender'!G55","v":0},{"$f":"'Bewertung durch Anwender'!N55","v":0}]
[null,null,{"$f":"'BNB-System'!G52","v":"Luftfeuchte"},{"$f":"'BNB-System'!H52","v":10},null,{"$f":"'Bewertung durch Anwender'!G56","v":0},{"$f":"'Bewertung durch Anwender'!N56","v":0}]
[null,null,{"$f":"'BNB-System'!G53","v":"Sommer"},null,null,{"$f":"'Bewertung durch Anwender'!G57","v":""}]
[null,null,{"$f":"'BNB-System'!G54","v":"Operative Temperatur"},{"$f":"'BNB-System'!H54","v":30},null,{"$f":"'Bewertung durch Anwender'!G58","v":0},{"$f":"'Bewertung durch Anwender'!N58","v":0}]
[null,null,{"$f":"'BNB-System'!G55","v":" Zugluft"},{"$f":"'BNB-System'!H55","v":10},null,{"$f":"'Bewertung durch Anwender'!G59","v":0},{"$f":"'Bewertung durch Anwender'!N59","v":0}]
[null,null,{"$f":"'BNB-System'!G56","v":"Stahlungstemperaturasymmetrie und Fußbodentemperatur"},{"$f":"'BNB-System'!H56","v":10},null,{"$f":"'Bewertung durch Anwender'!G60","v":0},{"$f":"'Bewertung durch Anwender'!N60","v":0},null,null,null,null,{"$f":"'BNB-System'!L49","v":0}]
[null,null,{"$f":"'BNB-System'!G57","v":"Luftfeuchte"},{"$f":"'BNB-System'!H57","v":10},null,{"$f":"'Bewertung durch Anwender'!G61","v":0},{"$f":"'Bewertung durch Anwender'!N61","v":0},null,null,null,null,{"$f":"'BNB-System'!#REF!","v":{"$error":"#REF!"}}]
[null,{"$f":"'BNB-System'!F58","v":" 3.1.3"},{"$f":"'BNB-System'!G58","v":"Innenraumlufthygiene"},{"$f":"'BNB-System'!H58","v":100},{"$f":"'BNB-System'!K58","v":2.4999999999999998E-2},{"$f":"'Bewertung durch Anwender'!G62","v":0},{"$f":"'Bewertung durch Anwender'!N62","v":0},{"$f":"SUM(H63:H64)","v":0},null,null,null,{"$f":"'BNB-System'!L58","v":300},{"$f":"IF(ISNUMBER(G62*E62/100),G62*E62/100,0)","v":0},{"$f":"IF(ISNUMBER(H62*E62/100),H62*E62/100,0)","v":0}]
[null,null,{"$f":"'BNB-System'!G59","v":"Flüchtige organische Stoffe (VOC) und Formaldehyd"},{"$f":"'BNB-System'!H59","v":50},null,{"$f":"'Bewertung durch Anwender'!G63","v":0},{"$f":"'Bewertung durch Anwender'!N63","v":0},null,null,null,null,{"$f":"'BNB-System'!L59","v":0}]
[null,null,{"$f":"'BNB-System'!G60","v":"Personenbezogene Lüftungsrate"},{"$f":"'BNB-System'!H60","v":50},null,{"$f":"'Bewertung durch Anwender'!G64","v":0},{"$f":"'Bewertung durch Anwender'!N64","v":0},null,null,null,null,{"$f":"'BNB-System'!L60","v":0}]
[null,{"$f":"'BNB-System'!F61","v":" 3.1.4"},{"$f":"'BNB-System'!G61","v":"Akustischer Komfort"},{"$f":"'BNB-System'!H61","v":100},{"$f":"'BNB-System'!K61","v":1.6666666666666666E-2},{"$f":"'Bewertung durch Anwender'!G65","v":0},{"$f":"'Bewertung durch Anwender'!N65","v":0},{"$f":"(IF(IF((ISNUMBER(ROUND(H69/(H69+H71+H73)*H66+H71/(H69+H71+H73)*H70+H73/(H69+H71+H73)*H72,1))),ROUND(H69/(H69+H71+H73)*H66+H71/(H69+H71+H73)*H70+H73/(H69+H71+H73)*H72,1),0)>100,100,IF(ISNUMBER(ROUND(H69/(H69+H71+H73)*H66+H71/(H69+H71+H73)*H70+H73/(H69+H71+H73)*H72,1)),ROUND(H69/(H69+H71+H73)*H66+H71/(H69+H71+H73)*H70+H73/(H69+H71+H73)*H72,1),0)))-H74","v":0},null,null,null,{"$f":"'BNB-System'!L61","v":200},{"$f":"IF(ISNUMBER(G65*E65/100),G65*E65/100,0)","v":0},{"$f":"IF(ISNUMBER(H65*E65/100),H65*E65/100,0)","v":0}]
[null,null,{"$f":"'BNB-System'!G62","v":"Räume Gruppe A"},null,null,null,null,null,null,null,null,{"$f":"'BNB-System'!L63","v":0}]
[null,null,{"$f":"'BNB-System'!G63","v":"Musik"},{"$f":"'BNB-System'!H63","v":100},null,{"$f":"'Bewertung durch Anwender'!G67","v":0},{"$f":"'Bewertung durch Anwender'!N67","v":0}]
[null,null,{"$f":"'BNB-System'!G64","v":"Sprache/ Vortrag"},{"$f":"'BNB-System'!H64","v":100},null,{"$f":"'Bewertung durch Anwender'!G68","v":0},{"$f":"'Bewertung durch Anwender'!N68","v":0}]
[null,null,{"$f":"'BNB-System'!G65","v":"Unterricht Kommunikation"},{"$f":"'BNB-System'!H65","v":100},null,{"$f":"'Bewertung durch Anwender'!G69","v":0},{"$f":"'Bewertung durch Anwender'!N69","v":0},null,null,null,null,{"$f":"'BNB-System'!L64","v":0}]
[null,null,{"$f":"'BNB-System'!G66","v":"Sport"},{"$f":"'BNB-System'!H66","v":100},null,{"$f":"'Bewertung durch Anwender'!G70","v":0},{"$f":"'Bewertung durch Anwender'!N70","v":0},null,null,null,null,{"$f":"'BNB-System'!L65","v":0}]
[null,null,{"$f":"'BNB-System'!G67","v":"Räume Gruppe B"},null,null,null,null,null,null,null,null,{"$f":"'BNB-System'!L66","v":0}]
[null,null,{"$f":"'BNB-System'!G68","v":"Einzel- und Mehrpersonenbüros bis 100 m3"},{"$f":"'BNB-System'!H68","v":100},null,{"$f":"'Bewertung durch Anwender'!G72","v":0},{"$f":"'Bewertung durch Anwender'!N72","v":0},null,null,null,null,{"$f":"'BNB-System'!L68","v":0}]
[null,null,{"$f":"'BNB-System'!G69","v":"Mehrpersonenbüros über 100 m3"},{"$f":"'BNB-System'!H69","v":100},null,{"$f":"'Bewertung durch Anwender'!G73","v":0},{"$f":"'Bewertung durch Anwender'!N73","v":0},null,null,null,null,{"$f":"'BNB-System'!L69","v":0}]
[null,null,{"$f":"'BNB-System'!G70","v":"Weitere Räume"},{"$f":"'BNB-System'!H70","v":100},null,{"$f":"'Bewertung durch Anwender'!G74","v":0},{"$f":"'Bewertung durch Anwender'!N74","v":0},null,null,null,null,{"$f":"'BNB-System'!L70","v":0}]
[null,{"$f":"'BNB-System'!F71","v":" 3.1.5"},{"$f":"'BNB-System'!G71","v":"Visueller Komfort"},{"$f":"'BNB-System'!H71","v":100},{"$f":"'BNB-System'!K71","v":1.6666666666666666E-2},{"$f":"'Bewertung durch Anwender'!G75","v":0},{"$f":"'Bewertung durch Anwender'!N75","v":0},{"$f":"SUM(H76:H82)","v":0},null,null,null,{"$f":"'BNB-System'!L71","v":200},{"$f":"IF(ISNUMBER(G75*E75/100),G75*E75/100,0)","v":0},{"$f":"IF(ISNUMBER(#REF!*E75/100),#REF!*E75/100,0)","v":0}]
[null,null,{"$f":"'BNB-System'!G72","v":"Tageslichtverfügbarkeit Gesamtgebäude"},{"$f":"'BNB-System'!H72","v":15},null,{"$f":"'Bewertung durch Anwender'!G76","v":0},{"$f":"'Bewertung durch Anwender'!N76","v":0},null,null,null,null,{"$f":"'BNB-System'!L72","v":0}]
[null,null,{"$f":"'BNB-System'!G73","v":"Tageslichtverfügbarkeit ständige Arbeitsplätze"},{"$f":"'BNB-System'!H73","v":15},null,{"$f":"'Bewertung durch Anwender'!G77","v":0},{"$f":"'Bewertung durch Anwender'!N77","v":0},null,null,null,null,{"$f":"'BNB-System'!L73","v":0}]
[null,null,{"$f":"'BNB-System'!G74","v":"Nachweis de Sichtverbindung außen"},{"$f":"'BNB-System'!H74","v":35},null,{"$f":"'Bewertung durch Anwender'!G78","v":0},{"$f":"'Bewertung durch Anwender'!N78","v":0},null,null,null,null,{"$f":"'BNB-System'!L74","v":0}]
[null,null,{"$f":"'BNB-System'!G75","v":"Blendfreiheit Tageslicht"},{"$f":"'BNB-System'!H75","v":10},null,{"$f":"'Bewertung durch Anwender'!G79","v":0},{"$f":"'Bewertung durch Anwender'!N79","v":0},null,null,null,null,{"$f":"'BNB-System'!L75","v":0}]
[null,null,{"$f":"'BNB-System'!G76","v":"Blendfreiheit  Kunstlicht"},{"$f":"'BNB-System'!H76","v":5},null,{"$f":"'Bewertung durch Anwender'!G80","v":0},{"$f":"'Bewertung durch Anwender'!N80","v":0},null,null,null,null,{"$f":"'BNB-System'!L76","v":0}]
[null,null,{"$f":"'BNB-System'!G77","v":"Lichtverteilung"},{"$f":"'BNB-System'!H77","v":20},null,{"$f":"'Bewertung durch Anwender'!G81","v":0},{"$f":"'Bewertung durch Anwender'!N81","v":0},null,null,null,null,{"$f":"'BNB-System'!L77","v":0}]
[null,null,{"$f":"'BNB-System'!G78","v":"Farbwiedergabe"},{"$f":"'BNB-System'!H78","v":10},null,{"$f":"'Bewertung durch Anwender'!G82","v":0},{"$f":"'Bewertung durch Anwender'!N82","v":0},null,null,null,null,{"$f":"'BNB-System'!L78","v":0}]
[null,{"$f":"'BNB-System'!F79","v":" 3.1.6"},{"$f":"'BNB-System'!G79","v":"Einflussnahmemöglichkeiten durch Nutzer"},{"$f":"'BNB-System'!H79","v":100},{"$f":"'BNB-System'!K79","v":1.6666666666666666E-2},{"$f":"'Bewertung durch Anwender'!G83","v":0},{"$f":"'Bewertung durch Anwender'!N83","v":0},{"$f":"SUM(H84:H92)","v":0},null,null,null,{"$f":"'BNB-System'!L79","v":200},{"$f":"IF(ISNUMBER(G83*E83/100),G83*E83/100,0)","v":0},{"$f":"IF(ISNUMBER(H83*E83/100),H83*E83/100,0)","v":0}]
[null,null,{"$f":"'BNB-System'!G80","v":"Lüftung"},{"$f":"'BNB-System'!H80","v":10},null,{"$f":"'Bewertung durch Anwender'!G84","v":0},{"$f":"'Bewertung durch Anwender'!N84","v":0},null,null,null,null,{"$f":"'BNB-System'!L80","v":0}]
[null,null,{"$f":"'BNB-System'!G81","v":"Sonnenschutz"},{"$f":"'BNB-System'!H81","v":10},null,{"$f":"'Bewertung durch Anwender'!G85","v":0},{"$f":"'Bewertung durch Anwender'!N85","v":0},null,null,null,null,{"$f":"'BNB-System'!L81","v":0}]
[null,null,{"$f":"'BNB-System'!G82","v":"Blendschutz"},{"$f":"'BNB-System'!H82","v":10},null,{"$f":"'Bewertung durch Anwender'!G86","v":0},{"$f":"'Bewertung durch Anwender'!N86","v":0},null,null,null,null,{"$f":"'BNB-System'!L82","v":0}]
[null,null,{"$f":"'BNB-System'!G83","v":"Temperaturen während der Heizperiode"},{"$f":"'BNB-System'!H83","v":10},null,{"$f":"'Bewertung durch Anwender'!G87","v":0},{"$f":"'Bewertung durch Anwender'!N87","v":0},null,null,null,null,{"$f":"'BNB-System'!L83","v":0}]
[null,null,{"$f":"'BNB-System'!G84","v":"Temperaturen außerhalb der Heizperiode"},{"$f":"'BNB-System'!H84","v":15},null,{"$f":"'Bewertung durch Anwender'!G88","v":0},{"$f":"'Bewertung durch Anwender'!N88","v":0}]
[null,null,{"$f":"'BNB-System'!G85","v":"Steuerung von Tageslicht"},{"$f":"'BNB-System'!H85","v":10},null,{"$f":"'Bewertung durch Anwender'!G89","v":0},{"$f":"'Bewertung durch Anwender'!N89","v":0},null,null,null,null,{"$f":"'BNB-System'!L84","v":0}]
[null,null,{"$f":"'BNB-System'!G86","v":"Steuerung von  Kunstlicht"},{"$f":"'BNB-System'!H86","v":10},null,{"$f":"'Bewertung durch Anwender'!G90","v":0},{"$f":"'Bewertung durch Anwender'!N90","v":0},null,null,null,null,{"$f":"'BNB-System'!L85","v":0}]
[null,null,{"$f":"'BNB-System'!G87","v":"Bedienfreundlichkeit"},{"$f":"'BNB-System'!H87","v":10},null,{"$f":"'Bewertung durch Anwender'!G91","v":0},{"$f":"'Bewertung durch Anwender'!N91","v":0},null,null,null,null,{"$f":"'BNB-System'!L87","v":0}]
[null,null,{"$f":"'BNB-System'!G88","v":"Funktionskonzept der Haustechnik"},{"$f":"'BNB-System'!H88","v":15},null,{"$f":"'Bewertung durch Anwender'!G92","v":0},{"$f":"'Bewertung durch Anwender'!N92","v":0},null,null,null,null,{"$f":"'BNB-System'!L88","v":0}]
[null,{"$f":"'BNB-System'!F89","v":" 3.1.7"},{"$f":"'BNB-System'!G89","v":"Aufenthaltsmerkmale im Außenraum"},{"$f":"'BNB-System'!H89","v":100},{"$f":"'BNB-System'!K89","v":1.6666666666666666E-2},{"$f":"'Bewertung durch Anwender'!G93","v":0},{"$f":"'Bewertung durch Anwender'!N93","v":0},{"$f":"SUM(H94:H97)","v":0},null,null,null,{"$f":"'BNB-System'!L89","v":200},{"$f":"IF(ISNUMBER(G93*E93/100),G93*E93/100,0)","v":0},{"$f":"IF(ISNUMBER(H93*E93/100),H93*E93/100,0)","v":0}]
[null,null,{"$f":"'BNB-System'!G90","v":"Anzahl und Vielfalt Sitzgelegenheiten"},{"$f":"'BNB-System'!H90","v":30},null,{"$f":"'Bewertung durch Anwender'!G94","v":0},{"$f":"'Bewertung durch Anwender'!N94","v":0},null,null,null,null,{"$f":"'BNB-System'!L90","v":0}]
[null,null,{"$f":"'BNB-System'!G91","v":"Anzahlund Vielfalt der Spiel- und Sportmöglichkeiten"},{"$f":"'BNB-System'!H91","v":15},null,{"$f":"'Bewertung durch Anwender'!G95","v":0},{"$f":"'Bewertung durch Anwender'!N95","v":0},null,null,null,null,{"$f":"'BNB-System'!L91","v":0}]
[null,null,{"$f":"'BNB-System'!G92","v":"Zuordnung von Freibereichen zu Innenräumen"},{"$f":"'BNB-System'!H92","v":20},null,{"$f":"'Bewertung durch Anwender'!G96","v":0},{"$f":"'Bewertung durch Anwender'!N96","v":0},null,null,null,null,{"$f":"'BNB-System'!L92","v":0}]
[null,null,{"$f":"'BNB-System'!G93","v":"Ausstattungsmerkmale"},{"$f":"'BNB-System'!H93","v":39},null,{"$f":"'Bewertung durch Anwender'!G97","v":0},{"$f":"'Bewertung durch Anwender'!N97","v":0},null,null,null,null,{"$f":"'BNB-System'!L93","v":0}]
[null,{"$f":"'BNB-System'!F94","v":" 3.1.8"},{"$f":"'BNB-System'!G94","v":"Sicherheit"},{"$f":"'BNB-System'!H94","v":100},{"$f":"'BNB-System'!K94","v":8.3333333333333332E-3},{"$f":"'Bewertung durch Anwender'!G98","v":0},{"$f":"'Bewertung durch Anwender'!N98","v":0},null,null,null,null,{"$f":"'BNB-System'!L94","v":100},{"$f":"IF(ISNUMBER(G98*E98/100),G98*E98/100,0)","v":0},{"$f":"IF(ISNUMBER(H98*E98/100),H98*E98/100,0)","v":0}]
[null,{"$f":"'BNB-System'!F95","v":" 3.1.9"},{"$f":"'BNB-System'!G95","v":"Innenraumqualität"},{"$f":"'BNB-System'!H95","v":100},null,{"$f":"'Bewertung durch Anwender'!G99","v":0},{"$f":"'Bewertung durch Anwender'!N99","v":0},{"$f":"SUM(H100:H103)","v":0}]
[null,null,{"$f":"'BNB-System'!G96","v":"Aufenthaltsqualitäten der Erschließungsflächen"},{"$f":"'BNB-System'!H96","v":45},null,{"$f":"'Bewertung durch Anwender'!G100","v":0},{"$f":"'Bewertung durch Anwender'!N100","v":0}]
[null,null,{"$f":"'BNB-System'!G97","v":"Innere Sitzbeziehung"},{"$f":"'BNB-System'!H97","v":15},null,{"$f":"'Bewertung durch Anwender'!G101","v":0},{"$f":"'Bewertung durch Anwender'!N101","v":0}]
[null,null,{"$f":"'BNB-System'!G98","v":"Flexibilität der Raumnutzung"},{"$f":"'BNB-System'!H98","v":30},null,{"$f":"'Bewertung durch Anwender'!G102","v":0},{"$f":"'Bewertung durch Anwender'!N102","v":0}]
[null,null,{"$f":"'BNB-System'!G99","v":"Aufbewahrungsmöglichkeiten"},{"$f":"'BNB-System'!H99","v":40},null,{"$f":"'Bewertung durch Anwender'!G103","v":0},{"$f":"'Bewertung durch Anwender'!N103","v":0}]
[null,null,{"$f":"'BNB-System'!G100","v":"Funktionalität"},null,null,null,null,null,null,null,null,{"$f":"'BNB-System'!L100","v":0}]
[null,{"$f":"'BNB-System'!F101","v":" 3.2.1"},{"$f":"'BNB-System'!G101","v":"Barrierefreiheit"},{"$f":"'BNB-System'!H101","v":100},{"$f":"'BNB-System'!K101","v":1.6666666666666666E-2},{"$f":"'Bewertung durch Anwender'!G105","v":0},{"$f":"'Bewertung durch Anwender'!N105","v":0},null,null,null,null,{"$f":"'BNB-System'!L101","v":200},{"$f":"IF(ISNUMBER(G105*E105/100),G105*E105/100,0)","v":0},0]
[null,{"$f":"'BNB-System'!F102","v":" 3.2.4"},{"$f":"'BNB-System'!G102","v":"Zugänglichkeit"},{"$f":"'BNB-System'!H102","v":100},{"$f":"'BNB-System'!K102","v":1.6666666666666666E-2},{"$f":"'Bewertung durch Anwender'!G106","v":0},{"$f":"'Bewertung durch Anwender'!N106","v":0},{"$f":"SUM(H107:H110)","v":0},null,null,null,{"$f":"'BNB-System'!L102","v":200},{"$f":"IF(ISNUMBER(G106*E106/100),G106*E106/100,0)","v":0},{"$f":"IF(ISNUMBER(H106*E106/100),H106*E106/100,0)","v":0}]
[null,null,{"$f":"'BNB-System'!G103","v":"Grundsätzliche öffentliche Zugänglichkeit des Gebäudes"},{"$f":"'BNB-System'!H103","v":20},null,{"$f":"'Bewertung durch Anwender'!G107","v":0},{"$f":"'Bewertung durch Anwender'!N107","v":0},null,null,null,null,{"$f":"'BNB-System'!L103","v":0}]
[null,null,{"$f":"'BNB-System'!G104","v":"Qualitative Merkmale der öffentlichen Zugänglichkeit des Gebäudes"},{"$f":"'BNB-System'!H104","v":50},null,{"$f":"'Bewertung durch Anwender'!G108","v":0},{"$f":"'Bewertung durch Anwender'!N108","v":0},null,null,null,null,{"$f":"'BNB-System'!L104","v":0}]
[null,null,{"$f":"'BNB-System'!G105","v":"Nutzungsmerkmale der Zugänglichkeit"},{"$f":"'BNB-System'!H105","v":50},null,{"$f":"'Bewertung durch Anwender'!G109","v":0},{"$f":"'Bewertung durch Anwender'!N109","v":0},null,null,null,null,{"$f":"'BNB-System'!L105","v":0}]
[null,null,{"$f":"'BNB-System'!G106","v":"Qualitative Aspekte der öffentlichen Zugänglichkeit der Freiflächen"},{"$f":"'BNB-System'!H106","v":20},null,{"$f":"'Bewertung durch Anwender'!G110","v":0},{"$f":"'Bewertung durch Anwender'!N110","v":0},null,null,null,null,{"$f":"'BNB-System'!L106","v":0}]
[null,{"$f":"'BNB-System'!F107","v":" 3.2.5"},{"$f":"'BNB-System'!G107","v":"Mobilitätsinfrastruktur"},{"$f":"'BNB-System'!H107","v":100},{"$f":"'BNB-System'!K107","v":8.3333333333333332E-3},{"$f":"'Bewertung durch Anwender'!G111","v":0},{"$f":"'Bewertung durch Anwender'!N111","v":0},{"$f":"IF(SUM(H112:H114)>100,100,SUM(H112:H114))","v":0},null,null,null,{"$f":"'BNB-System'!L107","v":100},{"$f":"IF(ISNUMBER(G111*E111/100),G111*E111/100,0)","v":0},{"$f":"IF(ISNUMBER(H111*E111/100),H111*E111/100,0)","v":0}]
[null,null,{"$f":"'BNB-System'!G108","v":"Anzahl der Fahrradstellplätze"},{"$f":"'BNB-System'!H108","v":40},null,{"$f":"'Bewertung durch Anwender'!G112","v":0},{"$f":"'Bewertung durch Anwender'!N112","v":0},null,null,null,null,{"$f":"'BNB-System'!L108","v":0}]
[null,null,{"$f":"'BNB-System'!G109","v":"Anzahl der Lademöglichkeiten und Carsharing-Stellplätze"},{"$f":"'BNB-System'!H109","v":20},null,{"$f":"'Bewertung durch Anwender'!G113","v":0},{"$f":"'Bewertung durch Anwender'!N113","v":0},null,null,null,null,{"$f":"'BNB-System'!L109","v":0}]
[null,null,{"$f":"'BNB-System'!G110","v":"Qualitative Anforderungen an Fahrradstellplätze"},{"$f":"'BNB-System'!H110","v":60},null,{"$f":"'Bewertung durch Anwender'!G114","v":0},{"$f":"'Bewertung durch Anwender'!N114","v":0},null,null,null,null,{"$f":"'BNB-System'!L110","v":0}]
[null,null,{"$f":"'BNB-System'!G111","v":"Sicherung der Gestaltungsqualität"},null,null,null,null,null,null,null,null,{"$f":"'BNB-System'!L111","v":0}]
[null,{"$f":"'BNB-System'!F112","v":" 3.3.1"},{"$f":"'BNB-System'!G112","v":"Gestalterische und städtebauliche Qualität"},{"$f":"'BNB-System'!H112","v":100},{"$f":"'BNB-System'!K112","v":2.4999999999999998E-2},{"$f":"'Bewertung durch Anwender'!G116","v":0},{"$f":"'Bewertung durch Anwender'!N116","v":0},{"$f":"IF(AND(H117>0,H121<=H122),SUM(H117:H120),IF(AND(H117>0,H122<=H121),SUM(H117:H120),IF(H121>0,H121,IF(H122>0,H122,))))","v":0},null,null,null,{"$f":"'BNB-System'!L112","v":300},{"$f":"IF(ISNUMBER(G116*E116/100),G116*E116/100,0)","v":0},{"$f":"IF(ISNUMBER(H116*E116/100),H116*E116/100,0)","v":0}]
[null,null,{"$f":"'BNB-System'!G113","v":"Fortentwicklung der gestalterischen und städtebaulichen Qualität des Bestandsgebäudes"},{"$f":"'BNB-System'!H113","v":40},null,{"$f":"'Bewertung durch Anwender'!G117","v":0},{"$f":"'Bewertung durch Anwender'!N117","v":0},null,null,null,null,{"$f":"'BNB-System'!L113","v":0}]
[null,null,{"$f":"'BNB-System'!G114","v":"Wettbewerbsverfahren"},{"$f":"'BNB-System'!H114","v":35},null,{"$f":"'Bewertung durch Anwender'!G118","v":0},{"$f":"'Bewertung durch Anwender'!N118","v":0},null,null,null,null,{"$f":"'BNB-System'!L114","v":0}]
[null,null,{"$f":"'BNB-System'!G115","v":"Ausführung des Entwurfs eines der Preisträger"},{"$f":"'BNB-System'!H115","v":20},null,{"$f":"'Bewertung durch Anwender'!G119","v":0},{"$f":"'Bewertung durch Anwender'!N119","v":0},null,null,null,null,{"$f":"'BNB-System'!L115","v":0}]
[null,null,{"$f":"'BNB-System'!G116","v":"Beauftragung des Planungsteams"},{"$f":"'BNB-System'!H116","v":5},null,{"$f":"'Bewertung durch Anwender'!G120","v":0},{"$f":"'Bewertung durch Anwender'!N120","v":0},null,null,null,null,{"$f":"'BNB-System'!L116","v":0}]
[null,null,{"$f":"'BNB-System'!G117","v":"Auszeichnung mit einem Architekturpreis"},{"$f":"'BNB-System'!H117","v":40},null,{"$f":"'Bewertung durch Anwender'!G121","v":0},{"$f":"'Bewertung durch Anwender'!N121","v":0},null,null,null,null,{"$f":"'BNB-System'!L117","v":0}]
[null,null,{"$f":"'BNB-System'!G118","v":"Unabhängiges Expertengremium"},{"$f":"'BNB-System'!H118","v":30},null,{"$f":"'Bewertung durch Anwender'!G122","v":0},{"$f":"'Bewertung durch Anwender'!N122","v":0},null,null,null,null,{"$f":"'BNB-System'!L118","v":0}]
[null,{"$f":"'BNB-System'!F119","v":" 3.3.2"},{"$f":"'BNB-System'!G119","v":"Kunst am Bau "},{"$f":"'BNB-System'!H119","v":100},{"$f":"'BNB-System'!K119","v":8.3333333333333332E-3},{"$f":"'Bewertung durch Anwender'!G123","v":0},{"$f":"'Bewertung durch Anwender'!N123","v":0},{"$f":"SUM(H124:H127)","v":0},null,null,null,{"$f":"'BNB-System'!L119","v":100},{"$f":"IF(ISNUMBER(G123*E123/100),G123*E123/100,0)","v":0},{"$f":"IF(ISNUMBER(H123*E123/100),H123*E123/100,0)","v":0}]
[null,null,{"$f":"'BNB-System'!G120","v":"Mindestanforderung"},{"$f":"'BNB-System'!H120","v":10},null,{"$f":"'Bewertung durch Anwender'!G124","v":0},{"$f":"'Bewertung durch Anwender'!N124","v":0},null,null,null,null,{"$f":"'BNB-System'!L120","v":0}]
[null,null,{"$f":"'BNB-System'!G121","v":"Bereitstellung von Mitteln im Rahmen der Bauaufgabe"},{"$f":"'BNB-System'!H121","v":30},null,{"$f":"'Bewertung durch Anwender'!G125","v":0},{"$f":"'Bewertung durch Anwender'!N125","v":0},null,null,null,null,{"$f":"'BNB-System'!L121","v":0}]
[null,null,{"$f":"'BNB-System'!G122","v":"Umsetzung des Leitfadens Kunst am Bau"},{"$f":"'BNB-System'!H122","v":40},null,{"$f":"'Bewertung durch Anwender'!G126","v":0},{"$f":"'Bewertung durch Anwender'!N126","v":0},null,null,null,null,{"$f":"'BNB-System'!L122","v":0}]
[null,null,{"$f":"'BNB-System'!G123","v":"Öffentlichkeitsarbeit, Rezeption  der Kunst am Bau"},{"$f":"'BNB-System'!H123","v":20},null,{"$f":"'Bewertung durch Anwender'!G127","v":0},{"$f":"'Bewertung durch Anwender'!N127","v":0},null,null,null,null,{"$f":"'BNB-System'!L123","v":0}]
[null,null,null,null,null,null,null,null,null,null,null,{"$f":"'BNB-System'!L124","v":0}]
[null,{"$f":"'BNB-System'!F125","v":"Technische Qualität"},null,null,{"$f":"'BNB-System'!K125","v":0.22500000000000001},{"$f":"'Bewertung durch Anwender'!G129","v":0},{"$f":"'Bewertung durch Anwender'!N129","v":0},{"$f":"H132*($E$132/100)+H137*($E$137/100)+H144*($E$144/100)+H155*($E$155/100)+H156*($E$156/100)+H157*($E$157/100)","v":0},null,null,null,{"$f":"'BNB-System'!L125","v":1000}]
[null,null,null,null,null,null,null,null,null,null,null,{"$f":"'BNB-System'!L126","v":0}]
[null,null,{"$f":"'BNB-System'!G127","v":"technische Ausführung"},null,null,null,null,null,null,null,null,{"$f":"'BNB-System'!L127","v":0}]
[null,{"$f":"'BNB-System'!F128","v":" 4.1.1"},{"$f":"'BNB-System'!G128","v":"Schallschutz "},{"$f":"'BNB-System'!H128","v":100},{"$f":"'BNB-System'!K128","v":4.5000000000000005E-2},{"$f":"'Bewertung durch Anwender'!G132","v":0},{"$f":"'Bewertung durch Anwender'!N132","v":0},{"$f":"SUM(H133:H136)","v":0},null,null,null,{"$f":"'BNB-System'!L128","v":200},{"$f":"IF(ISNUMBER(G132*E132/100),G132*E132/100,0)","v":0},{"$f":"IF(ISNUMBER(H132*E132/100),H132*E132/100,0)","v":0}]
[null,null,{"$f":"'BNB-System'!G129","v":"Luftschallschutz gegen Außenlärm"},{"$f":"'BNB-System'!H129","v":20},null,{"$f":"'Bewertung durch Anwender'!G133","v":0},{"$f":"'Bewertung durch Anwender'!N133","v":0},null,null,null,null,{"$f":"'BNB-System'!L129","v":0}]
[null,null,{"$f":"'BNB-System'!G130","v":"Luftschallschutz"},{"$f":"'BNB-System'!H130","v":30},null,{"$f":"'Bewertung durch Anwender'!G134","v":0},{"$f":"'Bewertung durch Anwender'!N134","v":0},null,null,null,null,{"$f":"'BNB-System'!L130","v":0}]
[null,null,{"$f":"'BNB-System'!G131","v":"Trittschallschutz"},{"$f":"'BNB-System'!H131","v":30},null,{"$f":"'Bewertung durch Anwender'!G135","v":0},{"$f":"'Bewertung durch Anwender'!N135","v":0},null,null,null,null,{"$f":"'BNB-System'!L131","v":0}]
[null,null,{"$f":"'BNB-System'!G132","v":"Schallschutz gegenüber haustechnischen Anlagen"},{"$f":"'BNB-System'!H132","v":20},null,{"$f":"'Bewertung durch Anwender'!G136","v":0},{"$f":"'Bewertung durch Anwender'!N136","v":0},null,null,null,null,{"$f":"'BNB-System'!L132","v":0}]
[null,{"$f":"'BNB-System'!F133","v":" 4.1.2"},{"$f":"'BNB-System'!G133","v":"Wärme- und Tauwasserschutz "},{"$f":"'BNB-System'!H133","v":100},{"$f":"'BNB-System'!K133","v":4.5000000000000005E-2},{"$f":"'Bewertung durch Anwender'!G137","v":0},{"$f":"'Bewertung durch Anwender'!N137","v":0},{"$f":"SUM(H138:H143)","v":0},null,null,null,{"$f":"'BNB-System'!L133","v":200},{"$f":"IF(ISNUMBER(G137*E137/100),G137*E137/100,0)","v":0},{"$f":"IF(ISNUMBER(H137*E137/100),H137*E137/100,0)","v":0}]
[null,null,{"$f":"'BNB-System'!G134","v":"Mittlere Wärmeduchgangskoeffizienten"},{"$f":"'BNB-System'!H134","v":30},null,{"$f":"'Bewertung durch Anwender'!G138","v":0},{"$f":"'Bewertung durch Anwender'!N138","v":0},null,null,null,null,{"$f":"'BNB-System'!L134","v":0}]
[null,null,{"$f":"'BNB-System'!G135","v":"Wärmebrückenzuschlag"},{"$f":"'BNB-System'!H135","v":15},null,{"$f":"'Bewertung durch Anwender'!G139","v":0},{"$f":"'Bewertung durch Anwender'!N139","v":0},null,null,null,null,{"$f":"'BNB-System'!L135","v":0}]
[null,null,{"$f":"'BNB-System'!G136","v":"Klassen der Luftdurchlässigkeit (Fugendurchlässigkeit)"},{"$f":"'BNB-System'!H136","v":15},null,{"$f":"'Bewertung durch Anwender'!G140","v":0},{"$f":"'Bewertung durch Anwender'!N140","v":0},null,null,null,null,{"$f":"'BNB-System'!L136","v":0}]
[null,null,{"$f":"'BNB-System'!G137","v":"Tauwasserbildung"},{"$f":"'BNB-System'!H137","v":10},null,{"$f":"'Bewertung durch Anwender'!G141","v":0},{"$f":"'Bewertung durch Anwender'!N141","v":0},null,null,null,null,{"$f":"'BNB-System'!L137","v":0}]
[null,null,{"$f":"'BNB-System'!G138","v":"Luftwechsel"},{"$f":"'BNB-System'!H138","v":15},null,{"$f":"'Bewertung durch Anwender'!G142","v":0},{"$f":"'Bewertung durch Anwender'!N142","v":0},null,null,null,null,{"$f":"'BNB-System'!L138","v":0}]
[null,null,{"$f":"'BNB-System'!G139","v":"Sonneneintragswert"},{"$f":"'BNB-System'!H139","v":15},null,{"$f":"'Bewertung durch Anwender'!G143","v":0},{"$f":"'Bewertung durch Anwender'!N143","v":0},null,null,null,null,{"$f":"'BNB-System'!L139","v":0}]
[null,{"$f":"'BNB-System'!F140","v":" 4.1.3"},{"$f":"'BNB-System'!G140","v":"Reinigungs- und Instandhaltungsfreundlichkeit"},{"$f":"'BNB-System'!H140","v":100},{"$f":"'BNB-System'!K140","v":4.5000000000000005E-2},{"$f":"'Bewertung durch Anwender'!G144","v":0},{"$f":"'Bewertung durch Anwender'!N144","v":0},{"$f":"SUM(H145:H154)","v":0},null,null,null,{"$f":"'BNB-System'!L140","v":200},{"$f":"IF(ISNUMBER(G144*E144/100),G144*E144/100,0)","v":0},{"$f":"IF(ISNUMBER(#REF!*E144/100),#REF!*E144/100,0)","v":0}]
[null,null,{"$f":"'BNB-System'!G141","v":"Tragkonstruktion"},{"$f":"'BNB-System'!H141","v":15},null,{"$f":"'Bewertung durch Anwender'!G145","v":0},{"$f":"'Bewertung durch Anwender'!N145","v":0},null,null,null,null,{"$f":"'BNB-System'!L141","v":0}]
[null,null,{"$f":"'BNB-System'!G142","v":"Zugänglichkeit der Außenglasflächen"},{"$f":"'BNB-System'!H142","v":12},null,{"$f":"'Bewertung durch Anwender'!G146","v":0},{"$f":"'Bewertung durch Anwender'!N146","v":0},null,null,null,null,{"$f":"'BNB-System'!L142","v":0}]
[null,null,{"$f":"'BNB-System'!G143","v":"Außenbauteile"},{"$f":"'BNB-System'!H143","v":9},null,{"$f":"'Bewertung durch Anwender'!G147","v":0},{"$f":"'Bewertung durch Anwender'!N147","v":0},null,null,null,null,{"$f":"'BNB-System'!L143","v":0}]
[null,null,{"$f":"'BNB-System'!G144","v":"Bodenbelag"},{"$f":"'BNB-System'!H144","v":9},null,{"$f":"'Bewertung durch Anwender'!G148","v":0},{"$f":"'Bewertung durch Anwender'!N148","v":0},null,null,null,null,{"$f":"'BNB-System'!L144","v":0}]
[null,null,{"$f":"'BNB-System'!G145","v":"Schmutzfangzone"},{"$f":"'BNB-System'!H145","v":9},null,{"$f":"'Bewertung durch Anwender'!G149","v":0},{"$f":"'Bewertung durch Anwender'!N149","v":0},null,null,null,null,{"$f":"'BNB-System'!L145","v":0}]
[null,null,{"$f":"'BNB-System'!G146","v":"Fußbodenleisten"},{"$f":"'BNB-System'!H146","v":9},null,{"$f":"'Bewertung durch Anwender'!G150","v":0},{"$f":"'Bewertung durch Anwender'!N150","v":0},null,null,null,null,{"$f":"'BNB-System'!L146","v":0}]
[null,null,{"$f":"'BNB-System'!G147","v":"Hindernisfreie Grundrissgestaltung"},{"$f":"'BNB-System'!H147","v":9},null,{"$f":"'Bewertung durch Anwender'!G151","v":0},{"$f":"'Bewertung durch Anwender'!N151","v":0},null,null,null,null,{"$f":"'BNB-System'!L147","v":0}]
[null,null,{"$f":"'BNB-System'!G148","v":"Einbauten"},{"$f":"'BNB-System'!H148","v":10},null,{"$f":"'Bewertung durch Anwender'!G152","v":0},{"$f":"'Bewertung durch Anwender'!N152","v":0},null,null,null,null,{"$f":"'BNB-System'!L148","v":0}]
[null,null,{"$f":"'BNB-System'!G149","v":"Zugänglichkeit der Innenglasflächen "},{"$f":"'BNB-System'!H149","v":9},null,{"$f":"'Bewertung durch Anwender'!G154","v":0},{"$f":"'Bewertung durch Anwender'!N154","v":0}]
[null,null,{"$f":"'BNB-System'!G150","v":"Wände"},{"$f":"'BNB-System'!H150","v":9},null,{"$f":"'Bewertung durch Anwender'!G154","v":0},{"$f":"'Bewertung durch Anwender'!N154","v":0},null,null,null,null,{"$f":"'BNB-System'!L150","v":0}]
[null,{"$f":"'BNB-System'!F151","v":" 4.1.4"},{"$f":"'BNB-System'!G151","v":"Rückbau, Trennung und Verwertung"},{"$f":"'BNB-System'!H151","v":100},{"$f":"'BNB-System'!K151","v":4.5000000000000005E-2},{"$f":"'Bewertung durch Anwender'!G155","v":0},{"$f":"'Bewertung durch Anwender'!N155","v":0},null,null,null,null,{"$f":"'BNB-System'!L151","v":200},{"$f":"IF(ISNUMBER(G155*E155/100),G155*E155/100,0)","v":0},{"$f":"IF(ISNUMBER(H155*E155/100),H155*E155/100,0)","v":0}]
[null,{"$f":"'BNB-System'!F152","v":" 4.1.5"},{"$f":"'BNB-System'!G152","v":"Widerstandsfähigkeit gegen Naturgefahren"},{"$f":"'BNB-System'!H152","v":100},{"$f":"'BNB-System'!K152","v":2.2500000000000003E-2},{"$f":"'Bewertung durch Anwender'!G156","v":0},{"$f":"'Bewertung durch Anwender'!N156","v":0},null,null,null,null,{"$f":"'BNB-System'!L152","v":100},{"$f":"IF(ISNUMBER(G156*E156/100),G156*E156/100,0)","v":0},{"$f":"IF(ISNUMBER(H156*E156/100),H156*E156/100,0)","v":0}]
[null,{"$f":"'BNB-System'!F153","v":" 4.1.6"},{"$f":"'BNB-System'!G153","v":"Bedienungs- und Instandhaltungsfreundlichkeit der TGA"},{"$f":"'BNB-System'!H153","v":100},{"$f":"'BNB-System'!K153","v":2.2500000000000003E-2},{"$f":"'Bewertung durch Anwender'!G157","v":0},{"$f":"'Bewertung durch Anwender'!N157","v":0},null,null,null,null,{"$f":"'BNB-System'!L153","v":100},{"$f":"IF(ISNUMBER(G157*E157/100),G157*E157/100,0)","v":0},{"$f":"IF(ISNUMBER(H157*E157/100),H157*E157/100,0)","v":0}]
[null,null,null,null,null,null,null,null,null,null,null,{"$f":"'BNB-System'!L154","v":0}]
[null,{"$f":"'BNB-System'!F155","v":"Prozessqualität"},null,null,{"$f":"'BNB-System'!K155","v":0.1},{"$f":"'Bewertung durch Anwender'!G159","v":0},{"$f":"'Bewertung durch Anwender'!N159","v":0},{"$f":"H162*($E$162/100)+H166*($E$166/100)+H172*($E$172/100)+H188*($E$188/100)+H189*($E$189/100)+H209*($E$209/100)+H214*($E$214/100)+H217*($E$217/100)","v":0},null,null,null,{"$f":"'BNB-System'!L155","v":2500}]
[null,null,null,null,null,null,null,null,null,null,null,{"$f":"'BNB-System'!L156","v":0}]
[null,null,{"$f":"'BNB-System'!G157","v":"Planung"},null,null,null,null,null,null,null,null,{"$f":"'BNB-System'!L157","v":0}]
[null,{"$f":"'BNB-System'!F158","v":" 5.1.1"},{"$f":"'BNB-System'!G158","v":"Projektvorbereitung"},{"$f":"'BNB-System'!H158","v":100},{"$f":"'BNB-System'!K158","v":1.2E-2},{"$f":"'Bewertung durch Anwender'!G162","v":0},{"$f":"'Bewertung durch Anwender'!N162","v":0},{"$f":"SUM(H163:H165)","v":0},null,null,null,{"$f":"'BNB-System'!L158","v":300},{"$f":"IF(ISNUMBER(G162*E162/100),G162*E162/100,0)","v":0},{"$f":"IF(ISNUMBER(H162*E162/100),H162*E162/100,0)","v":0}]
[null,null,{"$f":"'BNB-System'!G159","v":"Bedarfsplanung oder vergleichbare Planung"},{"$f":"'BNB-System'!H159","v":35},null,{"$f":"'Bewertung durch Anwender'!G163","v":0},{"$f":"'Bewertung durch Anwender'!N163","v":0},null,null,null,null,{"$f":"'BNB-System'!L159","v":0}]
[null,null,{"$f":"'BNB-System'!G160","v":"Zielvereinbarung"},{"$f":"'BNB-System'!H160","v":35},null,{"$f":"'Bewertung durch Anwender'!G164","v":0},{"$f":"'Bewertung durch Anwender'!N164","v":0},null,null,null,null,{"$f":"'BNB-System'!L160","v":0}]
[null,null,{"$f":"'BNB-System'!G161","v":"Architektenwettbewerb"},{"$f":"'BNB-System'!H161","v":30},null,{"$f":"'Bewertung durch Anwender'!G165","v":0},{"$f":"'Bewertung durch Anwender'!N165","v":0},null,null,null,null,{"$f":"'BNB-System'!L161","v":0}]
[null,{"$f":"'BNB-System'!F162","v":" 5.1.2"},{"$f":"'BNB-System'!G162","v":"Integrale Planung"},{"$f":"'BNB-System'!H162","v":100},{"$f":"'BNB-System'!K162","v":1.2E-2},{"$f":"'Bewertung durch Anwender'!G166","v":0},{"$f":"'Bewertung durch Anwender'!N166","v":0},{"$f":"SUM(H167:H171)","v":0},null,null,null,{"$f":"'BNB-System'!L162","v":300},{"$f":"IF(ISNUMBER(G166*E166/100),G166*E166/100,0)","v":0},{"$f":"IF(ISNUMBER(H166*E166/100),H166*E166/100,0)","v":0}]
[null,null,{"$f":"'BNB-System'!G163","v":"Integrales Planungsteam"},{"$f":"'BNB-System'!H163","v":20},null,{"$f":"'Bewertung durch Anwender'!G167","v":0},{"$f":"'Bewertung durch Anwender'!N167","v":0},null,null,null,null,{"$f":"'BNB-System'!L163","v":0}]
[null,null,{"$f":"'BNB-System'!G164","v":"Qualifikation des Planungsteams"},{"$f":"'BNB-System'!H164","v":20},null,{"$f":"'Bewertung durch Anwender'!G168","v":0},{"$f":"'Bewertung durch Anwender'!N168","v":0},null,null,null,null,{"$f":"'BNB-System'!L164","v":0}]
[null,null,{"$f":"'BNB-System'!G165","v":"Integraler Planungsprozess"},{"$f":"'BNB-System'!H165","v":20},null,{"$f":"'Bewertung durch Anwender'!G169","v":0},{"$f":"'Bewertung durch Anwender'!N169","v":0},null,null,null,null,{"$f":"'BNB-System'!L165","v":0}]
[null,null,{"$f":"'BNB-System'!G166","v":"Nutzerbeteiligung"},{"$f":"'BNB-System'!H166","v":30},null,{"$f":"'Bewertung durch Anwender'!G170","v":0},{"$f":"'Bewertung durch Anwender'!N170","v":0},null,null,null,null,{"$f":"'BNB-System'!L166","v":0}]
[null,null,{"$f":"'BNB-System'!G167","v":"Öffentlichkeitsbeteiligung"},{"$f":"'BNB-System'!H167","v":10},null,{"$f":"'Bewertung durch Anwender'!G171","v":0},{"$f":"'Bewertung durch Anwender'!N171","v":0},null,null,null,null,{"$f":"'BNB-System'!L167","v":0}]
[null,{"$f":"'BNB-System'!F168","v":" 5.1.3"},{"$f":"'BNB-System'!G168","v":"Komplexität und Optimierung der Planung"},{"$f":"'BNB-System'!H168","v":100},{"$f":"'BNB-System'!K168","v":1.2E-2},{"$f":"'Bewertung durch Anwender'!G172","v":0},{"$f":"'Bewertung durch Anwender'!N172","v":0},{"$f":"IF(SUM(H173:H187)>100,100,SUM(H173:H187))","v":0},null,null,null,{"$f":"'BNB-System'!L168","v":300},{"$f":"IF(ISNUMBER(G172*E172/100),G172*E172/100,0)","v":0},{"$f":"IF(ISNUMBER(H172*E172/100),H172*E172/100,0)","v":0}]
[null,null,{"$f":"'BNB-System'!G169","v":"SiGe-Plan"},{"$f":"'BNB-System'!H169","v":10},null,{"$f":"'Bewertung durch Anwender'!G173","v":0},{"$f":"'Bewertung durch Anwender'!N173","v":0},null,null,null,null,{"$f":"'BNB-System'!L169","v":0}]
[null,null,{"$f":"'BNB-System'!G170","v":"Ver- und Entsiegelungskonzept"},{"$f":"'BNB-System'!H170","v":10},null,{"$f":"'Bewertung durch Anwender'!G174","v":0},{"$f":"'Bewertung durch Anwender'!N174","v":0},null,null,null,null,{"$f":"'BNB-System'!L170","v":0}]
[null,null,{"$f":"'BNB-System'!G171","v":"Energiekonzept"},{"$f":"'BNB-System'!H171","v":15},null,{"$f":"'Bewertung durch Anwender'!G175","v":0},{"$f":"'Bewertung durch Anwender'!N175","v":0},null,null,null,null,{"$f":"'BNB-System'!L171","v":0}]
[null,null,{"$f":"'BNB-System'!G172","v":"Mess- und Monitoringkonzept"},{"$f":"'BNB-System'!H172","v":15},null,{"$f":"'Bewertung durch Anwender'!G176","v":0},{"$f":"'Bewertung durch Anwender'!N176","v":0},null,null,null,null,{"$f":"'BNB-System'!L172","v":0}]
[null,null,{"$f":"'BNB-System'!G173","v":"Wasserkonzept"},{"$f":"'BNB-System'!H173","v":10},null,{"$f":"'Bewertung durch Anwender'!G177","v":0},{"$f":"'Bewertung durch Anwender'!N177","v":0},null,null,null,null,{"$f":"'BNB-System'!L173","v":0}]
[null,null,{"$f":"'BNB-System'!G174","v":"Konzept zur Vermeidung von Umwelt- und Gesundheitsrisiken aus Bauprodukten"},{"$f":"'BNB-System'!H174","v":10},null,{"$f":"'Bewertung durch Anwender'!G178","v":0},{"$f":"'Bewertung durch Anwender'!N178","v":0},null,null,null,null,{"$f":"'BNB-System'!L174","v":0}]
[null,null,{"$f":"'BNB-System'!G175","v":"Lüftungskonzept"},{"$f":"'BNB-System'!H175","v":10},null,{"$f":"'Bewertung durch Anwender'!G179","v":0},{"$f":"'Bewertung durch Anwender'!N179","v":0},null,null,null,null,{"$f":"'BNB-System'!L175","v":0}]
[null,null,{"$f":"'BNB-System'!G176","v":"Abfallkonzept / Wertstoffkonzept"},{"$f":"'BNB-System'!H176","v":5},null,{"$f":"'Bewertung durch Anwender'!G180","v":0},{"$f":"'Bewertung durch Anwender'!N180","v":0},null,null,null,null,{"$f":"'BNB-System'!L176","v":0}]
[null,null,{"$f":"'BNB-System'!G177","v":"Tages- / Kunstlichtoptimierung"},{"$f":"'BNB-System'!H177","v":10},null,{"$f":"'Bewertung durch Anwender'!G181","v":0},{"$f":"'Bewertung durch Anwender'!N181","v":0},null,null,null,null,{"$f":"'BNB-System'!L177","v":0}]
[null,null,{"$f":"'BNB-System'!G178","v":"Konzept zur Sicherung der Reinigungs- und Instandhaltungsfreundlichkeit"},{"$f":"'BNB-System'!H178","v":10},null,{"$f":"'Bewertung durch Anwender'!G182","v":0},{"$f":"'Bewertung durch Anwender'!N182","v":0},null,null,null,null,{"$f":"'BNB-System'!L178","v":0}]
[null,null,{"$f":"'BNB-System'!G179","v":"Anpassbarkeits-, Rückbau- und Recyclingkonzept"},{"$f":"'BNB-System'!H179","v":10},null,{"$f":"'Bewertung durch Anwender'!G183","v":0},{"$f":"'Bewertung durch Anwender'!N183","v":0},null,null,null,null,{"$f":"'BNB-System'!L179","v":0}]
[null,null,{"$f":"'BNB-System'!G180","v":"Konzept zur Vermeidung und Beherrschung von Risiken"},{"$f":"'BNB-System'!H180","v":10},null,{"$f":"'Bewertung durch Anwender'!G184","v":0},{"$f":"'Bewertung durch Anwender'!N184","v":0},null,null,null,null,{"$f":"'BNB-System'!L180","v":0}]
[null,null,{"$f":"'BNB-System'!G181","v":"Sonstige Konzepte zum Nachhaltigen Bauen"},{"$f":"'BNB-System'!H181","v":10},null,{"$f":"'Bewertung durch Anwender'!G185","v":0},{"$f":"'Bewertung durch Anwender'!N185","v":0},null,null,null,null,{"$f":"'BNB-System'!L181","v":0}]
[null,null,{"$f":"'BNB-System'!G182","v":"Prüfung der Planungsunterlagen durch unabhängige Dritte"},{"$f":"'BNB-System'!H182","v":5},null,{"$f":"'Bewertung durch Anwender'!G186","v":0},{"$f":"'Bewertung durch Anwender'!N186","v":0},null,null,null,null,{"$f":"'BNB-System'!L182","v":0}]
[null,null,{"$f":"'BNB-System'!G183","v":"Durchführung von Variantenvergleichen"},{"$f":"'BNB-System'!H183","v":10},null,{"$f":"'Bewertung durch Anwender'!G187","v":0},{"$f":"'Bewertung durch Anwender'!N187","v":0},null,null,null,null,{"$f":"'BNB-System'!L183","v":0}]
[null,{"$f":"'BNB-System'!F184","v":" 5.1.4"},{"$f":"'BNB-System'!G184","v":"Ausschreibung und Vergabe"},{"$f":"'BNB-System'!H184","v":100},{"$f":"'BNB-System'!K184","v":8.0000000000000002E-3},{"$f":"'Bewertung durch Anwender'!G188","v":0},{"$f":"'Bewertung durch Anwender'!N188","v":0},null,null,null,null,{"$f":"'BNB-System'!L184","v":200},{"$f":"IF(ISNUMBER(G188*E188/100),G188*E188/100,0)","v":0},{"$f":"IF(ISNUMBER(H188*E188/100),H188*E188/100,0)","v":0}]
[null,{"$f":"'BNB-System'!F185","v":" 5.1.5"},{"$f":"'BNB-System'!G185","v":"Voraussetzungen für eine optimale Bewirtschaftung"},{"$f":"'BNB-System'!H185","v":100},{"$f":"'BNB-System'!K185","v":8.0000000000000002E-3},{"$f":"'Bewertung durch Anwender'!G189","v":0},{"$f":"'Bewertung durch Anwender'!N189","v":0},{"$f":"SUM(H190:H193)","v":0},null,null,null,{"$f":"'BNB-System'!L185","v":200},{"$f":"IF(ISNUMBER(G189*E189/100),G189*E189/100,0)","v":0},{"$f":"IF(ISNUMBER(H189*E189/100),H189*E189/100,0)","v":0}]
[null,null,{"$f":"'BNB-System'!G186","v":"Erstellung einer Gebäudeakte / Objektdokumentation"},{"$f":"'BNB-System'!H186","v":25},null,{"$f":"'Bewertung durch Anwender'!G190","v":0},{"$f":"'Bewertung durch Anwender'!N190","v":0},null,null,null,null,{"$f":"'BNB-System'!L186","v":0}]
[null,null,{"$f":"'BNB-System'!G187","v":"Erstellung von Wartungs-, Inspektions-, Betriebs-, und Pflegeanleitungen"},{"$f":"'BNB-System'!H187","v":25},null,{"$f":"'Bewertung durch Anwender'!G191","v":0},{"$f":"'Bewertung durch Anwender'!N191","v":0},null,null,null,null,{"$f":"'BNB-System'!L187","v":0}]
[null,null,{"$f":"'BNB-System'!G188","v":"Anpassung der Pläne und Berechnungen an das realisierte Gebäude"},{"$f":"'BNB-System'!H188","v":25},null,{"$f":"'Bewertung durch Anwender'!G192","v":0},{"$f":"'Bewertung durch Anwender'!N192","v":0},null,null,null,null,{"$f":"'BNB-System'!L188","v":0}]
[null,null,{"$f":"'BNB-System'!G189","v":"Erstellung eines Nutzerhandbuches"},{"$f":"'BNB-System'!H189","v":25},null,{"$f":"'Bewertung durch Anwender'!G193","v":0},{"$f":"'Bewertung durch Anwender'!N193","v":0},null,null,null,null,{"$f":"'BNB-System'!L189","v":0}]
[null,{"$f":"'BNB-System'!F190","v":" 5.1.6"},{"$f":"'BNB-System'!G190","v":"Bestandsanalyse"},{"$f":"'BNB-System'!H190","v":100},null,{"$f":"'Bewertung durch Anwender'!G194","v":0},{"$f":"'Bewertung durch Anwender'!N194","v":0},{"$f":"SUM(H195:H203)","v":0}]
[null,null,{"$f":"'BNB-System'!G191","v":"Bestandsaufnahme Geometrie"},{"$f":"'BNB-System'!H191","v":10},null,{"$f":"'Bewertung durch Anwender'!G195","v":0},{"$f":"'Bewertung durch Anwender'!N195","v":0}]
[null,null,{"$f":"'BNB-System'!G192","v":"Bestandsaufnahme Baukonstruktion und Baustoffe"},{"$f":"'BNB-System'!H192","v":20},null,{"$f":"'Bewertung durch Anwender'!G196","v":0},{"$f":"'Bewertung durch Anwender'!N196","v":0}]
[null,null,{"$f":"'BNB-System'!G193","v":"Bestandsaufnahme Haustechnik"},{"$f":"'BNB-System'!H193","v":10},null,{"$f":"'Bewertung durch Anwender'!G197","v":0},{"$f":"'Bewertung durch Anwender'!N197","v":0}]
[null,null,{"$f":"'BNB-System'!G194","v":"Bestandsaufnahme Bau- und Nutzungsgeschichte"},{"$f":"'BNB-System'!H194","v":5},null,{"$f":"'Bewertung durch Anwender'!G198","v":0},{"$f":"'Bewertung durch Anwender'!N198","v":0}]
[null,null,{"$f":"'BNB-System'!G195","v":"Bestandsaufnahme Exposition"},{"$f":"'BNB-System'!H195","v":5},null,{"$f":"'Bewertung durch Anwender'!G199","v":0},{"$f":"'Bewertung durch Anwender'!N199","v":0}]
[null,null,{"$f":"'BNB-System'!G196","v":"Baudiagnose Tragwerk"},{"$f":"'BNB-System'!H196","v":15},null,{"$f":"'Bewertung durch Anwender'!G200","v":0},{"$f":"'Bewertung durch Anwender'!N200","v":0}]
[null,null,{"$f":"'BNB-System'!G197","v":"Baudiagnose Energetische Qualität"},{"$f":"'BNB-System'!H197","v":15},null,{"$f":"'Bewertung durch Anwender'!G201","v":0},{"$f":"'Bewertung durch Anwender'!N201","v":0}]
[null,null,{"$f":"'BNB-System'!G198","v":"Baudiagnose Schadstoffe"},{"$f":"'BNB-System'!H198","v":10},null,{"$f":"'Bewertung durch Anwender'!G202","v":0},{"$f":"'Bewertung durch Anwender'!N202","v":0}]
[null,null,{"$f":"'BNB-System'!G199","v":"Baudiagnose Feuchte- und Salzbelastung"},{"$f":"'BNB-System'!H199","v":10},null,{"$f":"'Bewertung durch Anwender'!G203","v":0},{"$f":"'Bewertung durch Anwender'!N203","v":0}]
[null,{"$f":"'BNB-System'!F200","v":" 5.1.7"},{"$f":"'BNB-System'!G200","v":"Rückbaumaßnahmen"},{"$f":"'BNB-System'!H200","v":100},null,{"$f":"'Bewertung durch Anwender'!G204","v":0},{"$f":"'Bewertung durch Anwender'!N204","v":0},{"$f":"SUM(H205:H207)","v":0}]
[null,null,{"$f":"'BNB-System'!G201","v":"Planung des Rückbaus"},{"$f":"'BNB-System'!H201","v":50},null,{"$f":"'Bewertung durch Anwender'!G205","v":0},{"$f":"'Bewertung durch Anwender'!N205","v":0}]
[null,null,{"$f":"'BNB-System'!G202","v":"Selektiver Rückbau"},{"$f":"'BNB-System'!H202","v":25},null,{"$f":"'Bewertung durch Anwender'!G206","v":0},{"$f":"'Bewertung durch Anwender'!N206","v":0}]
[null,null,{"$f":"'BNB-System'!G203","v":"Prüfen auf Abfalltrennung und Entsorgung"},{"$f":"'BNB-System'!H203","v":25},null,{"$f":"'Bewertung durch Anwender'!G207","v":0},{"$f":"'Bewertung durch Anwender'!N207","v":0}]
[null,null,{"$f":"'BNB-System'!G204","v":"Bauausführung"},null,null,null,null,null,null,null,null,{"$f":"'BNB-System'!L204","v":0}]
[null,{"$f":"'BNB-System'!F205","v":" 5.2.1"},{"$f":"'BNB-System'!G205","v":"Baustelle / Bauprozess"},{"$f":"'BNB-System'!H205","v":100},{"$f":"'BNB-System'!K205","v":8.0000000000000002E-3},{"$f":"'Bewertung durch Anwender'!G209","v":0},{"$f":"'Bewertung durch Anwender'!N209","v":0},{"$f":"SUM(H210:H213)","v":0},null,null,null,{"$f":"'BNB-System'!L205","v":200},{"$f":"IF(ISNUMBER(G209*E209/100),G209*E209/100,0)","v":0},{"$f":"IF(ISNUMBER(H209*E209/100),H209*E209/100,0)","v":0}]
[null,null,{"$f":"'BNB-System'!G206","v":"Wertstoffoptimierte Baustelle"},{"$f":"'BNB-System'!H206","v":25},null,{"$f":"'Bewertung durch Anwender'!G210","v":0},{"$f":"'Bewertung durch Anwender'!N210","v":0},null,null,null,null,{"$f":"'BNB-System'!L206","v":0}]
[null,null,{"$f":"'BNB-System'!G207","v":"Lärmarme Baustelle"},{"$f":"'BNB-System'!H207","v":25},null,{"$f":"'Bewertung durch Anwender'!G211","v":0},{"$f":"'Bewertung durch Anwender'!N211","v":0},null,null,null,null,{"$f":"'BNB-System'!L207","v":0}]
[null,null,{"$f":"'BNB-System'!G208","v":"Staubarme Baustelle"},{"$f":"'BNB-System'!H208","v":25},null,{"$f":"'Bewertung durch Anwender'!G212","v":0},{"$f":"'Bewertung durch Anwender'!N212","v":0},null,null,null,null,{"$f":"'BNB-System'!L208","v":0}]
[null,null,{"$f":"'BNB-System'!G209","v":"Bodenschutz auf der Baustelle"},{"$f":"'BNB-System'!H209","v":25},null,{"$f":"'Bewertung durch Anwender'!G213","v":0},{"$f":"'Bewertung durch Anwender'!N213","v":0},null,null,null,null,{"$f":"'BNB-System'!L209","v":0}]
[null,{"$f":"'BNB-System'!F210","v":" 5.2.2"},{"$f":"'BNB-System'!G210","v":"Qualitätssicherung der Bauausführung"},{"$f":"'BNB-System'!H210","v":100},{"$f":"'BNB-System'!K210","v":1.2E-2},{"$f":"'Bewertung durch Anwender'!G214","v":0},{"$f":"'Bewertung durch Anwender'!N214","v":0},{"$f":"SUM(H215:H216)","v":0},null,null,null,{"$f":"'BNB-System'!L210","v":300},{"$f":"IF(ISNUMBER(G214*E214/100),G214*E214/100,0)","v":0},{"$f":"IF(ISNUMBER(H214*E214/100),H214*E214/100,0)","v":0}]
[null,null,{"$f":"'BNB-System'!G211","v":"Dokumentation"},{"$f":"'BNB-System'!H211","v":50},null,{"$f":"'Bewertung durch Anwender'!G215","v":0},{"$f":"'Bewertung durch Anwender'!N215","v":0},null,null,null,null,{"$f":"'BNB-System'!L211","v":0}]
[null,null,{"$f":"'BNB-System'!G212","v":"Messungen zur Qualitätskontrolle"},{"$f":"'BNB-System'!H212","v":50},null,{"$f":"'Bewertung durch Anwender'!G216","v":0},{"$f":"'Bewertung durch Anwender'!N216","v":0},null,null,null,null,{"$f":"'BNB-System'!L212","v":0}]
[null,{"$f":"'BNB-System'!F213","v":" 5.2.3"},{"$f":"'BNB-System'!G213","v":"Systematische Inbetriebnahme"},{"$f":"'BNB-System'!H213","v":100},{"$f":"'BNB-System'!K213","v":1.2E-2},{"$f":"'Bewertung durch Anwender'!G217","v":0},{"$f":"'Bewertung durch Anwender'!N217","v":0},null,null,null,null,{"$f":"'BNB-System'!L213","v":300},{"$f":"IF(ISNUMBER(G217*E217/100),G217*E217/100,0)","v":0},{"$f":"IF(ISNUMBER(H217*E217/100),H217*E217/100,0)","v":0}]
[null,null,null,null,null,null,null,null,null,null,null,{"$f":"'BNB-System'!#REF!","v":{"$error":"#REF!"}}]
[null,null,null,null,null,null,null,null,null,null,null,{"$f":"'BNB-System'!L215","v":0}]
[null,{"$f":"'BNB-System'!F216","v":"Standortmerkmale"},null,null,{"$f":"'BNB-System'!K216","v":1},{"$f":"Zielvereinbarung!G220","v":0},{"$f":"'Bewertung durch Anwender'!N220","v":0},{"$f":"H223*($E$223/100)+H229*($E$229/100)+H236*($E$236/100)+H241*($E$241/100)+H245*($E$245/100)+H256*($E$256/100)","v":0},null,null,null,{"$f":"'BNB-System'!L216","v":1300}]
[null,null,null,null,null,null,null,null,null,null,null,{"$f":"'BNB-System'!L217","v":0}]
[null,null,{"$f":"'BNB-System'!G218","v":"Standortmerkmale"},null,null,null,null,null,null,null,null,{"$f":"'BNB-System'!L218","v":0}]
[null,{"$f":"'BNB-System'!F219","v":" 6.1.1"},{"$f":"'BNB-System'!G219","v":"Risiken am Mikrostandort"},{"$f":"'BNB-System'!H219","v":100},{"$f":"'BNB-System'!K219","v":0.15384615384615385},{"$f":"'Bewertung durch Anwender'!G223","v":0},{"$f":"'Bewertung durch Anwender'!N223","v":0},{"$f":"SUM(H224:H228)","v":0},null,null,null,{"$f":"'BNB-System'!L219","v":200}]
[null,null,{"$f":"'BNB-System'!G220","v":"Risiken aus Man-Made-Hazards (Unfälle)"},{"$f":"'BNB-System'!H220","v":20},null,{"$f":"'Bewertung durch Anwender'!G224","v":0},{"$f":"'Bewertung durch Anwender'!N224","v":0}]
[null,null,{"$f":"'BNB-System'!G221","v":"Risiken aus Erdbeben"},{"$f":"'BNB-System'!H221","v":20},null,{"$f":"'Bewertung durch Anwender'!G225","v":0},{"$f":"'Bewertung durch Anwender'!N225","v":0}]
[null,null,{"$f":"'BNB-System'!G222","v":"Risiken aus Lawinen"},{"$f":"'BNB-System'!H222","v":20},null,{"$f":"'Bewertung durch Anwender'!G226","v":0},{"$f":"'Bewertung durch Anwender'!N226","v":0}]
[null,null,{"$f":"'BNB-System'!G223","v":"Risiken aus Sturm"},{"$f":"'BNB-System'!H223","v":20},null,{"$f":"'Bewertung durch Anwender'!G227","v":0},{"$f":"'Bewertung durch Anwender'!N227","v":0}]
[null,null,{"$f":"'BNB-System'!G224","v":"Risiken aus Hochwasser"},{"$f":"'BNB-System'!H224","v":20},null,{"$f":"'Bewertung durch Anwender'!G228","v":0},{"$f":"'Bewertung durch Anwender'!N228","v":0}]
[null,{"$f":"'BNB-System'!F225","v":" 6.1.2"},{"$f":"'BNB-System'!G225","v":"Verhältnisse am Mikrostandort"},{"$f":"'BNB-System'!H225","v":100},{"$f":"'BNB-System'!K225","v":0.15384615384615385},{"$f":"'Bewertung durch Anwender'!G229","v":0},{"$f":"'Bewertung durch Anwender'!N229","v":0},{"$f":"SUM(H230:H235)","v":0},null,null,null,{"$f":"'BNB-System'!L225","v":200}]
[null,null,{"$f":"'BNB-System'!G226","v":"Außenluftqualität"},{"$f":"'BNB-System'!H226","v":16},null,{"$f":"'Bewertung durch Anwender'!G230","v":0},{"$f":"'Bewertung durch Anwender'!N230","v":0}]
[null,null,{"$f":"'BNB-System'!G227","v":"Außenlärmpegel"},{"$f":"'BNB-System'!H227","v":20},null,{"$f":"'Bewertung durch Anwender'!G231","v":0},{"$f":"'Bewertung durch Anwender'!N231","v":0}]
[null,null,{"$f":"'BNB-System'!G228","v":"Baugrundverhältnisse, Bodenbelastungen"},{"$f":"'BNB-System'!H228","v":16},null,{"$f":"'Bewertung durch Anwender'!G232","v":0},{"$f":"'Bewertung durch Anwender'!N232","v":0}]
[null,null,{"$f":"'BNB-System'!G229","v":"Elektromagnetische Felder"},{"$f":"'BNB-System'!H229","v":16},null,{"$f":"'Bewertung durch Anwender'!G233","v":0},{"$f":"'Bewertung durch Anwender'!N233","v":0}]
[null,null,{"$f":"'BNB-System'!G230","v":"Vorkommen von Radon"},{"$f":"'BNB-System'!H230","v":16},null,{"$f":"'Bewertung durch Anwender'!G234","v":0},{"$f":"'Bewertung durch Anwender'!N234","v":0}]
[null,null,{"$f":"'BNB-System'!G231","v":"Stadt- und Landschaftsbild / Sichtbeziehungen"},{"$f":"'BNB-System'!H231","v":16},null,{"$f":"'Bewertung durch Anwender'!G235","v":0},{"$f":"'Bewertung durch Anwender'!N235","v":0}]
[null,{"$f":"'BNB-System'!F232","v":" 6.1.3"},{"$f":"'BNB-System'!G232","v":"Quartiersmerkmale"},{"$f":"'BNB-System'!H232","v":100},{"$f":"'BNB-System'!K232","v":0.15384615384615385},{"$f":"'Bewertung durch Anwender'!G236","v":0},{"$f":"'Bewertung durch Anwender'!N236","v":0},{"$f":"SUM(H237:H240)","v":0},null,null,null,{"$f":"'BNB-System'!L232","v":200}]
[null,null,{"$f":"'BNB-System'!G233","v":"Image, Attraktivität"},{"$f":"'BNB-System'!H233","v":25},null,{"$f":"'Bewertung durch Anwender'!G237","v":0},{"$f":"'Bewertung durch Anwender'!N237","v":0}]
[null,null,{"$f":"'BNB-System'!G234","v":"Synergie- und Konfliktpotenziale"},{"$f":"'BNB-System'!H234","v":25},null,{"$f":"'Bewertung durch Anwender'!G238","v":0},{"$f":"'Bewertung durch Anwender'!N238","v":0}]
[null,null,{"$f":"'BNB-System'!G235","v":"Kriminalität"},{"$f":"'BNB-System'!H235","v":25},null,{"$f":"'Bewertung durch Anwender'!G239","v":0},{"$f":"'Bewertung durch Anwender'!N239","v":0}]
[null,null,{"$f":"'BNB-System'!G236","v":"Pflege und Erhaltungszustand"},{"$f":"'BNB-System'!H236","v":25},null,{"$f":"'Bewertung durch Anwender'!G240","v":0},{"$f":"'Bewertung durch Anwender'!N240","v":0}]
[null,{"$f":"'BNB-System'!F237","v":" 6.1.4"},{"$f":"'BNB-System'!G237","v":"Verkehrsanbindung"},{"$f":"'BNB-System'!H237","v":100},{"$f":"'BNB-System'!K237","v":0.23076923076923078},{"$f":"'Bewertung durch Anwender'!G241","v":0},{"$f":"'Bewertung durch Anwender'!N241","v":0},{"$f":"SUM(H242:H244)","v":0},null,null,null,{"$f":"'BNB-System'!L237","v":300}]
[null,null,{"$f":"'BNB-System'!G238","v":"Erreichbarkeit Haupt-/ Fernbahnhof"},{"$f":"'BNB-System'!H238","v":30},null,{"$f":"'Bewertung durch Anwender'!G242","v":0},{"$f":"'Bewertung durch Anwender'!N242","v":0}]
[null,null,{"$f":"'BNB-System'!G239","v":"Erreichbarkeit ÖPNV"},{"$f":"'BNB-System'!H239","v":30},null,{"$f":"'Bewertung durch Anwender'!G243","v":0},{"$f":"'Bewertung durch Anwender'!N243","v":0}]
[null,null,{"$f":"'BNB-System'!G240","v":"Fuß- und Radwege"},{"$f":"'BNB-System'!H240","v":40},null,{"$f":"'Bewertung durch Anwender'!G244","v":0},{"$f":"'Bewertung durch Anwender'!N244","v":0}]
[null,{"$f":"'BNB-System'!F241","v":" 6.1.5"},{"$f":"'BNB-System'!G241","v":"Nähe zu nutzungsrelevanten Einrichtungen"},{"$f":"'BNB-System'!H241","v":100},{"$f":"'BNB-System'!K241","v":0.15384615384615385},{"$f":"'Bewertung durch Anwender'!G245","v":0},{"$f":"'Bewertung durch Anwender'!N245","v":0},{"$f":"SUM(H246:H255)","v":0},null,null,null,{"$f":"'BNB-System'!L241","v":200}]
[null,null,{"$f":"'BNB-System'!G242","v":"Gastronomie"},{"$f":"'BNB-System'!H242","v":10},null,{"$f":"'Bewertung durch Anwender'!G246","v":0},{"$f":"'Bewertung durch Anwender'!N246","v":0}]
[null,null,{"$f":"'BNB-System'!G243","v":"Nahversorgung"},{"$f":"'BNB-System'!H243","v":10},null,{"$f":"'Bewertung durch Anwender'!G247","v":0},{"$f":"'Bewertung durch Anwender'!N247","v":0}]
[null,null,{"$f":"'BNB-System'!G244","v":"Parkanlagen und Freiräume"},{"$f":"'BNB-System'!H244","v":10},null,{"$f":"'Bewertung durch Anwender'!G248","v":0},{"$f":"'Bewertung durch Anwender'!N248","v":0}]
[null,null,{"$f":"'BNB-System'!G245","v":"Bildung"},{"$f":"'BNB-System'!H245","v":10},null,{"$f":"'Bewertung durch Anwender'!G249","v":0},{"$f":"'Bewertung durch Anwender'!N249","v":0}]
[null,null,{"$f":"'BNB-System'!G246","v":"Öffentliche Verwaltung"},{"$f":"'BNB-System'!H246","v":10},null,{"$f":"'Bewertung durch Anwender'!G250","v":0},{"$f":"'Bewertung durch Anwender'!N250","v":0}]
[null,null,{"$f":"'BNB-System'!G247","v":"Medizinische Versorgung"},{"$f":"'BNB-System'!H247","v":10},null,{"$f":"'Bewertung durch Anwender'!G251","v":0},{"$f":"'Bewertung durch Anwender'!N251","v":0}]
[null,null,{"$f":"'BNB-System'!G248","v":"Sportstätten"},{"$f":"'BNB-System'!H248","v":10},null,{"$f":"'Bewertung durch Anwender'!G252","v":0},{"$f":"'Bewertung durch Anwender'!N252","v":0}]
[null,null,{"$f":"'BNB-System'!G249","v":"Freizeit"},{"$f":"'BNB-System'!H249","v":10},null,{"$f":"'Bewertung durch Anwender'!G253","v":0},{"$f":"'Bewertung durch Anwender'!N253","v":0}]
[null,null,{"$f":"'BNB-System'!G250","v":"Synergie- und Konfliktpotenziale"},{"$f":"'BNB-System'!H250","v":10},null,{"$f":"'Bewertung durch Anwender'!G254","v":0},{"$f":"'Bewertung durch Anwender'!N254","v":0}]
[null,null,{"$f":"'BNB-System'!G251","v":"Dienstleister"},{"$f":"'BNB-System'!H251","v":10},null,{"$f":"'Bewertung durch Anwender'!G255","v":0},{"$f":"'Bewertung durch Anwender'!N255","v":0}]
[null,{"$f":"'BNB-System'!F252","v":" 6.1.6"},{"$f":"'BNB-System'!G252","v":"Anliegende Medien / Erschließung"},{"$f":"'BNB-System'!H252","v":100},{"$f":"'BNB-System'!K252","v":0.15384615384615385},{"$f":"'Bewertung durch Anwender'!G256","v":0},{"$f":"'Bewertung durch Anwender'!N256","v":0},{"$f":"SUM(H257:H260)","v":0},null,null,null,{"$f":"'BNB-System'!L252","v":200}]
[null,null,{"$f":"'BNB-System'!G253","v":"Leitungsgebundene Energie"},{"$f":"'BNB-System'!H253","v":25},null,{"$f":"'Bewertung durch Anwender'!G257","v":0},{"$f":"'Bewertung durch Anwender'!N257","v":0}]
[null,null,{"$f":"'BNB-System'!G254","v":"Solarenergie"},{"$f":"'BNB-System'!H254","v":25},null,{"$f":"'Bewertung durch Anwender'!G258","v":0},{"$f":"'Bewertung durch Anwender'!N258","v":0}]
[null,null,{"$f":"'BNB-System'!G255","v":"Breitband-Anschluss"},{"$f":"'BNB-System'!H255","v":25},null,{"$f":"'Bewertung durch Anwender'!G259","v":0},{"$f":"'Bewertung durch Anwender'!N259","v":0}]
[null,null,{"$f":"'BNB-System'!G256","v":"Regenwasserversickerung"},{"$f":"'BNB-System'!H256","v":25},null,{"$f":"'Bewertung durch Anwender'!G260","v":0},{"$f":"'Bewertung durch Anwender'!N260","v":0}]

{"sheet":"Gültigkeitsliste","index":4,"n_rows":3,"n_cols":1,"rows_kept":3,"cut":false,"hidden":true,"merged":[]}
["Erfüllt / nicht erfüllt"]
["o"]
["x"]

{"sheet":"BNB-System","index":5,"n_rows":257,"n_cols":12,"rows_kept":257,"cut":false,"hidden":true,"merged":[[256,2,256,12],[3,2,3,4]]}
[null,null,"Projekt:"]
[null,null,"Bewertungssystem Nachhaltiges Bauen (BNB)"]
[null,null,"Systemvariante Unterrichtsgebäude, Modul Komplettmodernisierung (BNB_UK) - Version 2017"]
[null,"Hinweis zu Denkmal-schutz","identische Inhalte *",null,null,null,"Nachhaltigkeitskriterien","Zielwert\nmax. Punktzahl","Punktzahl","Bedeutungs-faktor","Gewichtung\nGesamt-bewertung","Zielwert"]
[]
[null,null,null,null,null,"Ökologische Qualität",null,null,null,null,0.22500000000000001,{"$f":"SUM(L9:L27)","v":1800}]
[]
[null,null,null,null,null,null,"Wirkungen auf die globale und lokale  Umwelt"]
[null,"D",null,null,null," 1.1.1","Treibhauspotenzial (GWP)",100,null,3,{"$f":"L9/$L6*K6","v":3.7499999999999999E-2},{"$f":"H9*J9","v":300}]
[null,"D",null,null,null," 1.1.2","Ozonschichtabbaupotenzial (ODP)",100,null,1,{"$f":"L10/L6*K6","v":1.2499999999999999E-2},100]
[null,"D",null,null,null," 1.1.3","Ozonbildungspotenzial (POCP)",100,null,1,{"$f":"L11/L6*K6","v":1.2499999999999999E-2},100]
[null,"D",null,null,null," 1.1.4","Versauerungspotenzial (AP)",100,null,1,{"$f":"L12/L6*K6","v":1.2499999999999999E-2},100]
[null,"D",null,null,null," 1.1.5","Überdüngungspotenzial (EP)",100,null,1,{"$f":"L13/L6*K6","v":1.2499999999999999E-2},100]
[null,"D",null,"BK",null," 1.1.6","Risiken für die lokale Umwelt",100,null,3,{"$f":"L14/L6*K6","v":3.7499999999999999E-2},300]
[null,null,null,null,null,null,"Altsubstanz Q4 ; Neusubstanz Q5",100]
[null,null,null,null,null,null,"Altsubstanz Q3 ; Neusubstanz Q4",75]
[null,null,null,null,null,null,"Altsubstanz Q2 ; Neusubstanz Q3",50]
[null,null,null,null,null,null,"Altsubstanz Q1 ; Neusubstanz Q2",25]
[null,null,null,null,null,null,"Altsubstanz Q1 ; Neusubstanz Q1",10]
[null,null,null,"BK",null," 1.1.7","Nachhaltige Materialgewinnung / Biodiversität",100,null,1,{"$f":"L20/L6*K6","v":1.2499999999999999E-2},100]
[null,null,null,null,null,null,"Ressourceninanspruchnahme"]
[null,null,null,null,null," 1.2.1","Primärenergiebedarf",100,{"$f":"IF(SUM(I23:I25)>100,100,SUM(I23:I25))","v":0},3,{"$f":"L22/$L6*K6","v":3.7499999999999999E-2},{"$f":"H22*J22","v":300}]
[null,null,null,null,null,null,"Primärenergiebedarf nicht erneuerbar (PEne)",60]
[null,null,null,null,null,null,"Gesamtprimärenergiebedarf (PEges)",40]
[null,null,null,null,null,null,"Anteil der erneuerbaren Primärenergie (Pee)",20]
[null,null,null,null,"UN"," 1.2.3","Trinkwasserbedarf und Abwasseraufkommen",100,null,2,{"$f":"L26/$L$6*$K$6","v":2.4999999999999998E-2},{"$f":"H26*J26","v":200}]
[null,null,null,"BK",null," 1.2.4","Flächeninanspruchnahme",100,{"$f":"IF(SUM(I28:I29)>100,100,SUM(I28:I29))","v":0},2,{"$f":"L27/$L$6*$K$6","v":2.4999999999999998E-2},{"$f":"H27*J27","v":200}]
[null,null,null,null,null,null,"Veränderung der Flächeninanspruchnahme",100]
[null,null,null,null,null,null,"Ausgleichsmaßnahmen und Flächenrecycling",40]
[]
[null,null,null,null,null,"Ökonomische Qualität",null,null,null,null,0.22500000000000001,{"$f":"SUM(L34:L36)","v":500}]
[]
[null,null,null,null,null,null,"Lebenszykluskosten"]
[null,"D",null,null,null," 2.1.1","Gebäudebezogene Kosten im Lebenszyklus",100,null,3,{"$f":"L34/$L31*K31","v":0.13500000000000001},{"$f":"H34*J34","v":300}]
[null,null,null,null,null,null,"Wirtschaftlichkeit und Wertstabilität"]
[null,"D",null,null,null," 2.2.2","Anpassungsfähigkeit",100,{"$f":"IF(SUM(I37:I42)>100,100,SUM(I37:I42))","v":0},2,{"$f":"L36/$L$31*$K$31","v":9.0000000000000011E-2},{"$f":"H36*J36","v":200}]
[null,null,null,null,null,null,"Lichte Raumhöhe",15]
[null,null,null,null,null,null,"Gebäudetiefe",15]
[null,null,null,null,null,null,"Vertikale Erschließung",15]
[null,null,null,null,null,null,"Grundrisse",25]
[null,null,null,null,null,null,"Konstruktion",20]
[null,null,null,null,null,null,"Technische Ausstattung",10]
[]
[null,null,null,null,null,"Soziokulturelle und funktionale Qualität",null,null,null,null,0.22500000000000001,{"$f":"SUM(L47:L123)","v":2700}]
[]
[null,null,null,null,null,null,"Gesundheit, Behaglichkeit und Nutzerzufriedenheit"]
[null,null,"BN ","BK","UN"," 3.1.1","Thermischer Komfort",100,{"$f":"IF(SUM(I49:I57)>100,100,SUM(I49:I57))","v":0},3,{"$f":"L47/$L$44*$K$44","v":2.4999999999999998E-2},{"$f":"H47*J47","v":300}]
[null,null,"BN ",null,"UN",null,"Winter"]
[null,null,"BN ",null,"UN",null,"Operative Temperatur",10]
[null,null,"BN ",null,"UN",null," Zugluft",10]
[null,null,"BN ",null,"UN",null,"Stahlungstemperaturasymmetrie und Fußbodentemperatur",10]
[null,null,"BN ",null,"UN",null,"Luftfeuchte",10]
[null,null,"BN ",null,"UN",null,"Sommer"]
[null,null,"BN ",null,"UN",null,"Operative Temperatur",30]
[null,null,"BN ",null,"UN",null," Zugluft",10]
[null,null,"BN ",null,"UN",null,"Stahlungstemperaturasymmetrie und Fußbodentemperatur",10]
[null,null,"BN ",null,"UN",null,"Luftfeuchte",10]
[null,null,"BN ","BK","UN"," 3.1.3","Innenraumlufthygiene",100,{"$f":"IF(SUM(I59:I60)>100,100,SUM(I59:I60))","v":0},3,{"$f":"L58/$L$44*$K$44","v":2.4999999999999998E-2},{"$f":"H58*J58","v":300}]
[null,null,"BN ","BK","UN",null,"Flüchtige organische Stoffe (VOC) und Formaldehyd",50]
[null,null,"BN ","BK","UN",null,"Personenbezogene Lüftungsrate",50]
[null,null,"BN ","BK","UN"," 3.1.4","Akustischer Komfort",100,{"$f":"IF(SUM(I63:I70)>100,100,SUM(I63:I70))","v":0},2,{"$f":"L61/$L$44*$K$44","v":1.6666666666666666E-2},{"$f":"H61*J61","v":200}]
[null,null,null,null,"UN",null,"Räume Gruppe A"]
[null,null,null,null,"UN",null,"Musik",100]
[null,null,null,null,"UN",null,"Sprache/ Vortrag",100]
[null,null,null,null,"UN",null,"Unterricht Kommunikation",100]
[null,null,null,null,"UN",null,"Sport",100]
[null,null,null,null,"UN",null,"Räume Gruppe B"]
[null,null,null,null,"UN",null,"Einzel- und Mehrpersonenbüros bis 100 m3",100]
[null,null,null,null,"UN",null,"Mehrpersonenbüros über 100 m3",100]
[null,null,null,null,"UN",null,"Weitere Räume",100]
[null,null,null,null,"UN"," 3.1.5","Visueller Komfort",100,{"$f":"IF(SUM(I72:I78)>100,100,SUM(I72:I78))","v":0},2,{"$f":"L71/$L$44*$K$44","v":1.6666666666666666E-2},{"$f":"H71*J71","v":200}]
[null,null,null,null,"UN",null,"Tageslichtverfügbarkeit Gesamtgebäude",15]
[null,null,null,null,"UN",null,"Tageslichtverfügbarkeit ständige Arbeitsplätze",15]
[null,null,null,null,"UN",null,"Nachweis de Sichtverbindung außen",35]
[null,null,null,null,"UN",null,"Blendfreiheit Tageslicht",10]
[null,null,null,null,"UN",null,"Blendfreiheit  Kunstlicht",5]
[null,null,null,null,"UN",null,"Lichtverteilung",20]
[null,null,null,null,"UN",null,"Farbwiedergabe",10]
[null,null,null,null,"UN"," 3.1.6","Einflussnahmemöglichkeiten durch Nutzer",100,{"$f":"IF(SUM(I80:I88)>100,100,SUM(I80:I88))","v":0},2,{"$f":"L79/$L$44*$K$44","v":1.6666666666666666E-2},{"$f":"H79*J79","v":200}]
[null,null,null,null,"UN",null,"Lüftung",10]
[null,null,null,null,"UN",null,"Sonnenschutz",10]
[null,null,null,null,"UN",null,"Blendschutz",10]
[null,null,null,null,"UN",null,"Temperaturen während der Heizperiode",10]
[null,null,null,null,"UN",null,"Temperaturen außerhalb der Heizperiode",15]
[null,null,null,null,"UN",null,"Steuerung von Tageslicht",10]
[null,null,null,null,"UN",null,"Steuerung von  Kunstlicht",10]
[null,null,null,null,"UN",null,"Bedienfreundlichkeit",10]
[null,null,null,null,"UN",null,"Funktionskonzept der Haustechnik",15]
[null,null,null,null,"UN"," 3.1.7","Aufenthaltsmerkmale im Außenraum",100,{"$f":"IF(SUM(I90:I93)>100,100,SUM(I90:I93))","v":0},2,{"$f":"L89/$L$44*$K$44","v":1.6666666666666666E-2},{"$f":"H89*J89","v":200}]
[null,null,null,null,"UN",null,"Anzahl und Vielfalt Sitzgelegenheiten",30]
[null,null,null,null,"UN",null,"Anzahlund Vielfalt der Spiel- und Sportmöglichkeiten",15]
[null,null,null,null,"UN",null,"Zuordnung von Freibereichen zu Innenräumen",20]
[null,null,null,null,"UN",null,"Ausstattungsmerkmale",39]
[null,null,"BN ","BK","UN"," 3.1.8","Sicherheit",100,null,1,{"$f":"L94/$L$44*$K$44","v":8.3333333333333332E-3},{"$f":"H94*J94","v":100}]
[null,null,null,null,"UN"," 3.1.9","Innenraumqualität",100,{"$f":"IF(SUM(I96:I99)>100,100,SUM(I96:I99))","v":0},3,{"$f":"L95/$L$44*$K$44","v":2.4999999999999998E-2},{"$f":"H95*J95","v":300}]
[null,null,null,null,null,null,"Aufenthaltsqualitäten der Erschließungsflächen",45]
[null,null,null,null,null,null,"Innere Sitzbeziehung",15]
[null,null,null,null,null,null,"Flexibilität der Raumnutzung",30]
[null,null,null,null,null,null,"Aufbewahrungsmöglichkeiten",40]
[null,null,null,null,null,null,"Funktionalität"]
[null,null,null,null,"UN"," 3.2.1","Barrierefreiheit",100,null,2,{"$f":"L101/$L$44*$K$44","v":1.6666666666666666E-2},{"$f":"H101*J101","v":200}]
[null,null,null,null,"UN"," 3.2.4","Zugänglichkeit",{"$f":"IF(SUM(H103:H106)>100,100,SUM(H103:H106))","v":100},{"$f":"IF(SUM(I103:I106)>100,100,SUM(I103:I106))","v":0},2,{"$f":"L102/$L$44*$K$44","v":1.6666666666666666E-2},{"$f":"H102*J102","v":200}]
[null,null,null,null,null,null,"Grundsätzliche öffentliche Zugänglichkeit des Gebäudes",20]
[null,null,null,null,null,null,"Qualitative Merkmale der öffentlichen Zugänglichkeit des Gebäudes",50]
[null,null,null,null,null,null,"Nutzungsmerkmale der Zugänglichkeit",50]
[null,null,null,null,null,null,"Qualitative Aspekte der öffentlichen Zugänglichkeit der Freiflächen",20]
[null,null,"BN ","BK","UN"," 3.2.5","Mobilitätsinfrastruktur",{"$f":"IF(SUM(H108:H110)>100,100,SUM(H108:H110))","v":100},{"$f":"IF(SUM(I108:I110)>100,100,SUM(I108:I110))","v":0},1,{"$f":"L107/$L$44*$K$44","v":8.3333333333333332E-3},{"$f":"H107*J107","v":100}]
[null,null,null,null,null,null,"Anzahl der Fahrradstellplätze",40]
[null,null,null,null,null,null,"Anzahl der Lademöglichkeiten und Carsharing-Stellplätze",20]
[null,null,null,null,null,null,"Qualitative Anforderungen an Fahrradstellplätze",60]
[null,null,null,null,null,null,"Sicherung der Gestaltungsqualität"]
[null,"D",null,"BK",null," 3.3.1","Gestalterische und städtebauliche Qualität",{"$f":"IF(SUM(H113:H118)>100,100,SUM(H113:H118))","v":100},{"$f":"IF(AND(I113>0,I117<=I118),SUM(I113:I116),IF(AND(I113>0,I118<=I117),SUM(I113:I116),IF(I117>0,I117,IF(I118>0,I118,))))","v":0},3,{"$f":"L112/$L$44*$K$44","v":2.4999999999999998E-2},{"$f":"H112*J112","v":300}]
[null,null,null,"BK",null,null,"Fortentwicklung der gestalterischen und städtebaulichen Qualität des Bestandsgebäudes",40]
[null,null,null,"BK",null,null,"Wettbewerbsverfahren",35]
[null,null,null,"BK",null,null,"Ausführung des Entwurfs eines der Preisträger",20]
[null,null,null,"BK",null,null,"Beauftragung des Planungsteams",5]
[null,null,null,"BK",null,null,"Auszeichnung mit einem Architekturpreis",40]
[null,null,null,"BK",null,null,"Unabhängiges Expertengremium",30]
[null,null,null,"BK",null," 3.3.2","Kunst am Bau ",{"$f":"IF(SUM(H120:H123)>100,100,SUM(H120:H123))","v":100},{"$f":"IF(SUM(I120:I123)>100,100,SUM(I120:I123))","v":0},1,{"$f":"L119/$L$44*$K$44","v":8.3333333333333332E-3},{"$f":"H119*J119","v":100}]
[null,null,null,null,null,null,"Mindestanforderung",10]
[null,null,null,null,null,null,"Bereitstellung von Mitteln im Rahmen der Bauaufgabe",30]
[null,null,null,null,null,null,"Umsetzung des Leitfadens Kunst am Bau",40]
[null,null,null,null,null,null,"Öffentlichkeitsarbeit, Rezeption  der Kunst am Bau",20]
[]
[null,null,null,null,null,"Technische Qualität",null,null,null,null,0.22500000000000001,{"$f":"SUM(L128:L153)","v":1000}]
[]
[null,null,null,null,null,null,"technische Ausführung"]
[null,null,null,null,"UN"," 4.1.1","Schallschutz ",{"$f":"IF(SUM(H129:H132)>100,100,SUM(H129:H132))","v":100},{"$f":"IF(SUM(I129:I132)>100,100,SUM(I129:I132))","v":0},2,{"$f":"L128/$L$125*$K$125","v":4.5000000000000005E-2},{"$f":"H128*J128","v":200}]
[null,null,null,null,null,null,"Luftschallschutz gegen Außenlärm",20]
[null,null,null,null,null,null,"Luftschallschutz",30]
[null,null,null,null,null,null,"Trittschallschutz",30]
[null,null,null,null,null,null,"Schallschutz gegenüber haustechnischen Anlagen",20]
[null,"D",null,"BK",null," 4.1.2","Wärme- und Tauwasserschutz ",{"$f":"IF(SUM(H134:H139)>100,100,SUM(H134:H139))","v":100},{"$f":"IF(SUM(I134:I139)>100,100,SUM(I134:I139))","v":0},2,{"$f":"L133/$L$125*$K$125","v":4.5000000000000005E-2},{"$f":"H133*J133","v":200}]
[null,null,null,null,null,null,"Mittlere Wärmeduchgangskoeffizienten",30]
[null,null,null,null,null,null,"Wärmebrückenzuschlag",15]
[null,null,null,null,null,null,"Klassen der Luftdurchlässigkeit (Fugendurchlässigkeit)",15]
[null,null,null,null,null,null,"Tauwasserbildung",10]
[null,null,null,null,null,null,"Luftwechsel",15]
[null,null,null,null,null,null,"Sonneneintragswert",15]
[null,null,null,null,"UN"," 4.1.3","Reinigungs- und Instandhaltungsfreundlichkeit",100,{"$f":"IF(SUM(I141:I150)>100,100,SUM(I141:I150))","v":0},2,{"$f":"L140/$L$125*$K$125","v":4.5000000000000005E-2},{"$f":"H140*J140","v":200}]
[null,null,"BN ","BK","UN",null,"Tragkonstruktion",15]
[null,null,"BN ","BK","UN",null,"Zugänglichkeit der Außenglasflächen",12]
[null,null,"BN ","BK","UN",null,"Außenbauteile",9]
[null,null,"BN ","BK","UN",null,"Bodenbelag",9]
[null,null,"BN ","BK","UN",null,"Schmutzfangzone",9]
[null,null,"BN ","BK","UN",null,"Fußbodenleisten",9]
[null,null,"BN ","BK","UN",null,"Hindernisfreie Grundrissgestaltung",9]
[null,null,"BN ","BK","UN",null,"Einbauten",10]
[null,null,"BN ","BK","UN",null,"Zugänglichkeit der Innenglasflächen ",9]
[null,null,"BN ","BK","UN",null,"Wände",9]
[null,null,"BN ","BK","UN"," 4.1.4","Rückbau, Trennung und Verwertung",100,null,2,{"$f":"L151/$L$125*$K$125","v":4.5000000000000005E-2},{"$f":"H151*J151","v":200}]
[null,null,"BN ","BK","UN"," 4.1.5","Widerstandsfähigkeit gegen Naturgefahren",100,null,1,{"$f":"L152/$L$125*$K$125","v":2.2500000000000003E-2},{"$f":"H152*J152","v":100}]
[null,null,"BN ","BK","UN"," 4.1.6","Bedienungs- und Instandhaltungsfreundlichkeit der TGA",100,null,1,{"$f":"L153/$L$125*$K$125","v":2.2500000000000003E-2},{"$f":"H153*J153","v":100}]
[]
[null,null,null,null,null,"Prozessqualität",null,null,null,null,0.1,{"$f":"SUM(L158:L213)","v":2500}]
[]
[null,null,null,null,null,null,"Planung"]
[null,null,null,null,"UN"," 5.1.1","Projektvorbereitung",{"$f":"IF(SUM(H159:H161)>100,100,SUM(H159:H161))","v":100},{"$f":"IF(SUM(I159:I161)>100,100,SUM(I159:I161))","v":0},3,{"$f":"L158/$L$155*$K$155","v":1.2E-2},{"$f":"H158*J158","v":300}]
[null,null,null,null,"UN",null,"Bedarfsplanung oder vergleichbare Planung",35]
[null,null,null,null,"UN",null,"Zielvereinbarung",35]
[null,null,null,null,"UN",null,"Architektenwettbewerb",30]
[null,null,null,null,"UN"," 5.1.2","Integrale Planung",{"$f":"IF(SUM(H163:H167)>100,100,SUM(H163:H167))","v":100},{"$f":"IF(SUM(I163:I167)>100,100,SUM(I163:I167))","v":0},3,{"$f":"L162/$L$155*$K$155","v":1.2E-2},{"$f":"H162*J162","v":300}]
[null,null,null,null,null,null,"Integrales Planungsteam",20]
[null,null,null,null,null,null,"Qualifikation des Planungsteams",20]
[null,null,null,null,null,null,"Integraler Planungsprozess",20]
[null,null,null,null,null,null,"Nutzerbeteiligung",30]
[null,null,null,null,null,null,"Öffentlichkeitsbeteiligung",10]
[null,null,"BN ","BK","UN"," 5.1.3","Komplexität und Optimierung der Planung",{"$f":"IF(SUM(H169:H183)>100,100,SUM(H169:H183))","v":100},{"$f":"IF(SUM(I169:I183)>100,100,SUM(I169:I183))","v":0},3,{"$f":"L168/$L$155*$K$155","v":1.2E-2},{"$f":"H168*J168","v":300}]
[null,null,"BN ","BK","UN",null,"SiGe-Plan",10]
[null,null,"BN ","BK","UN",null,"Ver- und Entsiegelungskonzept",10]
[null,null,"BN ","BK","UN",null,"Energiekonzept",15]
[null,null,"BN ","BK","UN",null,"Mess- und Monitoringkonzept",15]
[null,null,"BN ","BK","UN",null,"Wasserkonzept",10]
[null,null,"BN ","BK","UN",null,"Konzept zur Vermeidung von Umwelt- und Gesundheitsrisiken aus Bauprodukten",10]
[null,null,"BN ","BK","UN",null,"Lüftungskonzept",10]
[null,null,"BN ","BK","UN",null,"Abfallkonzept / Wertstoffkonzept",5]
[null,null,"BN ","BK","UN",null,"Tages- / Kunstlichtoptimierung",10]
[null,null,"BN ","BK","UN",null,"Konzept zur Sicherung der Reinigungs- und Instandhaltungsfreundlichkeit",10]
[null,null,"BN ","BK","UN",null,"Anpassbarkeits-, Rückbau- und Recyclingkonzept",10]
[null,null,"BN ","BK","UN",null,"Konzept zur Vermeidung und Beherrschung von Risiken",10]
[null,null,"BN ","BK","UN",null,"Sonstige Konzepte zum Nachhaltigen Bauen",10]
[null,null,"BN ","BK","UN",null,"Prüfung der Planungsunterlagen durch unabhängige Dritte",5]
[null,null,"BN ","BK","UN",null,"Durchführung von Variantenvergleichen",10]
[null,null,"BN ","BK","UN"," 5.1.4","Ausschreibung und Vergabe",100,null,2,{"$f":"L184/$L$155*$K$155","v":8.0000000000000002E-3},{"$f":"H184*J184","v":200}]
[null,null,"BN ","BK","UN"," 5.1.5","Voraussetzungen für eine optimale Bewirtschaftung",{"$f":"IF(SUM(H186:H189)>100,100,SUM(H186:H189))","v":100},{"$f":"IF(SUM(I186:I189)>100,100,SUM(I186:I189))","v":0},2,{"$f":"L185/$L$155*$K$155","v":8.0000000000000002E-3},{"$f":"H185*J185","v":200}]
[null,null,null,null,null,null,"Erstellung einer Gebäudeakte / Objektdokumentation",25]
[null,null,null,null,null,null,"Erstellung von Wartungs-, Inspektions-, Betriebs-, und Pflegeanleitungen",25]
[null,null,null,null,null,null,"Anpassung der Pläne und Berechnungen an das realisierte Gebäude",25]
[null,null,null,null,null,null,"Erstellung eines Nutzerhandbuches",25]
[null,null,null,"BK",null," 5.1.6","Bestandsanalyse",100,{"$f":"IF(SUM(I191:I199)>100,100,SUM(I191:I199))","v":0},3,{"$f":"L190/$L$155*$K$155","v":1.2E-2},{"$f":"H190*J190","v":300}]
[null,null,null,"BK",null,null,"Bestandsaufnahme Geometrie",10]
[null,null,null,"BK",null,null,"Bestandsaufnahme Baukonstruktion und Baustoffe",20]
[null,null,null,"BK",null,null,"Bestandsaufnahme Haustechnik",10]
[null,null,null,"BK",null,null,"Bestandsaufnahme Bau- und Nutzungsgeschichte",5]
[null,null,null,"BK",null,null,"Bestandsaufnahme Exposition",5]
[null,null,null,"BK",null,null,"Baudiagnose Tragwerk",15]
[null,null,null,"BK",null,null,"Baudiagnose Energetische Qualität",15]
[null,null,null,"BK",null,null,"Baudiagnose Schadstoffe",10]
[null,null,null,"BK",null,null,"Baudiagnose Feuchte- und Salzbelastung",10]
[null,null,null,"BK",null," 5.1.7","Rückbaumaßnahmen",100,{"$f":"IF(SUM(I201:I203)>100,100,SUM(I201:I203))","v":0},1,{"$f":"L200/$L$155*$K$155","v":4.0000000000000001E-3},{"$f":"H200*J200","v":100}]
[null,null,null,null,null,null,"Planung des Rückbaus",50]
[null,null,null,null,null,null,"Selektiver Rückbau",25]
[null,null,null,null,null,null,"Prüfen auf Abfalltrennung und Entsorgung",25]
[null,null,null,null,null,null,"Bauausführung"]
[null,null,"BN ","BK","UN"," 5.2.1","Baustelle / Bauprozess",{"$f":"IF(SUM(H206:H209)>100,100,SUM(H206:H209))","v":100},{"$f":"IF(SUM(I206:I209)>100,100,SUM(I206:I209))","v":0},2,{"$f":"L205/$L$155*$K$155","v":8.0000000000000002E-3},{"$f":"H205*J205","v":200}]
[null,null,"BN ","BK","UN",null,"Wertstoffoptimierte Baustelle",25]
[null,null,"BN ","BK","UN",null,"Lärmarme Baustelle",25]
[null,null,"BN ","BK","UN",null,"Staubarme Baustelle",25]
[null,null,"BN ","BK","UN",null,"Bodenschutz auf der Baustelle",25]
[null,null,"BN ","BK","UN"," 5.2.2","Qualitätssicherung der Bauausführung",{"$f":"IF(SUM(H211:H213)>100,100,SUM(H211:H213))","v":100},{"$f":"IF(SUM(I211:I212)>100,100,SUM(I211:I212))","v":0},3,{"$f":"L210/$L$155*$K$155","v":1.2E-2},{"$f":"H210*J210","v":300}]
[null,null,"BN ","BK","UN",null,"Dokumentation",50]
[null,null,"BN ","BK","UN",null,"Messungen zur Qualitätskontrolle",50]
[null,null,"BN ","BK","UN"," 5.2.3","Systematische Inbetriebnahme",100,null,3,{"$f":"L213/$L$155*$K$155","v":1.2E-2},{"$f":"H213*J213","v":300}]
[]
[]
[null,null,null,null,null,"Standortmerkmale",null,null,null,null,1,{"$f":"SUM(L219:L252)","v":1300}]
[]
[null,null,null,null,null,null,"Standortmerkmale"]
[null,null,"BN ","BK","UN"," 6.1.1","Risiken am Mikrostandort",100,{"$f":"IF(SUM(I220:I224)>100,100,SUM(I220:I224))","v":0},2,{"$f":"L219/$L$216*$K$216","v":0.15384615384615385},{"$f":"H219*J219","v":200}]
[null,null,"BN ","BK","UN",null,"Risiken aus Man-Made-Hazards (Unfälle)",20]
[null,null,"BN ","BK","UN",null,"Risiken aus Erdbeben",20]
[null,null,"BN ","BK","UN",null,"Risiken aus Lawinen",20]
[null,null,"BN ","BK","UN",null,"Risiken aus Sturm",20]
[null,null,"BN ","BK","UN",null,"Risiken aus Hochwasser",20]
[null,null,"BN ","BK","UN"," 6.1.2","Verhältnisse am Mikrostandort",100,{"$f":"IF(SUM(I226:I231)>100,100,SUM(I226:I231))","v":0},2,0.15384615384615385,200]
[null,null,"BN ","BK","UN",null,"Außenluftqualität",16]
[null,null,"BN ","BK","UN",null,"Außenlärmpegel",20]
[null,null,"BN ","BK","UN",null,"Baugrundverhältnisse, Bodenbelastungen",16]
[null,null,"BN ","BK","UN",null,"Elektromagnetische Felder",16]
[null,null,"BN ","BK","UN",null,"Vorkommen von Radon",16]
[null,null,"BN ","BK","UN",null,"Stadt- und Landschaftsbild / Sichtbeziehungen",16]
[null,null,"BN ","BK","UN"," 6.1.3","Quartiersmerkmale",100,{"$f":"IF(SUM(I233:I236)>100,100,SUM(I233:I236))","v":0},2,0.15384615384615385,200]
[null,null,"BN ","BK","UN",null,"Image, Attraktivität",25]
[null,null,"BN ","BK","UN",null,"Synergie- und Konfliktpotenziale",25]
[null,null,"BN ","BK","UN",null,"Kriminalität",25]
[null,null,"BN ","BK","UN",null,"Pflege und Erhaltungszustand",25]
[null,null,null,null,"UN"," 6.1.4","Verkehrsanbindung",100,{"$f":"IF(SUM(I238:I240)>100,100,SUM(I238:I240))","v":0},3,0.23076923076923078,300]
[null,null,"BN ","BK","UN",null,"Erreichbarkeit Haupt-/ Fernbahnhof",30]
[null,null,"BN ","BK","UN",null,"Erreichbarkeit ÖPNV",30]
[null,null,"BN ","BK","UN",null,"Fuß- und Radwege",40]
[null,null,"BN ","BK","UN"," 6.1.5","Nähe zu nutzungsrelevanten Einrichtungen",100,{"$f":"IF(SUM(I242:I251)>100,100,SUM(I242:I251))","v":0},2,0.15384615384615385,200]
[null,null,"BN ","BK","UN",null,"Gastronomie",10]
[null,null,"BN ","BK","UN",null,"Nahversorgung",10]
[null,null,"BN ","BK","UN",null,"Parkanlagen und Freiräume",10]
[null,null,"BN ","BK","UN",null,"Bildung",10]
[null,null,"BN ","BK","UN",null,"Öffentliche Verwaltung",10]
[null,null,"BN ","BK","UN",null,"Medizinische Versorgung",10]
[null,null,"BN ","BK","UN",null,"Sportstätten",10]
[null,null,"BN ","BK","UN",null,"Freizeit",10]
[null,null,"BN ","BK","UN",null,"Synergie- und Konfliktpotenziale",10]
[null,null,"BN ","BK","UN",null,"Dienstleister",10]
[null,null,"BN ","BK","UN"," 6.1.6","Anliegende Medien / Erschließung",100,{"$f":"IF(SUM(I253:I256)>100,100,SUM(I253:I256))","v":0},2,0.15384615384615385,200]
[null,null,null,null,null,null,"Leitungsgebundene Energie",25]
[null,null,null,null,null,null,"Solarenergie",25]
[null,null,null,null,null,null,"Breitband-Anschluss",25]
[null,null,null,null,null,null,"Regenwasserversickerung",25]
[null,null,"* Diese Kriteriensteckbriefe sind inhaltich identisch mit den angegebenen Systemvarianten in folgenden Versionen: BN 2015, BK 2017 und UN 2017"]

{"sheet":"Hilfstabelle","index":6,"n_rows":259,"n_cols":4,"rows_kept":259,"cut":false,"hidden":true,"merged":[[3,0,3,1],[3,3,4,3]]}
[]
[]
[]
["Eingereichte \nEndbewertung",null,"Bemerkung Konformitätsprüfung \n\nPrüfung vom:","Bearbeiter"]
["Anwender","Konformitätsprüfung",{"$f":"TODAY()","v":"2018-03-12"}]
[]
[{"$f":"Konformitätsprüfung!$G7","v":0},{"$f":"B10+B35+B48+B129+B158","v":0}]
[]
[]
[{"$f":"Konformitätsprüfung!$G10","v":0},{"$f":"B13*($E$13/100)+B14*($E$14/100)+B15*($E$15/100)+B16*($E$16/100)+B17*($E$17/100)+B18*($E$18/100)+B24*($E$24/100)+B26*($E$26/100)+B30*($E$30/100)+B31*($E$31/100)","v":0}]
[]
[]
[{"$f":"Konformitätsprüfung!$G13","v":0},{"$f":"Konformitätsprüfung!$H13","v":0}]
[{"$f":"Konformitätsprüfung!$G14","v":0},{"$f":"Konformitätsprüfung!$H14","v":0}]
[{"$f":"Konformitätsprüfung!$G15","v":0},{"$f":"Konformitätsprüfung!$H15","v":0}]
[{"$f":"Konformitätsprüfung!$G16","v":0},{"$f":"Konformitätsprüfung!$H16","v":0}]
[{"$f":"Konformitätsprüfung!$G17","v":0},{"$f":"Konformitätsprüfung!$H17","v":0}]
[{"$f":"Konformitätsprüfung!$G18","v":0},{"$f":"IF(SUM(B19:B23)>100,100,SUM(B19:B23))","v":0}]
[{"$f":"Konformitätsprüfung!$G19","v":0},{"$f":"Konformitätsprüfung!$H19","v":0}]
[{"$f":"Konformitätsprüfung!$G20","v":0},{"$f":"Konformitätsprüfung!$H20","v":0}]
[{"$f":"Konformitätsprüfung!$G21","v":0},{"$f":"Konformitätsprüfung!$H21","v":0}]
[{"$f":"Konformitätsprüfung!$G22","v":0},{"$f":"Konformitätsprüfung!$H22","v":0}]
[{"$f":"Konformitätsprüfung!$G23","v":0},{"$f":"Konformitätsprüfung!$H23","v":0}]
[{"$f":"Konformitätsprüfung!$G24","v":0},{"$f":"Konformitätsprüfung!$H24","v":0}]
[]
[{"$f":"Konformitätsprüfung!$G26","v":0},{"$f":"IF(SUM(B27:B29)>100,100,SUM(B27:B29))","v":0}]
[{"$f":"Konformitätsprüfung!$G27","v":0},{"$f":"Konformitätsprüfung!$H27","v":0}]
[{"$f":"Konformitätsprüfung!$G29","v":0},{"$f":"Konformitätsprüfung!$H29","v":0}]
[{"$f":"Konformitätsprüfung!$G30","v":0},{"$f":"Konformitätsprüfung!$H30","v":0}]
[{"$f":"Konformitätsprüfung!$G30","v":0},{"$f":"Konformitätsprüfung!$H30","v":0}]
[{"$f":"Konformitätsprüfung!$G31","v":0},{"$f":"IF(SUM(B32:B33)>100,100,SUM(B32:B33))","v":0}]
[{"$f":"Konformitätsprüfung!$G32","v":0},{"$f":"Konformitätsprüfung!$H32","v":0}]
[{"$f":"Konformitätsprüfung!$G33","v":0},{"$f":"Konformitätsprüfung!$H33","v":0}]
[]
[{"$f":"Konformitätsprüfung!$G35","v":0},{"$f":"B38*($E$38/100)+B40*($E$40/100)","v":0}]
[]
[]
[{"$f":"Konformitätsprüfung!$G38","v":0},{"$f":"Konformitätsprüfung!$H38","v":0}]
[]
[{"$f":"Konformitätsprüfung!$G40","v":0},{"$f":"SUM(B41:B46)","v":0}]
[{"$f":"Konformitätsprüfung!$G41","v":0},{"$f":"Konformitätsprüfung!$H41","v":0}]
[{"$f":"Konformitätsprüfung!$G42","v":0},{"$f":"Konformitätsprüfung!$H42","v":0}]
[{"$f":"Konformitätsprüfung!$G43","v":0},{"$f":"Konformitätsprüfung!$H43","v":0}]
[{"$f":"Konformitätsprüfung!$G44","v":0},{"$f":"Konformitätsprüfung!$H44","v":0}]
[{"$f":"Konformitätsprüfung!$G45","v":0},{"$f":"Konformitätsprüfung!$H45","v":0}]
[{"$f":"Konformitätsprüfung!$G46","v":0},{"$f":"Konformitätsprüfung!$H46","v":0}]
[]
[{"$f":"Konformitätsprüfung!$G48","v":0},{"$f":"B51*($E$51/100)+B62*($E$62/100)+B65*($E$65/100)+B75*($E$75/100)+B83*($E$83/100)+B93*($E$93/100)+B98*($E$98/100)+B105*($E$105/100)+B106*($E$106/100)+B111*($E$111/100)+B116*($E$116/100)+B123*($E$123/100)","v":0}]
[]
[]
[{"$f":"Konformitätsprüfung!$G51","v":0},{"$f":"SUM(B52:B61)","v":0}]
[]
[{"$f":"Konformitätsprüfung!$G53","v":0},{"$f":"Konformitätsprüfung!$H53","v":0}]
[{"$f":"Konformitätsprüfung!$G54","v":0},{"$f":"Konformitätsprüfung!$H54","v":0}]
[{"$f":"Konformitätsprüfung!$G55","v":0},{"$f":"Konformitätsprüfung!$H55","v":0}]
[{"$f":"Konformitätsprüfung!$G56","v":0},{"$f":"Konformitätsprüfung!$H56","v":0}]
[]
[{"$f":"Konformitätsprüfung!$G58","v":0},{"$f":"Konformitätsprüfung!$H58","v":0}]
[{"$f":"Konformitätsprüfung!$G59","v":0},{"$f":"Konformitätsprüfung!$H59","v":0}]
[{"$f":"Konformitätsprüfung!$G60","v":0},{"$f":"Konformitätsprüfung!$H60","v":0}]
[{"$f":"Konformitätsprüfung!$G61","v":0},{"$f":"Konformitätsprüfung!$H61","v":0}]
[{"$f":"Konformitätsprüfung!$G62","v":0},{"$f":"IF(SUM(B63:B64)>100,100,SUM(B63:B64))","v":0}]
[{"$f":"Konformitätsprüfung!$G63","v":0},{"$f":"Konformitätsprüfung!$H63","v":0}]
[{"$f":"Konformitätsprüfung!$G64","v":0},{"$f":"Konformitätsprüfung!$H64","v":0}]
[{"$f":"Konformitätsprüfung!$G65","v":0},{"$f":"SUM(B66:B74)","v":0}]
[]
[{"$f":"Konformitätsprüfung!$G67","v":0},{"$f":"Konformitätsprüfung!$H67","v":0}]
[{"$f":"Konformitätsprüfung!$G68","v":0},{"$f":"Konformitätsprüfung!$H68","v":0}]
[{"$f":"Konformitätsprüfung!$G69","v":0},{"$f":"Konformitätsprüfung!$H69","v":0}]
[{"$f":"Konformitätsprüfung!$G70","v":0},{"$f":"Konformitätsprüfung!$H70","v":0}]
[]
[{"$f":"Konformitätsprüfung!$G72","v":0},{"$f":"Konformitätsprüfung!$H72","v":0}]
[{"$f":"Konformitätsprüfung!$G73","v":0},{"$f":"Konformitätsprüfung!$H73","v":0}]
[{"$f":"Konformitätsprüfung!$G74","v":0},{"$f":"Konformitätsprüfung!$H74","v":0}]
[{"$f":"Konformitätsprüfung!$G75","v":0},{"$f":"SUM(B76:B82)","v":0}]
[{"$f":"Konformitätsprüfung!$G76","v":0},{"$f":"Konformitätsprüfung!$H76","v":0}]
[{"$f":"Konformitätsprüfung!$G77","v":0},{"$f":"Konformitätsprüfung!$H77","v":0}]
[{"$f":"Konformitätsprüfung!$G78","v":0},{"$f":"Konformitätsprüfung!$H78","v":0}]
[{"$f":"Konformitätsprüfung!$G79","v":0},{"$f":"Konformitätsprüfung!$H79","v":0}]
[{"$f":"Konformitätsprüfung!$G80","v":0},{"$f":"Konformitätsprüfung!$H80","v":0}]
[{"$f":"Konformitätsprüfung!$G81","v":0},{"$f":"Konformitätsprüfung!$H81","v":0}]
[{"$f":"Konformitätsprüfung!$G82","v":0},{"$f":"Konformitätsprüfung!$H82","v":0}]
[{"$f":"Konformitätsprüfung!$G83","v":0},{"$f":"SUM(B84:B92)","v":0}]
[{"$f":"Konformitätsprüfung!$G84","v":0},{"$f":"Konformitätsprüfung!$H84","v":0}]
[{"$f":"Konformitätsprüfung!$G85","v":0},{"$f":"Konformitätsprüfung!$H85","v":0}]
[{"$f":"Konformitätsprüfung!$G86","v":0},{"$f":"Konformitätsprüfung!$H86","v":0}]
[{"$f":"Konformitätsprüfung!$G87","v":0},{"$f":"Konformitätsprüfung!$H87","v":0}]
[{"$f":"Konformitätsprüfung!$G88","v":0},{"$f":"Konformitätsprüfung!$H88","v":0}]
[{"$f":"Konformitätsprüfung!$G89","v":0},{"$f":"Konformitätsprüfung!$H89","v":0}]
[{"$f":"Konformitätsprüfung!$G90","v":0},{"$f":"Konformitätsprüfung!$H90","v":0}]
[{"$f":"Konformitätsprüfung!$G91","v":0},{"$f":"Konformitätsprüfung!$H91","v":0}]
[{"$f":"Konformitätsprüfung!$G92","v":0},{"$f":"Konformitätsprüfung!$H92","v":0}]
[{"$f":"Konformitätsprüfung!$G93","v":0},{"$f":"SUM(B94:B97)","v":0}]
[{"$f":"Konformitätsprüfung!$G94","v":0},{"$f":"Konformitätsprüfung!$H94","v":0}]
[{"$f":"Konformitätsprüfung!$G95","v":0},{"$f":"Konformitätsprüfung!$H95","v":0}]
[{"$f":"Konformitätsprüfung!$G96","v":0},{"$f":"Konformitätsprüfung!$H96","v":0}]
[{"$f":"Konformitätsprüfung!$G97","v":0},{"$f":"Konformitätsprüfung!$H97","v":0}]
[{"$f":"Konformitätsprüfung!$G98","v":0}]
[{"$f":"Konformitätsprüfung!$G99","v":0},{"$f":"SUM(B100:B103)","v":0}]
[{"$f":"Konformitätsprüfung!$G100","v":0},{"$f":"Konformitätsprüfung!$H100","v":0}]
[{"$f":"Konformitätsprüfung!$G101","v":0},{"$f":"Konformitätsprüfung!$H101","v":0}]
[{"$f":"Konformitätsprüfung!$G102","v":0},{"$f":"Konformitätsprüfung!$H102","v":0}]
[{"$f":"Konformitätsprüfung!$G103","v":0},{"$f":"Konformitätsprüfung!$H103","v":0}]
[]
[{"$f":"Konformitätsprüfung!$G105","v":0},{"$f":"Konformitätsprüfung!$H105","v":0}]
[{"$f":"Konformitätsprüfung!$G106","v":0},{"$f":"SUM(B107:B110)","v":0}]
[{"$f":"Konformitätsprüfung!$G107","v":0},{"$f":"Konformitätsprüfung!$H107","v":0}]
[{"$f":"Konformitätsprüfung!$G108","v":0},{"$f":"Konformitätsprüfung!$H108","v":0}]
[{"$f":"Konformitätsprüfung!$G109","v":0},{"$f":"Konformitätsprüfung!$H109","v":0}]
[{"$f":"Konformitätsprüfung!$G110","v":0},{"$f":"Konformitätsprüfung!$H110","v":0}]
[{"$f":"Konformitätsprüfung!$G111","v":0},{"$f":"SUM(B112:B114)","v":0}]
[{"$f":"Konformitätsprüfung!$G112","v":0},{"$f":"Konformitätsprüfung!$H112","v":0}]
[{"$f":"Konformitätsprüfung!$G113","v":0},{"$f":"Konformitätsprüfung!$H113","v":0}]
[{"$f":"Konformitätsprüfung!$G114","v":0},{"$f":"Konformitätsprüfung!$H114","v":0}]
[]
[{"$f":"Konformitätsprüfung!$G116","v":0},{"$f":"IF(AND(B117>0,B121<=B122),SUM(B117:B120),IF(AND(B117>0,B122<=B121),SUM(B117:B120),IF(B121>0,B121,IF(B122>0,B122,))))","v":0}]
[{"$f":"Konformitätsprüfung!$G117","v":0},{"$f":"Konformitätsprüfung!$H117","v":0}]
[{"$f":"Konformitätsprüfung!$G118","v":0},{"$f":"Konformitätsprüfung!$H118","v":0}]
[{"$f":"Konformitätsprüfung!$G119","v":0},{"$f":"Konformitätsprüfung!$H119","v":0}]
[{"$f":"Konformitätsprüfung!$G120","v":0},{"$f":"Konformitätsprüfung!$H120","v":0}]
[{"$f":"Konformitätsprüfung!$G121","v":0},{"$f":"Konformitätsprüfung!$H121","v":0}]
[{"$f":"Konformitätsprüfung!$G122","v":0},{"$f":"Konformitätsprüfung!$H122","v":0}]
[{"$f":"Konformitätsprüfung!$G123","v":0},{"$f":"SUM(B124:B127)","v":0}]
[{"$f":"Konformitätsprüfung!$G124","v":0},{"$f":"Konformitätsprüfung!$H124","v":0}]
[{"$f":"Konformitätsprüfung!$G125","v":0},{"$f":"Konformitätsprüfung!$H125","v":0}]
[{"$f":"Konformitätsprüfung!$G126","v":0},{"$f":"Konformitätsprüfung!$H126","v":0}]
[{"$f":"Konformitätsprüfung!$G127","v":0},{"$f":"Konformitätsprüfung!$H127","v":0}]
[]
[{"$f":"Konformitätsprüfung!$G129","v":0},{"$f":"B132*($E$132/100)+B144*($E$144/100)+B154*($E$154/100)+B155*($E$155/100)+B156*($E$156/100)","v":0}]
[]
[]
[{"$f":"Konformitätsprüfung!$G132","v":0},{"$f":"SUM(B133:B136)","v":0}]
[{"$f":"Konformitätsprüfung!$G133","v":0},{"$f":"Konformitätsprüfung!$H133","v":0}]
[{"$f":"Konformitätsprüfung!$G134","v":0},{"$f":"Konformitätsprüfung!$H134","v":0}]
[{"$f":"Konformitätsprüfung!$G135","v":0},{"$f":"Konformitätsprüfung!$H135","v":0}]
[{"$f":"Konformitätsprüfung!$G136","v":0},{"$f":"Konformitätsprüfung!$H136","v":0}]
[{"$f":"Konformitätsprüfung!$G137","v":0},{"$f":"SUM(B138:B143)","v":0}]
[{"$f":"Konformitätsprüfung!$G138","v":0},{"$f":"Konformitätsprüfung!$H138","v":0}]
[{"$f":"Konformitätsprüfung!$G139","v":0},{"$f":"Konformitätsprüfung!$H139","v":0}]
[{"$f":"Konformitätsprüfung!$G140","v":0},{"$f":"Konformitätsprüfung!$H140","v":0}]
[{"$f":"Konformitätsprüfung!$G141","v":0},{"$f":"Konformitätsprüfung!$H141","v":0}]
[{"$f":"Konformitätsprüfung!$G142","v":0},{"$f":"Konformitätsprüfung!$H142","v":0}]
[{"$f":"Konformitätsprüfung!$G143","v":0},{"$f":"Konformitätsprüfung!$H143","v":0}]
[{"$f":"Konformitätsprüfung!$G144","v":0},{"$f":"SUM(B145:B153)","v":0}]
[{"$f":"Konformitätsprüfung!$G145","v":0},{"$f":"Konformitätsprüfung!$H145","v":0}]
[{"$f":"Konformitätsprüfung!$G146","v":0},{"$f":"Konformitätsprüfung!$H146","v":0}]
[{"$f":"Konformitätsprüfung!$G147","v":0},{"$f":"Konformitätsprüfung!$H147","v":0}]
[{"$f":"Konformitätsprüfung!$G148","v":0},{"$f":"Konformitätsprüfung!$H148","v":0}]
[{"$f":"Konformitätsprüfung!$G149","v":0},{"$f":"Konformitätsprüfung!$H149","v":0}]
[{"$f":"Konformitätsprüfung!$G150","v":0},{"$f":"Konformitätsprüfung!$H150","v":0}]
[{"$f":"Konformitätsprüfung!$G151","v":0},{"$f":"Konformitätsprüfung!$H151","v":0}]
[{"$f":"Konformitätsprüfung!$G152","v":0},{"$f":"Konformitätsprüfung!$H152","v":0}]
[{"$f":"Konformitätsprüfung!$G154","v":0},{"$f":"Konformitätsprüfung!$H154","v":0}]
[{"$f":"Konformitätsprüfung!$G155","v":0},{"$f":"Konformitätsprüfung!$H155","v":0}]
[{"$f":"Konformitätsprüfung!$G156","v":0},{"$f":"Konformitätsprüfung!$H156","v":0}]
[{"$f":"Konformitätsprüfung!$G157","v":0},{"$f":"Konformitätsprüfung!$H157","v":0}]
[]
[{"$f":"Konformitätsprüfung!$G159","v":0},{"$f":"B161*($E$161/100)+B165*($E$165/100)+B171*($E$171/100)+B187*($E$187/100)+B188*($E$188/100)+B193*($E$193/100)+B203*($E$203/100)+B208*($E$208/100)+B213*($E$213/100)+B216*($E$216/100)","v":0}]
[]
[]
[{"$f":"Konformitätsprüfung!$G162","v":0},{"$f":"SUM(B162:B164)","v":0}]
[{"$f":"Konformitätsprüfung!$G163","v":0},{"$f":"Konformitätsprüfung!$H163","v":0}]
[{"$f":"Konformitätsprüfung!$G164","v":0},{"$f":"Konformitätsprüfung!$H164","v":0}]
[{"$f":"Konformitätsprüfung!$G165","v":0},{"$f":"Konformitätsprüfung!$H165","v":0}]
[{"$f":"Konformitätsprüfung!$G166","v":0},{"$f":"SUM(B166:B170)","v":0}]
[{"$f":"Konformitätsprüfung!$G167","v":0},{"$f":"Konformitätsprüfung!$H167","v":0}]
[{"$f":"Konformitätsprüfung!$G168","v":0},{"$f":"Konformitätsprüfung!$H168","v":0}]
[{"$f":"Konformitätsprüfung!$G169","v":0},{"$f":"Konformitätsprüfung!$H169","v":0}]
[{"$f":"Konformitätsprüfung!$G170","v":0},{"$f":"Konformitätsprüfung!$H170","v":0}]
[{"$f":"Konformitätsprüfung!$G171","v":0},{"$f":"Konformitätsprüfung!$H171","v":0}]
[{"$f":"Konformitätsprüfung!$G172","v":0},{"$f":"SUM(B172:B186)","v":0}]
[{"$f":"Konformitätsprüfung!$G173","v":0},{"$f":"Konformitätsprüfung!$H173","v":0}]
[{"$f":"Konformitätsprüfung!$G174","v":0},{"$f":"Konformitätsprüfung!$H174","v":0}]
[{"$f":"Konformitätsprüfung!$G175","v":0},{"$f":"Konformitätsprüfung!$H175","v":0}]
[{"$f":"Konformitätsprüfung!$G176","v":0},{"$f":"Konformitätsprüfung!$H176","v":0}]
[{"$f":"Konformitätsprüfung!$G177","v":0},{"$f":"Konformitätsprüfung!$H177","v":0}]
[{"$f":"Konformitätsprüfung!$G178","v":0},{"$f":"Konformitätsprüfung!$H178","v":0}]
[{"$f":"Konformitätsprüfung!$G179","v":0},{"$f":"Konformitätsprüfung!$H179","v":0}]
[{"$f":"Konformitätsprüfung!$G180","v":0},{"$f":"Konformitätsprüfung!$H180","v":0}]
[{"$f":"Konformitätsprüfung!$G181","v":0},{"$f":"Konformitätsprüfung!$H181","v":0}]
[{"$f":"Konformitätsprüfung!$G182","v":0},{"$f":"Konformitätsprüfung!$H182","v":0}]
[{"$f":"Konformitätsprüfung!$G183","v":0},{"$f":"Konformitätsprüfung!$H183","v":0}]
[{"$f":"Konformitätsprüfung!$G184","v":0},{"$f":"Konformitätsprüfung!$H184","v":0}]
[{"$f":"Konformitätsprüfung!$G185","v":0},{"$f":"Konformitätsprüfung!$H185","v":0}]
[{"$f":"Konformitätsprüfung!$G186","v":0},{"$f":"Konformitätsprüfung!$H186","v":0}]
[{"$f":"Konformitätsprüfung!$G187","v":0},{"$f":"Konformitätsprüfung!$H187","v":0}]
[{"$f":"Konformitätsprüfung!$G188","v":0},{"$f":"Konformitätsprüfung!$H188","v":0}]
[{"$f":"Konformitätsprüfung!$G189","v":0},{"$f":"SUM(B189:B192)","v":0}]
[{"$f":"Konformitätsprüfung!$G190","v":0},{"$f":"Konformitätsprüfung!$H190","v":0}]
[{"$f":"Konformitätsprüfung!$G191","v":0},{"$f":"Konformitätsprüfung!$H191","v":0}]
[{"$f":"Konformitätsprüfung!$G192","v":0},{"$f":"Konformitätsprüfung!$H192","v":0}]
[{"$f":"Konformitätsprüfung!$G193","v":0},{"$f":"Konformitätsprüfung!$H193","v":0}]
[{"$f":"Konformitätsprüfung!$G194","v":0},{"$f":"SUM(B194:B202)","v":0}]
[{"$f":"Konformitätsprüfung!$G195","v":0},{"$f":"Konformitätsprüfung!$H195","v":0}]
[{"$f":"Konformitätsprüfung!$G196","v":0},{"$f":"Konformitätsprüfung!$H196","v":0}]
[{"$f":"Konformitätsprüfung!$G197","v":0},{"$f":"Konformitätsprüfung!$H197","v":0}]
[{"$f":"Konformitätsprüfung!$G198","v":0},{"$f":"Konformitätsprüfung!$H198","v":0}]
[{"$f":"Konformitätsprüfung!$G199","v":0},{"$f":"Konformitätsprüfung!$H199","v":0}]
[{"$f":"Konformitätsprüfung!$G200","v":0},{"$f":"Konformitätsprüfung!$H200","v":0}]
[{"$f":"Konformitätsprüfung!$G201","v":0},{"$f":"Konformitätsprüfung!$H201","v":0}]
[{"$f":"Konformitätsprüfung!$G202","v":0},{"$f":"Konformitätsprüfung!$H202","v":0}]
[{"$f":"Konformitätsprüfung!$G203","v":0},{"$f":"Konformitätsprüfung!$H203","v":0}]
[{"$f":"Konformitätsprüfung!$G204","v":0},{"$f":"SUM(B204:B206)","v":0}]
[{"$f":"Konformitätsprüfung!$G205","v":0},{"$f":"Konformitätsprüfung!$H205","v":0}]
[{"$f":"Konformitätsprüfung!$G206","v":0},{"$f":"Konformitätsprüfung!$H206","v":0}]
[{"$f":"Konformitätsprüfung!$G207","v":0},{"$f":"Konformitätsprüfung!$H207","v":0}]
[]
[{"$f":"Konformitätsprüfung!$G209","v":0},{"$f":"SUM(B209:B212)","v":0}]
[{"$f":"Konformitätsprüfung!$G210","v":0},{"$f":"Konformitätsprüfung!$H210","v":0}]
[{"$f":"Konformitätsprüfung!$G211","v":0},{"$f":"Konformitätsprüfung!$H211","v":0}]
[{"$f":"Konformitätsprüfung!$G212","v":0},{"$f":"Konformitätsprüfung!$H212","v":0}]
[{"$f":"Konformitätsprüfung!$G213","v":0},{"$f":"Konformitätsprüfung!$H213","v":0}]
[{"$f":"Konformitätsprüfung!$G214","v":0},{"$f":"SUM(B214:B215)","v":0}]
[{"$f":"Konformitätsprüfung!$G215","v":0},{"$f":"Konformitätsprüfung!$H215","v":0}]
[{"$f":"Konformitätsprüfung!$G216","v":0},{"$f":"Konformitätsprüfung!$H216","v":0}]
[{"$f":"Konformitätsprüfung!$G217","v":0},{"$f":"Konformitätsprüfung!$H217","v":0}]
[]
[]
[{"$f":"Konformitätsprüfung!$G220","v":0},{"$f":"B222*($E$222/100)+B228*($E$228/100)+B235*($E$235/100)+B240*($E$240/100)+B244*($E$244/100)+B255*($E$255/100)","v":0}]
[]
[]
[{"$f":"Konformitätsprüfung!$G223","v":0},{"$f":"SUM(B223:B227)","v":0}]
[{"$f":"Konformitätsprüfung!$G224","v":0},{"$f":"Konformitätsprüfung!$H224","v":0}]
[{"$f":"Konformitätsprüfung!$G225","v":0},{"$f":"Konformitätsprüfung!$H225","v":0}]
[{"$f":"Konformitätsprüfung!$G226","v":0},{"$f":"Konformitätsprüfung!$H226","v":0}]
[{"$f":"Konformitätsprüfung!$G227","v":0},{"$f":"Konformitätsprüfung!$H227","v":0}]
[{"$f":"Konformitätsprüfung!$G228","v":0},{"$f":"Konformitätsprüfung!$H228","v":0}]
[{"$f":"Konformitätsprüfung!$G229","v":0},{"$f":"SUM(B229:B234)","v":0}]
[{"$f":"Konformitätsprüfung!$G230","v":0},{"$f":"Konformitätsprüfung!$H230","v":0}]
[{"$f":"Konformitätsprüfung!$G231","v":0},{"$f":"Konformitätsprüfung!$H231","v":0}]
[{"$f":"Konformitätsprüfung!$G232","v":0},{"$f":"Konformitätsprüfung!$H232","v":0}]
[{"$f":"Konformitätsprüfung!$G233","v":0},{"$f":"Konformitätsprüfung!$H233","v":0}]
[{"$f":"Konformitätsprüfung!$G234","v":0},{"$f":"Konformitätsprüfung!$H234","v":0}]
[{"$f":"Konformitätsprüfung!$G235","v":0},{"$f":"Konformitätsprüfung!$H235","v":0}]
[{"$f":"Konformitätsprüfung!$G236","v":0},{"$f":"SUM(B236:B239)","v":0}]
[{"$f":"Konformitätsprüfung!$G237","v":0},{"$f":"Konformitätsprüfung!$H237","v":0}]
[{"$f":"Konformitätsprüfung!$G238","v":0},{"$f":"Konformitätsprüfung!$H238","v":0}]
[{"$f":"Konformitätsprüfung!$G239","v":0},{"$f":"Konformitätsprüfung!$H239","v":0}]
[{"$f":"Konformitätsprüfung!$G240","v":0},{"$f":"Konformitätsprüfung!$H240","v":0}]
[{"$f":"Konformitätsprüfung!$G241","v":0},{"$f":"SUM(B241:B243)","v":0}]
[{"$f":"Konformitätsprüfung!$G242","v":0},{"$f":"Konformitätsprüfung!$H242","v":0}]
[{"$f":"Konformitätsprüfung!$G243","v":0},{"$f":"Konformitätsprüfung!$H243","v":0}]
[{"$f":"Konformitätsprüfung!$G244","v":0},{"$f":"Konformitätsprüfung!$H244","v":0}]
[{"$f":"Konformitätsprüfung!$G245","v":0},{"$f":"SUM(B245:B254)","v":0}]
[{"$f":"Konformitätsprüfung!$G246","v":0},{"$f":"Konformitätsprüfung!$H246","v":0}]
[{"$f":"Konformitätsprüfung!$G247","v":0},{"$f":"Konformitätsprüfung!$H247","v":0}]
[{"$f":"Konformitätsprüfung!$G248","v":0},{"$f":"Konformitätsprüfung!$H248","v":0}]
[{"$f":"Konformitätsprüfung!$G249","v":0},{"$f":"Konformitätsprüfung!$H249","v":0}]
[{"$f":"Konformitätsprüfung!$G250","v":0},{"$f":"Konformitätsprüfung!$H250","v":0}]
[{"$f":"Konformitätsprüfung!$G251","v":0},{"$f":"Konformitätsprüfung!$H251","v":0}]
[{"$f":"Konformitätsprüfung!$G252","v":0},{"$f":"Konformitätsprüfung!$H252","v":0}]
[{"$f":"Konformitätsprüfung!$G253","v":0},{"$f":"Konformitätsprüfung!$H253","v":0}]
[{"$f":"Konformitätsprüfung!$G254","v":0},{"$f":"Konformitätsprüfung!$H254","v":0}]
[{"$f":"Konformitätsprüfung!$G255","v":0},{"$f":"Konformitätsprüfung!$H255","v":0}]
[{"$f":"Konformitätsprüfung!$G256","v":0},{"$f":"SUM(B256:B259)","v":0}]
[{"$f":"Konformitätsprüfung!$G257","v":0},{"$f":"Konformitätsprüfung!$H257","v":0}]
[{"$f":"Konformitätsprüfung!$G258","v":0},{"$f":"Konformitätsprüfung!$H258","v":0}]
[{"$f":"Konformitätsprüfung!$G259","v":0},{"$f":"Konformitätsprüfung!$H259","v":0}]
[{"$f":"Konformitätsprüfung!$G260","v":0},{"$f":"Konformitätsprüfung!$H260","v":0}]